{"text_format":"1","workbook":"xlsx","n_sheets":12,"sheets":["Hoofdmenu","Toelichting","NAW_gegevens","Voorblad","Kostenverzamelstaat","Specifieke informatie A","Specifieke informatie B","Specifieke informatie C","Contractinformatie","Controleoverzicht","Blad1","Parameters"],"not_rendered":{"charts":0,"images":1,"macros":1,"external_links":0,"defined_names":442,"comments":1,"pivot_tables":0},"unopened":[],"bounds":{"document_bytes":16777216,"sheet_cells":100000,"rows_first":2000,"rows_last":500,"rows_between":2000,"halvings":0,"cell_chars":16384,"cell_head_chars":4096},"cells_cut":0,"cells_raw":0,"read":"whole","date_system":"1900"}

{"sheet":"Hoofdmenu","index":0,"n_rows":3,"n_cols":2,"rows_kept":3,"cut":false,"hidden":false,"merged":[[0,0,0,1],[1,0,1,1]]}
["HOOFDMENU"]
[{"$f":"CONCATENATE(\"JAARSTAAT ZVW \",jaar_id)","v":"JAARSTAAT ZVW 2023"}]
["Navigatie","Afdrukken"]

{"sheet":"Toelichting","index":1,"n_rows":3,"n_cols":2,"rows_kept":3,"cut":false,"hidden":false,"merged":[]}
[]
[]
[null,{"$f":"CONCATENATE(\" JAARSTAAT ZVW \",jaar_id,\" (VERSIE: \",document_id,\")\")","v":" JAARSTAAT ZVW 2023 (VERSIE: JS2023ZVW.A)"}]

{"sheet":"NAW_gegevens","index":2,"n_rows":37,"n_cols":5,"rows_kept":37,"cut":false,"hidden":false,"merged":[[2,0,2,1],[3,0,3,1]]}
[]
[]
["NAW-GEGEVENS"]
[{"$f":"CONCATENATE(\"JAARSTAAT ZVW 2023\")","v":"JAARSTAAT ZVW 2023"}]
[" Selecteer uw nummer:>","0000 KIES UW UZOVI-NUMMER"]
[" Uzovi-nummer:",{"$f":"MID(keuze_uzovi_nummer,1,4)","v":"0000"}]
[" Verzekeraar:"]
[" Plaats:"]
[" Contactpersoon:"]
[" Telefoonnummer:"]
[" E-mail:"]
[]
[]
["Let op dat u het goede UZOVI-nummer invult, zie onderstaand overzicht:"]
[]
["UZOVI","NAAM",null,null,"PLAATS"]
["0101","N.V. UNIVÉ ZORG",null,null,"ARNHEM"]
["0104","CENTRALE ZORGVERZEKERINGEN NZV N.V.",null,null,"TILBURG"]
["0201","OHRA ZORGVERZEKERINGEN N.V.",null,null,"TILBURG"]
["0403","ASR BASIS ZIEKTEKOSTENVERZEKERINGEN N.V.",null,null,"UTRECHT"]
["0699","IZA ZORGVERZEKERAAR N.V.",null,null,"ARNHEM"]
["0736","N.V. ZORGVERZEKERAAR UMC",null,null,"ARNHEM"]
["3311","ZILVEREN KRUIS ACHMEA ZORGVERZEKERINGEN N.V.",null,null,"UTRECHT"]
["3313","INTERPOLIS ZORGVERZEKERINGEN N.V.",null,null,"UTRECHT"]
[3332,"MENZIS ZORGVERZEKERAAR NV",null,null,"WAGENINGEN"]
[3333,"ANDERZORG NV",null,null,"WAGENINGEN"]
[3343,"ONVZ ZIEKTEKOSTENVERZEKERAAR N.V.",null,null,"HOUTEN"]
[3347,"SALLAND ZORGVERZEKERAAR N.V.",null,null,"DEVENTER"]
[3351,"FBTO ZORGVERZEKERINGEN N.V.",null,null,"LEEUWARDEN"]
[3352,"IPTIQ LIFE S.A.",null,null,"AMSTELVEEN"]
[3358,"DE FRIESLAND ZORGVERZEKERAAR N.V.",null,null,"LEEUWARDEN"]
[3359,"EUCARE INSURANCE PCC LTD",null,null,"TA' XBIEX"]
["7029","OWM ZORGVERZEKERAAR 'DSW' U.A.",null,null,"SCHIEDAM"]
["7037","STAD HOLLAND ZORGVERZEKERAAR OWM U.A.",null,null,"SCHIEDAM"]
["7085","OWM ZORGVERZEKERAAR ZORG EN ZEKERHEID U.A.",null,null,"LEIDEN"]
["7095","VGZ ZORGVERZEKERAAR N.V.",null,null,"ARNHEM"]
["7119","CZ ZORGVERZEKERINGEN N.V.",null,null,"TILBURG"]

{"sheet":"Voorblad","index":3,"n_rows":36,"n_cols":4,"rows_kept":36,"cut":false,"hidden":false,"merged":[[13,3,14,11],[15,3,16,11],[19,3,20,11],[21,3,22,11]]}
[null,null,"VOORBLAD"]
[]
[]
[]
[]
["Pagina 1"]
[]
[]
[]
[]
[]
[]
[]
[]
[]
[null,null,null,{"$f":"CONCATENATE(\"JAARSTAAT ZVW \",jaar_id)","v":"JAARSTAAT ZVW 2023"}]
[]
[]
[]
[null,null,null,"SPECIFIEKE INFORMATIE"]
[]
[]
[]
[null,null,null,"  SPECIFIEKE INFORMATIE A (met accountantsverklaring)"]
[null,null,null,"     ● Kostenverzamelstaat (pagina 1 t/m 3)"]
[null,null,null,"     ● Specificatie informatie A (pagina 1 t/m 3)"]
[]
[null,null,null,"  CATASTROFESCHADELAST (SPECIFIEKE INFORMATIE B) (met accountantsverklaring)"]
[null,null,null,"     ● Specifieke informatie B (pagina 1 t/m 4)"]
[]
[null,null,null,"  SPECIFIEKE INFORMATIE C (beleidsinformatie zonder accountantsverklaring)"]
[null,null,null,"     ● Specificaties van kosten en productie (pagina 1 t/m 3)"]
[]
[null,null,null,"  CONTRACTINFORMATIE (pagina 1 t/m 2)"]
[]
[null,null,null,"  CONTROLEOVERZICHT (pagina 1 t/m 7)"]

{"sheet":"Kostenverzamelstaat","index":4,"n_rows":159,"n_cols":16,"rows_kept":159,"cut":false,"hidden":false,"merged":[[10,12,11,12],[12,12,13,12],[64,3,64,6],[65,3,65,6],[10,3,13,6],[10,8,11,9],[10,10,11,11],[12,7,13,7],[12,8,13,8],[12,9,13,9],[12,10,13,10],[12,11,13,11],[19,3,19,6],[20,3,20,6],[21,3,21,6],[22,3,22,6],[110,3,110,6],[67,3,67,6],[68,3,68,6],[71,3,71,6],[73,3,73,6],[74,3,74,6],[75,3,75,6],[76,3,76,6],[94,3,94,4],[47,3,47,4],[46,3,46,4],[54,3,57,6],[62,3,62,6],[54,8,55,9],[47,9,47,12],[54,10,55,11],[54,12,55,12],[56,7,57,7],[56,8,57,8],[56,9,57,9],[56,10,57,10],[56,11,57,11],[56,12,57,12],[151,12,152,12],[153,3,153,6],[101,3,104,6],[101,8,102,9],[101,10,102,11],[101,12,102,12],[103,7,104,7],[103,8,104,8],[103,9,104,9],[103,10,104,10],[103,11,104,11],[103,12,104,12],[111,3,111,6],[112,3,112,6],[116,3,116,7],[149,3,149,11],[154,3,154,6],[158,3,158,4],[151,9,152,9],[151,10,152,10],[151,11,152,11],[151,3,152,6],[151,7,152,7],[151,8,152,8],[146,3,146,11],[146,12,147,12],[147,3,147,11],[148,3,148,11],[66,3,66,6],[79,3,79,6],[80,3,80,6],[82,3,82,6],[86,3,86,6],[77,3,77,6],[78,3,78,6],[87,3,87,6],[88,3,88,6],[89,3,89,6],[90,3,90,6],[94,9,94,12]]}
[null,null,"INVULSPECIFICATIES SPECIFIEKE INFORMATIE A"]
[]
[]
[]
[]
["Pagina 1",null,null,{"$f":"CONCATENATE(\"JAARSTAAT ZVW \", jaar_id)","v":"JAARSTAAT ZVW 2023"}]
[null,null,null,"SPECIFIEKE INFORMATIE A: KOSTENVERZAMELSTAAT"]
[null,null,null,{"$f":"IF(naw_uzovi_zorgverzekeraar<>\"0000\",CONCATENATE(UPPER(naw_naam_zorgverzekeraar),\", \",UPPER(naw_plaats_zorgverzekeraar)),\"\")","v":""},null,null,null,null,null,null,null,null,{"$f":"CONCATENATE(\"UZOVI: \",naw_uzovi_zorgverzekeraar)","v":"UZOVI: 0000"}]
[null,null,null,"SPECIFICATIES INFORMATIE RISICOVEREVENING"]
[null,null,null,{"$f":"$D$7","v":"SPECIFIEKE INFORMATIE A: KOSTENVERZAMELSTAAT"}]
[null,null,null," KOSTENRUBRIEK",null,null,null,null,{"$f":"CONCATENATE(\"LASTEN \",jaar_id)","v":"LASTEN 2023"},null,{"$f":"CONCATENATE(\"LASTEN \",jaar_id-1,)","v":"LASTEN 2022"},null,{"$f":"CONCATENATE(\"LASTEN \",jaar_id-2,\"^ \nEN OUDER\")","v":"LASTEN 2021^ \nEN OUDER"}]
[]
[null,null,null,null,null,null,null,"Code",{"$f":"CONCATENATE(\"LASTEN \",jaar_id,\" inclusief balanspost \")","v":"LASTEN 2023 inclusief balanspost "},{"$f":"CONCATENATE(\"Ontvangen en geaccepteerde declaraties m.b.t. \",jaar_id)","v":"Ontvangen en geaccepteerde declaraties m.b.t. 2023"},{"$f":"CONCATENATE(\"LASTEN \",jaar_id-1,\" inclusief balanspost \")","v":"LASTEN 2022 inclusief balanspost "},{"$f":"CONCATENATE(\"Ontvangen en geaccepteerde declaraties m.b.t. \",jaar_id-1)","v":"Ontvangen en geaccepteerde declaraties m.b.t. 2022"},{"$f":"CONCATENATE(\"Ontvangen en geaccepteerde declaraties m.b.t. \",jaar_id-2, \" en ouder\")","v":"Ontvangen en geaccepteerde declaraties m.b.t. 2021 en ouder"}]
[null,null,null,null,null,null,null,null,null,"Ontvangen en geaccepteerde declaraties mbt jaar T",null,"Ontvangen en geaccepteerde declaraties mbt jaar T","Ontvangen en geaccepteerde declaraties mbt jaar T-1"]
[null,null,null," 01  HUISARTSENZORG en MDZ"]
[null,null,null," Bijzondere betalingen",null,null,null,"503   ",null,null,null,null,null,null,null,{"$f":"IF(OR((I16-J16)/IF(I16=0,1,I16)<-10%,(K16-L16)/IF(K16=0,1,K16)<-10%,(M16-N16)/IF(M16=0,1,M16)<-10%),\"De balans is < -10%, als dit plausibel is dan vragen wij u dit nader toe te lichten bij de opmerkingen, zo niet dan dient u uw raming aan te scherpen.\",\"\")","v":""}]
[null,null,null," Avond-, nacht- en weekenddiensten",null,null,null,"504   ",null,null,null,null,null,null,null,""]
[null,null,null," Inschrijftarieven",null,null,null,"505   ",null,null,null,null,null,null,null,""]
[null,null,null," Consulttarieven",null,null,null,"506   ",null,null,null,null,null,null,null,""]
[null,null,null," Overige tarieven",null,null,null,"507   ",null,null,null,null,null,null,null,""]
[null,null,null," Multidisciplinaire zorg",null,null,null,"510   ",null,null,null,null,null,null,null,""]
[null,null,null," Resultaatbeloning en zorgvernieuwing huisartsen",null,null,null,"515   ",null,null,null,null,null,null,null,""]
[null,null,null," Resultaatbeloning en zorgvernieuwing MDZ",null,null,null,"516   ",null,null,null,null,null,null,null,""]
[null,null,null," Netto continuïteitsbijdrage COVID (basisverzekering)",null,null,null,"821   ",null,null,null,null,null,null,null,""]
[null,null,null," TOTAAL RUBRIEK 01",null,null,null,null,{"$f":"SUM(I16:I24)","v":0},{"$f":"SUM(J16:J24)","v":0},{"$f":"SUM(K16:K24)","v":0},{"$f":"SUM(L16:L24)","v":0},{"$f":"SUM(M16:M24)","v":0}]
[null,null,null," 02 FARMACEUTISCHE ZORG"]
[null,null,null," Farmaceutische zorg",null,null,null,"520   ",null,null,null,null,null,null,null,{"$f":"IF(OR((I27-J27)/IF(I27=0,1,I27)<-10%,(K27-L27)/IF(K27=0,1,K27)<-10%,(M27-N27)/IF(M27=0,1,M27)<-10%),\"De balans is < -10%, als dit plausibel is dan vragen wij u dit nader toe te lichten bij de opmerkingen, zo niet dan dient u uw raming aan te scherpen.\",\"\")","v":""}]
[null,null,null," Netto continuïteitsbijdrage COVID (basisverzekering)",null,null,null,"822   ",null,null,null,null,null,null,null,{"$f":"IF(OR((I28-J28)/IF(I28=0,1,I28)<-10%,(K28-L28)/IF(K28=0,1,K28)<-10%,(M28-N28)/IF(M28=0,1,M28)<-10%),\"De balans is < -10%, als dit plausibel is dan vragen wij u dit nader toe te lichten bij de opmerkingen, zo niet dan dient u uw raming aan te scherpen.\",\"\")","v":""}]
[null,null,null," TOTAAL RUBRIEK 02",null,null,null,null,{"$f":"SUM(I27:I28)","v":0},{"$f":"SUM(J27:J28)","v":0},{"$f":"SUM(K27:K28)","v":0},{"$f":"SUM(L27:L28)","v":0},{"$f":"SUM(M27:M28)","v":0},null,null,{"$f":"IF(OR((I29-J29)/IF(I29=0,1,I29)<-10%,(K29-L29)/IF(K29=0,1,K29)<-10%,(M29-N29)/IF(M29=0,1,M29)<-10%),\"De balans is < -10%, als dit plausibel is dan vragen wij u dit nader toe te lichten bij de opmerkingen, zo niet dan dient u uw raming aan te scherpen.\",\"\")","v":""}]
[null,null,null," 03 VERPLEGING EN VERZORGING"]
[null,null,null," Kosten van verpleging en verzorging ",null,null,null,"530   ",null,null,null,null,null,null,null,{"$f":"IF(OR((I31-J31)/IF(I31=0,1,I31)<-10%,(K31-L31)/IF(K31=0,1,K31)<-10%,(M31-N31)/IF(M31=0,1,M31)<-10%),\"De balans is < -10%, als dit plausibel is dan vragen wij u dit nader toe te lichten bij de opmerkingen, zo niet dan dient u uw raming aan te scherpen.\",\"\")","v":""}]
[null,null,null," Meerkosten COVID-19, indirect",null,null,null,"803.1 ",null,null,null,null,null,null,null,""]
[null,null,null," Netto continuïteitsbijdrage COVID (basisverzekering)",null,null,null,"823   ",null,null,null,null,null,null,null,""]
[null,null,null," TOTAAL RUBRIEK 03",null,null,null,null,{"$f":"SUM(I31:I33)","v":0},{"$f":"SUM(J31:J33)","v":0},{"$f":"SUM(K31:K33)","v":0},{"$f":"SUM(L31:L33)","v":0},{"$f":"SUM(M31:M33)","v":0},null,null,{"$f":"IF(OR((I34-J34)/IF(I34=0,1,I34)<-10%,(K34-L34)/IF(K34=0,1,K34)<-10%,(M34-N34)/IF(M34=0,1,M34)<-10%),\"De balans is < -10%, als dit plausibel is dan vragen wij u dit nader toe te lichten bij de opmerkingen, zo niet dan dient u uw raming aan te scherpen.\",\"\")","v":""}]
[null,null,null," 04  MONDZORG"]
[null,null,null," Kosten mondzorg volwassen verzekerden",null,null,null,"560.1",null,null,null,null,null,null,null,{"$f":"IF(OR((I36-J36)/IF(I36=0,1,I36)<-10%,(K36-L36)/IF(K36=0,1,K36)<-10%,(M36-N36)/IF(M36=0,1,M36)<-10%),\"De balans is < -10%, als dit plausibel is dan vragen wij u dit nader toe te lichten bij de opmerkingen, zo niet dan dient u uw raming aan te scherpen.\",\"\")","v":""}]
[null,null,null," Kosten mondzorg jeugdige verzekerden",null,null,null,"560.2",null,null,null,null,null,null,null,""]
[null,null,null," Kosten gebitsprothesen",null,null,null,"561   ",null,null,null,null,null,null,null,""]
[null,null,null," Netto continuïteitsbijdrage COVID (basisverzekering)",null,null,null,"824   ",null,null,null,null,null,null,null,""]
[null,null,null," TOTAAL RUBRIEK 04",null,null,null,null,{"$f":"SUM(I36:I39)","v":0},{"$f":"SUM(J36:J39)","v":0},{"$f":"SUM(K36:K39)","v":0},{"$f":"SUM(L36:L39)","v":0},{"$f":"SUM(M36:M39)","v":0}]
[null,null,null," 05  VERLOSKUNDIGE ZORG"]
[null,null,null," Kosten verloskundige zorg door verloskundigen",null,null,null,"580   ",null,null,null,null,null,null,null,{"$f":"IF(OR((I42-J42)/IF(I42=0,1,I42)<-10%,(K42-L42)/IF(K42=0,1,K42)<-10%,(M42-N42)/IF(M42=0,1,M42)<-10%),\"De balans is < -10%, als dit plausibel is dan vragen wij u dit nader toe te lichten bij de opmerkingen, zo niet dan dient u uw raming aan te scherpen.\",\"\")","v":""}]
[null,null,null," Kosten Integrale geboortezorg ",null,null,null,"582   ",null,null,null,null,null,null,null,""]
[null,null,null," Netto continuïteitsbijdrage COVID (basisverzekering)",null,null,null,"825   ",null,null,null,null,null,null,null,""]
[null,null,null," TOTAAL RUBRIEK 05",null,null,null,null,{"$f":"SUM(I42:I44)","v":0},{"$f":"SUM(J42:J44)","v":0},{"$f":"SUM(K42:K44)","v":0},{"$f":"SUM(L42:L44)","v":0},{"$f":"SUM(M42:M44)","v":0}]
[null,null,null,"^ jaarlaag 2021 is exclusief COVID-19-kosten"]
[]
[null,null,null,{"$f":"NOW()","v":"2024-01-16T15:35:54.060"},null,null,null,null,null,{"$f":"CONCATENATE(\"Specifieke informatie A: kostenverzamelstaat \",\"2023\",\", \",LOWER(A6))","v":"Specifieke informatie A: kostenverzamelstaat 2023, pagina 1"}]
[]
["Pagina 2",null,null,{"$f":"CONCATENATE(\"JAARSTAAT ZVW 2023 \", A1)","v":"JAARSTAAT ZVW 2023 "}]
[null,null,null,{"$f":"$D$7","v":"SPECIFIEKE INFORMATIE A: KOSTENVERZAMELSTAAT"}]
[null,null,null,{"$f":"IF(naw_uzovi_zorgverzekeraar<>\"0000\",CONCATENATE(UPPER(naw_naam_zorgverzekeraar),\", \",UPPER(naw_plaats_zorgverzekeraar)),\"\")","v":""},null,null,null,null,null,null,null,null,{"$f":"CONCATENATE(\"UZOVI: \",naw_uzovi_zorgverzekeraar)","v":"UZOVI: 0000"}]
[null,null,null,"SPECIFICATIES INFORMATIE RISICOVEREVENING"]
[null,null,null,"SPECIFIEKE INFORMATIE A: KOSTENVERZAMELSTAAT - vervolg"]
[null,null,null," KOSTENRUBRIEK",null,null,null,null,{"$f":"I11","v":"LASTEN 2023"},null,{"$f":"K11","v":"LASTEN 2022"},null,{"$f":"M11","v":"LASTEN 2021^ \nEN OUDER"}]
[]
[null,null,null,null,null,null,null,"Code",{"$f":"I$13","v":"LASTEN 2023 inclusief balanspost "},{"$f":"J$13","v":"Ontvangen en geaccepteerde declaraties m.b.t. 2023"},"LASTEN 2022 inclusief balanspost ","Ontvangen en geaccepteerde declaraties m.b.t. 2022","Ontvangen en geaccepteerde declaraties m.b.t. 2021 en ouder"]
[]
[null,null,null," 06  MEDISCH SPECIALISTISCHE ZORG"]
[null,null,null," Kosten specialisten mondziekten en kaakchirurgie",null,null,null,"545   ",null,null,null,null,null,null,null,{"$f":"IF(OR((I60-J60)/IF(I60=0,1,I60)<-10%,(K60-L60)/IF(K60=0,1,K60)<-10%,(M60-N60)/IF(M60=0,1,M60)<-10%),\"De balans is < -10%, als dit plausibel is dan vragen wij u dit nader toe te lichten bij de opmerkingen, zo niet dan dient u uw raming aan te scherpen.\",\"\")","v":""}]
[null,null,null," Overige kosten ziekenhuiszorg en curatieve zorg",null,null,null,"610   ",null,null,null,null,null,null,null,""]
[null,null,null," NTS",null,null,null,"610.1"]
[null,null,null,"Eerstelijnsdiagnostiek aangevraagd door eerstelijnszorg-aanbieders geleverd door huisartsenlaboratoria en Trombosediensten",null,null,null,"610.2"]
[null,null,null," Overige zorgproducten ",null,null,null,"611   ",null,null,null,null,null,null,null,""]
[null,null,null," Kosten add-ons - Dure geneesmiddelen",null,null,null,"  612.1   ",null,null,null,null,null,null,null,""]
[null,null,null," Kosten add-ons - IC",null,null,null,"  612.2   ",null,null,null,null,null,null,null,""]
[null,null,null," Integrale kosten DBC-zorgproduct gereguleerde segment ",null,null,null,"613.1",null,null,null,null,null,null,null,""]
[null,null,null," Integrale kosten DBC-zorgproduct vrije segment ",null,null,null,"615.1",null,null,null,null,null,null,null,""]
[null,null,null," Integrale kosten extramuraal werkende \n specialisten",null,null,null,"619   ",null,null,null,null,null,null,null,""]
[null,null,null," Meerkosten COVID-19, indirect",null,null,null,"806.1 ",null,null,null,null,null,null,null,""]
[null,null,null," Meerkosten COVID-19, toeslagen",null,null,null,"806.2 ",null,null,null,null,null,null,null,""]
[null,null,null," Netto continuïteitsbijdrage COVID (basisverzekering)",null,null,null,"826   ",null,null,null,null,null,null,null,""]
[null,null,null," TOTAAL RUBRIEK 06",null,null,null,null,{"$f":"SUM(I60:I72)","v":0},{"$f":"SUM(J60:J72)","v":0},{"$f":"SUM(K60:K72)","v":0},{"$f":"SUM(L60:L72)","v":0},{"$f":"SUM(M60:M72)","v":0}]
[null,null,null," 07  PARAMEDISCHE ZORG"]
[null,null,null," Kosten fysiotherapie",null,null,null,"620   ",null,null,null,null,null,null,null,{"$f":"IF(OR((I75-J75)/IF(I75=0,1,I75)<-10%,(K75-L75)/IF(K75=0,1,K75)<-10%,(M75-N75)/IF(M75=0,1,M75)<-10%),\"De balans is < -10%, als dit plausibel is dan vragen wij u dit nader toe te lichten bij de opmerkingen, zo niet dan dient u uw raming aan te scherpen.\",\"\")","v":""}]
[null,null,null," Kosten oefentherapie Mensendieck/Cesar",null,null,null,"621   ",null,null,null,null,null,null,null,""]
[null,null,null," Kosten logopedie",null,null,null,"623   ",null,null,null,null,null,null,null,""]
[null,null,null," Kosten ergotherapie",null,null,null,"624   ",null,null,null,null,null,null,null,""]
[null,null,null," Kosten dieetadvisering",null,null,null,"625   ",null,null,null,null,null,null,null,""]
[null,null,null," Gecombineerde Leefstijl Interventie (GLI)",null,null,null,"626   ",null,null,null,null,null,null,null,""]
[null,null,null," Netto continuïteitsbijdrage COVID (basisverzekering)",null,null,null,"827   ",null,null,null,null,null,null,null,""]
[null,null,null," TOTAAL RUBRIEK 07",null,null,null,null,{"$f":"SUM(I75:I81)","v":0},{"$f":"SUM(J75:J81)","v":0},{"$f":"SUM(K75:K81)","v":0},{"$f":"SUM(L75:L81)","v":0},{"$f":"SUM(M75:M81)","v":0}]
[null,null,null," 08  HULPMIDDELENZORG"]
[null,null,null," Hulpmiddelenzorg ",null,null,null,"640   ",null,null,null,null,null,null,null,{"$f":"IF(OR((I84-J84)/IF(I84=0,1,I84)<-10%,(K84-L84)/IF(K84=0,1,K84)<-10%,(M84-N84)/IF(M84=0,1,M84)<-10%),\"De balans is < -10%, als dit plausibel is dan vragen wij u dit nader toe te lichten bij de opmerkingen, zo niet dan dient u uw raming aan te scherpen.\",\"\")","v":""}]
[null,null,null," Netto continuïteitsbijdrage COVID (basisverzekering)",null,null,null,"828   ",null,null,null,null,null,null,null,""]
[null,null,null," TOTAAL RUBRIEK 08",null,null,null,null,{"$f":"SUM(I84:I85)","v":0},{"$f":"SUM(J84:J85)","v":0},{"$f":"SUM(K84:K85)","v":0},{"$f":"SUM(L84:L85)","v":0},{"$f":"SUM(M84:M85)","v":0},null,null,{"$f":"IF(OR((I86-J86)/IF(I86=0,1,I86)<-10%,(K86-L86)/IF(K86=0,1,K86)<-10%,(M86-N86)/IF(M86=0,1,M86)<-10%),\"De balans is < -10%, als dit plausibel is dan vragen wij u dit nader toe te lichten bij de opmerkingen, zo niet dan dient u uw raming aan te scherpen.\",\"\")","v":""}]
[null,null,null," 09  ZIEKENVERVOER"]
[null,null,null," Kosten vervoer per ambulance/helikopter",null,null,null,"650   ",null,null,null,null,null,null,null,{"$f":"IF(OR((I88-J88)/IF(I88=0,1,I88)<-10%,(K88-L88)/IF(K88=0,1,K88)<-10%,(M88-N88)/IF(M88=0,1,M88)<-10%),\"De balans is < -10%, als dit plausibel is dan vragen wij u dit nader toe te lichten bij de opmerkingen, zo niet dan dient u uw raming aan te scherpen.\",\"\")","v":""}]
[null,null,null," Opbrengstenverrekeningen regionale ambulancevoorzieningen ",null,null,null,"650.1",null,null,null,null,null,null,null,""]
[null,null,null," Kosten vervoer per openbaar vervoer, taxi \n en eigen auto",null,null,null,"651   ",null,null,null,null,null,null,null,""]
[null,null,null," Netto continuïteitsbijdrage COVID (basisverzekering)",null,null,null,"829   ",null,null,null,null,null,null,null,""]
[null,null,null," TOTAAL RUBRIEK 09",null,null,null,null,{"$f":"SUM(I88:I91)","v":0},{"$f":"SUM(J88:J91)","v":0},{"$f":"SUM(K88:K91)","v":0},{"$f":"SUM(L88:L91)","v":0},{"$f":"SUM(M88:M91)","v":0}]
[null,null,null,"^ jaarlaag 2021 is exclusief COVID-19-kosten"]
[]
[null,null,null,{"$f":"NOW()","v":"2024-01-16T15:35:54.060"},null,null,null,null,null,{"$f":"CONCATENATE(\"Specifieke informatie A: kostenverzamelstaat \",\"2023\",\", \",LOWER(A50))","v":"Specifieke informatie A: kostenverzamelstaat 2023, pagina 2"}]
[]
["Pagina 3",null,null,{"$f":"CONCATENATE(\"JAARSTAAT ZVW 2023 \", A1)","v":"JAARSTAAT ZVW 2023 "}]
[null,null,null,{"$f":"D7","v":"SPECIFIEKE INFORMATIE A: KOSTENVERZAMELSTAAT"}]
[null,null,null,{"$f":"IF(naw_uzovi_zorgverzekeraar<>\"0000\",CONCATENATE(UPPER(naw_naam_zorgverzekeraar),\", \",UPPER(naw_plaats_zorgverzekeraar)),\"\")","v":""},null,null,null,null,null,null,null,null,{"$f":"CONCATENATE(\"UZOVI: \",naw_uzovi_zorgverzekeraar)","v":"UZOVI: 0000"}]
[null,null,null,"SPECIFICATIES INFORMATIE RISICOVEREVENING"]
[null,null,null,{"$f":"D54","v":"SPECIFIEKE INFORMATIE A: KOSTENVERZAMELSTAAT - vervolg"}]
[null,null,null," KOSTENRUBRIEK",null,null,null,null,{"$f":"I11","v":"LASTEN 2023"},null,{"$f":"K11","v":"LASTEN 2022"},null,{"$f":"M11","v":"LASTEN 2021^ \nEN OUDER"}]
[]
[null,null,null,null,null,null,null,"Code",{"$f":"I$13","v":"LASTEN 2023 inclusief balanspost "},{"$f":"J$13","v":"Ontvangen en geaccepteerde declaraties m.b.t. 2023"},"LASTEN 2022 inclusief balanspost ","Ontvangen en geaccepteerde declaraties m.b.t. 2022","Ontvangen en geaccepteerde declaraties m.b.t. 2021 en ouder"]
[]
[null,null,null," 10 GENEESKUNDIGE GEESTELIJKE GEZONDHEIDSZORG  \n     "]
[null,null,null," Kosten specialistische GGZ met verblijf",null,null,null,"661   ",null,null,null,null,null,null,null,{"$f":"IF(OR((I107-J107)/IF(I107=0,1,I107)<-10%,(K107-L107)/IF(K107=0,1,K107)<-10%,(M107-N107)/IF(M107=0,1,M107)<-10%),\"De balans is < -10%, als dit plausibel is dan vragen wij u dit nader toe te lichten bij de opmerkingen, zo niet dan dient u uw raming aan te scherpen.\",\"\")","v":""}]
[null,null,null," Kosten LGGZ (langdurige GGZ, jaar 2 en 3)",null,null,null,"661.1",null,null,null,null,null,null,null,""]
[null,null,null," Kosten specialistische GGZ zonder verblijf",null,null,null,"662   ",null,null,null,null,null,null,null,""]
[null,null,null," Generalistische basis GGZ",null,null,null,"665   ",null,null,null,null,null,null,null,""]
[null,null,null," Kosten consulten GGZ",null,null,null,"    666   ",null,null,null,null,null,null,null,""]
[null,null,null," Kosten intramuraal verblijf GGZ",null,null,null,"    667   ",null,null,null,null,null,null,null,""]
[null,null,null," Kosten overige prestaties GGZ",null,null,null,"    668   ",null,null,null,null,null,null,null,""]
[null,null,null," Meerkosten COVID-19, indirect",null,null,null,"810.1 ",null,null,null,null,null,null,null,""]
[null,null,null," Netto continuïteitsbijdrage COVID (basisverzekering)",null,null,null,"830   ",null,null,null,null,null,null,null,""]
[null,null,null," TOTAAL RUBRIEK 10",null,null,null,null,{"$f":"SUM(I107:I115)","v":0},{"$f":"SUM(J107:J115)","v":0},{"$f":"SUM(K107:K115)","v":0},{"$f":"SUM(L107:L115)","v":0},{"$f":"SUM(M107:M115)","v":0}]
[null,null,null," 11 GRZ, ELV EN GZSP"]
[null,null,null," Geriatrische Revalidatie ",null,null,null,"670   ",null,null,null,null,null,null,null,{"$f":"IF(OR((I118-J118)/IF(I118=0,1,I118)<-10%,(K118-L118)/IF(K118=0,1,K118)<-10%,(M118-N118)/IF(M118=0,1,M118)<-10%),\"De balans is < -10%, als dit plausibel is dan vragen wij u dit nader toe te lichten bij de opmerkingen, zo niet dan dient u uw raming aan te scherpen.\",\"\")","v":""}]
[null,null,null," Meerkosten COVID-19, indirect GRZ",null,null,null,"811.1.1",null,null,null,null,null,null,null,{"$f":"IF(OR((I119-J119)/IF(I119=0,1,I119)<-10%,(K119-L119)/IF(K119=0,1,K119)<-10%,(M119-N119)/IF(M119=0,1,M119)<-10%),\"De balans is < -10%, als dit plausibel is dan vragen wij u dit nader toe te lichten bij de opmerkingen, zo niet dan dient u uw raming aan te scherpen.\",\"\")","v":""}]
[null,null,null," Netto continuïteitsbijdrage COVID (basisverzekering)",null,null,null,"831.1",null,null,null,null,null,null,null,""]
[null,null,null," Eerstelijnsverblijf ",null,null,null,"671   ",null,null,null,null,null,null,null,""]
[null,null,null," Meerkosten COVID-19, indirect ELV",null,null,null,"811.2.1",null,null,null,null,null,null,null,""]
[null,null,null," Netto continuïteitsbijdrage COVID (basisverzekering)",null,null,null,"831.2",null,null,null,null,null,null,null,""]
[null,null,null," Generalistische Geneeskundige Zorg Specifieke Patiëntgroepen",null,null,null,"672   ",null,null,null,null,null,null,null,""]
[null,null,null," Netto continuïteitsbijdrage COVID (basisverzekering)",null,null,null,"831.3",null,null,null,null,null,null,null,""]
[null,null,null," TOTAAL RUBRIEK 11",null,null,null,null,{"$f":"SUM(I118:I125)","v":0},{"$f":"SUM(J118:J125)","v":0},{"$f":"SUM(K118:K125)","v":0},{"$f":"SUM(L118:L125)","v":0},{"$f":"SUM(M118:M125)","v":0}]
[null,null,null," 12  KRAAMZORG"]
[null,null,null," Kraamzorg",null,null,null,"680   ",null,null,null,null,null,null,null,{"$f":"IF(OR((I128-J128)/IF(I128=0,1,I128)<-10%,(K128-L128)/IF(K128=0,1,K128)<-10%,(M128-N128)/IF(M128=0,1,M128)<-10%),\"De balans is < -10%, als dit plausibel is dan vragen wij u dit nader toe te lichten bij de opmerkingen, zo niet dan dient u uw raming aan te scherpen.\",\"\")","v":""}]
[null,null,null," Netto continuïteitsbijdrage COVID (basisverzekering)",null,null,null,"832   ",null,null,null,null,null,null,null,""]
[null,null,null," TOTAAL RUBRIEK 12",null,null,null,null,{"$f":"SUM(I128:I129)","v":0},{"$f":"SUM(J128:J129)","v":0},{"$f":"SUM(K128:K129)","v":0},{"$f":"SUM(L128:L129)","v":0},{"$f":"SUM(M128:M129)","v":0},null,null,{"$f":"IF(OR((I130-J130)/IF(I130=0,1,I130)<-10%,(K130-L130)/IF(K130=0,1,K130)<-10%,(M130-N130)/IF(M130=0,1,M130)<-10%),\"De balans is < -10%, als dit plausibel is dan vragen wij u dit nader toe te lichten bij de opmerkingen, zo niet dan dient u uw raming aan te scherpen.\",\"\")","v":""}]
[null,null,null," 13  DIVERSE OVERIGE KOSTEN"]
[null,null,null," Overige kosten",null,null,null,"700   ",null,null,null,null,null,null,null,{"$f":"IF(OR((I132-J132)/IF(I132=0,1,I132)<-10%,(K132-L132)/IF(K132=0,1,K132)<-10%,(M132-N132)/IF(M132=0,1,M132)<-10%),\"De balans is < -10%, als dit plausibel is dan vragen wij u dit nader toe te lichten bij de opmerkingen, zo niet dan dient u uw raming aan te scherpen.\",\"\")","v":""}]
[null,null,null," Overige geneeskundige zorg",null,null,null,"701   ",null,null,null,null,null,null,null,""]
[null,null,null," Kosten van zorg zintuiglijk gehandicapten",null,null,null,"702   ",null,null,null,null,null,null,null,""]
[null,null,null," Transformatiemiddelen IZA",null,null,null,"703   "]
[null,null,null," Netto continuïteitsbijdrage COVID (basisverzekering)",null,null,null,"833   ",null,null,null,null,null,null,null,""]
[null,null,null," TOTAAL RUBRIEK 13",null,null,null,null,{"$f":"SUM(I132:I136)","v":0},{"$f":"SUM(J132:J136)","v":0},{"$f":"SUM(K132:K136)","v":0},{"$f":"SUM(L132:L136)","v":0},{"$f":"SUM(M132:M136)","v":0}]
[null,null,null," 15  GRENSOVERSCHRIJDENDE ZORG"]
[null,null,null," Kosten via verzekeraar",null,null,null,"720   ",null,null,null,null,null,null,null,{"$f":"IF(OR((I139-J139)/IF(I139=0,1,I139)<-10%,(K139-L139)/IF(K139=0,1,K139)<-10%,(M139-N139)/IF(M139=0,1,M139)<-10%),\"De balans is < -10%, als dit plausibel is dan vragen wij u dit nader toe te lichten bij de opmerkingen, zo niet dan dient u uw raming aan te scherpen.\",\"\")","v":""}]
[null,null,null," Kosten via verbindingsorgaan",null,null,null,"721   ",null,null,null,null,null,null,null,""]
[null,null,null," TOTAAL RUBRIEK 15",null,null,null,null,{"$f":"SUM(I139:I140)","v":0},{"$f":"SUM(J139:J140)","v":0},0,0,0]
[null,null,null," 16  KWALITEITSGELDEN",null,null,null,"   "]
[null,null,null," Kwaliteitsgelden",null,null,null,"730",null,null,null,null,null,null,null,{"$f":"IF(OR((I143-J143)/IF(I143=0,1,I143)<-10%,(K143-L143)/IF(K143=0,1,K143)<-10%,(M143-N143)/IF(M143=0,1,M143)<-10%),\"De balans is < -10%, als dit plausibel is dan vragen wij u dit nader toe te lichten bij de opmerkingen, zo niet dan dient u uw raming aan te scherpen.\",\"\")","v":""}]
[null,null,null," TOTAAL RUBRIEK 16",null,null,null,null,{"$f":"SUM(I143)","v":0},{"$f":"SUM(J143)","v":0},0,0,0,null,null,{"$f":"IF(OR((I144-J144)/IF(I144=0,1,I144)<-10%,(K144-L144)/IF(K144=0,1,K144)<-10%,(M144-N144)/IF(M144=0,1,M144)<-10%),\"De balans is < -10%, als dit plausibel is dan vragen wij u dit nader toe te lichten bij de opmerkingen, zo niet dan dient u uw raming aan te scherpen.\",\"\")","v":""}]
[null,null,null," TOTAAL LASTEN  (bruto-schade, definitie ZIN)",null,null,null,null,{"$f":"SUM(I25,I29,I34,I40,I45,I73,I82,I86,I92,I116,I126,I130,I137,I141,I144)","v":0},{"$f":"SUM(J25,J29,J34,J40,J45,J73,J82,J86,J92,J116,J126,J130,J137,J141,J144)","v":0},{"$f":"SUM(K25,K29,K34,K40,K45,K73,K82,K86,K92,K116,K126,K130,K137,K141,K144)","v":0},{"$f":"SUM(L25,L29,L34,L40,L45,L73,L82,L86,L92,L116,L126,L130,L137,L141,L144)","v":0},{"$f":"SUM(M25,M29,M34,M40,M45,M73,M82,M86,M92,M116,M126,M130,M137,M141,M144)","v":0}]
[]
[null,null,null,null,null,null,null,null,null,null,null,null,{"$f":"CONCATENATE(\"Overloop van ontvangen en geaccepteerde declaraties m.b.t. \",jaar_id-3)","v":"Overloop van ontvangen en geaccepteerde declaraties m.b.t. 2020"}]
[]
[null,null,null,"TOTAAL NETTO CONTINUITEITSBIJDRAGE COVID (BASISVERZEKERING), VARIABEL "]
[null,null,null,"TOTAAL NETTO CONTINUITEITSBIJDRAGE COVID (BASISVERZEKERING), GGZ"]
[]
[null,null,null," BATEN ZVW",null,null,null,"Code",{"$f":"CONCATENATE(\"Totale baten \",jaar_id,\" inclusief balanspost \")","v":"Totale baten 2023 inclusief balanspost "},{"$f":"CONCATENATE(\"Waarvan ontvangen  m.b.t. \",jaar_id)","v":"Waarvan ontvangen  m.b.t. 2023"},{"$f":"CONCATENATE(\"Totale baten \",jaar_id-1,\" inclusief balanspost \")","v":"Totale baten 2022 inclusief balanspost "},{"$f":"CONCATENATE(\"Waarvan ontvangen  m.b.t. \",jaar_id-1)","v":"Waarvan ontvangen  m.b.t. 2022"},{"$f":"CONCATENATE(\"Totale baten ontvangen m.b.t. \",jaar_id-2, \"^ en ouder\")","v":"Totale baten ontvangen m.b.t. 2021^ en ouder"}]
[null,null,null,null,null,null,null,null,null,"waarvan ontvangen  t/m 3e Kwartaal 2019",null,"waarvan ontvangen  t/m 3e Kwartaal 2019"]
[null,null,null," OPBRENGSTEN VERHAAL",null,null,null,"890.1",null,null,null,null,null,null,null,{"$f":"IF(AND(OR(I154<0,J154<0,K154<0,L154<0,M154<0),OR((I154-J154)/IF(I154=0,1,I154)<-10%,(K154-L154)/IF(K154=0,1,K154)<-10%)), \"U rapporteert een bedrag <0. Kunt u dit vooraf toelichten bij de mededelingen? En De balans is < -10%, als dit plausibel is dan vragen wij u dit nader toe te lichten bij de opmerkingen, zo niet dan dient u uw raming aan te scherpen.\",IF(OR(I154<0,J154<0,K154<0,L154<0,M154<0),\"U rapporteert een bedrag <0. Kunt u dit vooraf toelichten bij de mededelingen?\",IF(OR((I154-J154)/IF(I154=0,1,I154)<-10%,(K154-L154)/IF(K154=0,1,K154)<-10%),\"De balans is < -10%, als dit plausibel is dan vragen wij u dit nader toe te lichten bij de opmerkingen, zo niet dan dient u uw raming aan te scherpen.\",\"\")))","v":""}]
[null,null,null," SCHADE T.L.V. HET VRIJWILLIG EIGEN RISICO",null,null,null,"910   ",null,null,null,null,null,null,null,{"$f":"IF(AND(OR(I155<0,J155<0,K155<0,L155<0,M155<0),OR((I155-J155)/IF(I155=0,1,I155)<-10%,(K155-L155)/IF(K155=0,1,K155)<-10%)), \"U rapporteert een bedrag <0. Kunt u dit vooraf toelichten bij de mededelingen? En De balans is < -10%, als dit plausibel is dan vragen wij u dit nader toe te lichten bij de opmerkingen, zo niet dan dient u uw raming aan te scherpen.\",IF(OR(I155<0,J155<0,K155<0,L155<0,M155<0),\"U rapporteert een bedrag <0. Kunt u dit vooraf toelichten bij de mededelingen?\",IF(OR((I155-J155)/IF(I155=0,1,I155)<-10%,(K155-L155)/IF(K155=0,1,K155)<-10%),\"De balans is < -10%, als dit plausibel is dan vragen wij u dit nader toe te lichten bij de opmerkingen, zo niet dan dient u uw raming aan te scherpen.\",\"\")))","v":""}]
[null,null,null," SCHADE T.L.V. HET VERPLICHT EIGEN RISICO",null,null,null,"915   ",null,null,null,null,null,null,null,""]
[null,null,null," NETTO PREMIEOPBRENGSTEN",null,null,null,"940   ",null,null,null,null,null,null,null,""]
[null,null,null,"^ jaarlaag 2021 is exclusief COVID-19-kosten"]
[null,null,null,{"$f":"NOW()","v":"2024-01-16T15:35:54.060"},null,null,null,null,null,null,null,null,{"$f":"CONCATENATE(\"Specifieke informatie A: kostenverzamelstaat \",\"2023\",\", \",LOWER(A97))","v":"Specifieke informatie A: kostenverzamelstaat 2023, pagina 3"}]

{"sheet":"Specifieke informatie A","index":5,"n_rows":101,"n_cols":20,"rows_kept":101,"cut":false,"hidden":false,"merged":[[73,8,73,9],[73,10,73,11],[73,12,73,13],[73,14,73,15],[73,16,73,17],[73,18,73,19],[96,8,96,9],[96,10,96,11],[96,12,96,13],[96,14,96,15],[96,16,96,17],[96,18,96,19],[65,3,65,4],[72,3,73,7],[93,3,93,7],[95,3,95,7],[96,3,97,7],[100,3,100,4],[85,3,85,7],[79,3,79,7],[92,3,92,7],[94,3,94,7],[74,3,75,7],[80,3,80,7],[81,3,81,7],[82,3,82,7],[76,3,76,7],[77,3,77,7],[86,3,86,7],[83,3,83,7],[84,3,84,7],[78,3,78,7],[98,3,98,7],[33,11,34,11],[35,3,35,9],[19,10,20,10],[19,11,20,11],[21,3,21,9],[22,3,22,9],[24,10,25,10],[24,3,25,9],[24,11,25,11],[11,11,12,11],[13,3,13,9],[11,10,12,10],[11,3,12,9],[14,3,14,9],[54,11,55,11],[56,3,58,4],[56,5,56,9],[57,5,57,9],[58,5,58,9],[54,3,55,9],[54,10,55,10],[48,11,49,11],[48,3,49,9],[48,10,49,10],[41,3,41,4],[28,3,29,9],[28,10,29,10],[28,11,29,11],[30,3,30,9],[37,10,38,10],[37,11,38,11],[39,3,39,9],[33,10,34,10],[59,3,59,9],[62,3,62,9],[63,3,63,9],[15,3,15,9],[26,3,26,9],[16,3,16,9],[50,3,50,9],[51,3,51,9],[52,3,52,9],[19,3,20,9],[33,3,34,9],[37,3,38,9],[31,3,31,9],[97,10,97,11],[89,3,89,7],[91,3,91,7],[90,3,90,7],[87,3,87,7],[88,3,88,7],[74,11,75,11],[74,8,75,8],[95,8,95,9],[95,10,95,11],[74,9,75,9],[74,10,75,10],[97,8,97,9],[97,16,97,17],[97,18,97,19],[74,16,75,16],[74,17,75,17],[74,18,75,18],[74,19,75,19],[97,12,97,13],[95,16,95,17],[95,18,95,19],[74,14,75,14],[74,15,75,15],[97,14,97,15],[95,12,95,13],[95,14,95,15],[74,12,75,12],[74,13,75,13]]}
[null,null,"INVULSPECIFICATIES SPECIFIEKE INFORMATIE A"]
[]
[]
[]
[]
["Pagina 1",null,null,{"$f":"CONCATENATE(\"JAARSTAAT ZVW \", jaar_id)","v":"JAARSTAAT ZVW 2023"}]
[null,null,null,"SPECIFIEKE INFORMATIE A  2023: DETAILINFORMATIE RVE"]
[null,null,null,{"$f":"IF(naw_uzovi_zorgverzekeraar<>\"0000\",CONCATENATE(UPPER(naw_naam_zorgverzekeraar),\", \",UPPER(naw_plaats_zorgverzekeraar)),\"\")","v":""},null,null,null,null,null,null,null,{"$f":"CONCATENATE(\"UZOVI: \",naw_uzovi_zorgverzekeraar)","v":"UZOVI: 0000"}]
[]
[null,null,null,"SPECIFICATIES INFORMATIE RISICOVEREVENING"]
[null,null,null,"KOSTEN NAAR DEELBIJDRAGE"]
[null,null,null," KOSTEN NAAR DEELBIJDRAGE",null,null,null,null,null,null,"Lasten 2023 inclusief balanspost","Ontvangen en geaccepteerde declaraties m.b.t. 2021 en ouder"]
[]
[null,null,null," Variabele zorgkosten"]
[null,null,null," Vaste zorgkosten "]
[null,null,null," Kosten geneeskundige geestelijke gezondheidszorg"]
[null,null,null," TOTAAL kosten ",null,null,null,null,null,null,{"$f":"SUM(K14:K16)","v":0},{"$f":"SUM(L14:L16)","v":0}]
[]
[null,null,null,"RUBRIEK 02 FARMACEUTISCHE ZORG"]
[null,null,null," CODE 520 - KOSTEN VAN BEPAALDE DURE EXTRAMURALE GENEESMIDDELEN",null,null,null,null,null,null,{"$f":"K$12","v":"Lasten 2023 inclusief balanspost"},{"$f":"L$12","v":"Ontvangen en geaccepteerde declaraties m.b.t. 2021 en ouder"}]
[]
[null,null,null," Kosten van dure extramurale geneesmiddelen (artikel 1, regeling risicoverevening)"]
[]
[null,null,null,"RUBRIEK 06 MEDISCH SPECIALISTISCHE ZORG"]
[null,null,null," CODE 610  - OVERIGE KOSTEN ZIEKENHUISZORG EN CURATIEVE ZORG",null,null,null,null,null,null,{"$f":"K$12","v":"Lasten 2023 inclusief balanspost"},{"$f":"L$12","v":"Ontvangen en geaccepteerde declaraties m.b.t. 2021 en ouder"}]
[]
[null,null,null," Kosten SKION"]
[]
[null,null,null," CODE 612.1  - KOSTEN ADD-ONS DURE GENEESMIDDELEN",null,null,null,null,null,null,{"$f":"K$12","v":"Lasten 2023 inclusief balanspost"},{"$f":"L$12","v":"Ontvangen en geaccepteerde declaraties m.b.t. 2021 en ouder"}]
[]
[null,null,null," Add-ons dure intramurale geneesmiddelen en ozp-stollingsfactoren (artikel 1, regeling risicoverevening)"]
[]
[null,null,null,"RUBRIEK 10 GEESTELIJKE GEZONDHEIDSZORG"]
[null,null,null," CODE 662 - KOSTEN VAN BEPAALDE DURE INTRAMURALE GENEESMIDDELEN",null,null,null,null,null,null,{"$f":"K$12","v":"Lasten 2023 inclusief balanspost"},{"$f":"L$12","v":"Ontvangen en geaccepteerde declaraties m.b.t. 2021 en ouder"}]
[]
[null,null,null," Kosten van dure intramurale geneesmiddelen (artikel 1, regeling risicoverevening)"]
[]
[null,null,null," CODE 666 - KOSTEN VAN BEPAALDE DURE INTRAMURALE GENEESMIDDELEN",null,null,null,null,null,null,{"$f":"K$12","v":"Lasten 2023 inclusief balanspost"},{"$f":"L$12","v":"Ontvangen en geaccepteerde declaraties m.b.t. 2021 en ouder"}]
[]
[null,null,null," Kosten van dure intramurale geneesmiddelen (artikel 1, regeling risicoverevening)"]
[]
[null,null,null,{"$f":"NOW()","v":"2024-01-16T15:35:54.060"},null,null,null,null,null,null,null,null,null,null,null,null,null,null,null,{"$f":"CONCATENATE(\"Specifieke informatie A  2023: detailinformatie RVE, \",LOWER(A6))","v":"Specifieke informatie A  2023: detailinformatie RVE, pagina 1"}]
[]
["Pagina 2",null,null,{"$f":"CONCATENATE(\"JAARSTAAT ZVW \", jaar_id)","v":"JAARSTAAT ZVW 2023"}]
[null,null,null,{"$f":"D7","v":"SPECIFIEKE INFORMATIE A  2023: DETAILINFORMATIE RVE"}]
[null,null,null,{"$f":"IF(naw_uzovi_zorgverzekeraar<>\"0000\",CONCATENATE(UPPER(naw_naam_zorgverzekeraar),\", \",UPPER(naw_plaats_zorgverzekeraar)),\"\")","v":""},null,null,null,null,null,null,null,{"$f":"CONCATENATE(\"UZOVI: \",naw_uzovi_zorgverzekeraar)","v":"UZOVI: 0000"}]
[null,null,null,"SPECIFICATIES INFORMATIE RISICOVEREVENING"]
[null,null,null,"RUBRIEK 15 GRENSOVERSCHRIJDENDE ZORG"]
[null,null,null," CODE 720 - KOSTEN GRENSOVERSCHRIJDENDE ZORG VIA VERZEKERAAR",null,null,null,null,null,null,{"$f":"K$12","v":"Lasten 2023 inclusief balanspost"},{"$f":"L$12","v":"Ontvangen en geaccepteerde declaraties m.b.t. 2021 en ouder"}]
[]
[null,null,null," Variabele zorgkosten"]
[null,null,null," Kosten van geneeskundige geestelijke gezondheidszorg"]
[null,null,null," TOTAAL CODE 720 kosten gemaakt in het buitenland, via verzekeraar",null,null,null,null,null,null,{"$f":"SUM(K51:K52)","v":0},{"$f":"SUM(L51:L52)","v":0}]
[]
[null,null,null," CODE 721 - KOSTEN GRENSOVERSCHRIJDENDE ZORG VIA VERBINDINGSORGAAN",null,null,null,null,null,null,{"$f":"K$12","v":"Lasten 2023 inclusief balanspost"},{"$f":"L$12","v":"Ontvangen en geaccepteerde declaraties m.b.t. 2021 en ouder"}]
[]
[null,null,null," Toepassing verordening  \n of verdrag inzake sociale  \n zekerheid, via CAK ",null," Behandeling in het buitenland met toepassing van artikel 20. \n EG-verordening 883/2004 of overeenkomstige verdragsbepaling"]
[null,null,null,null,null," Kosten gemaakt bij tijdelijk verblijf in het buitenland van Zvw \n verzekerden die wonen in Nederland"]
[null,null,null,null,null," Kosten gemaakt in het buitenland van Zvw verzekerden die wonen  in het buitenland\n"]
[null,null,null," TOTAAL CODE 721 kosten gemaakt in het buitenland, via verbindingsorgaan",null,null,null,null,null,null,{"$f":"SUM(K57:K59)","v":0},{"$f":"SUM(L57:L59)","v":0}]
[]
[null,null,null,"BEREKENDE NOMINALE REKENPREMIES GEDETINEERDEN"]
[null,null,null,null,null,null,null,null,null,null,"BEDRAG"]
[null,null,null," Totaal berekende nominale rekenpremies 2023 tijdens de detentieperiode van verzekerden van 18 jaar en ouder                                                                                                                                                                                                                                                                                                                                                                                                                                                                                                                                                                                         "]
[]
[null,null,null,{"$f":"NOW()","v":"2024-01-16T15:35:54.060"},null,null,null,null,null,null,null,null,null,null,null,null,null,null,null,{"$f":"CONCATENATE(\"Specifieke informatie A  2023: detailinformatie RVE, \",LOWER(A44))","v":"Specifieke informatie A  2023: detailinformatie RVE, pagina 2"}]
[]
["Pagina 3",null,null,{"$f":"CONCATENATE(\"JAARSTAAT ZVW \", jaar_id)","v":"JAARSTAAT ZVW 2023"}]
[null,null,null,{"$f":"D7","v":"SPECIFIEKE INFORMATIE A  2023: DETAILINFORMATIE RVE"}]
[null,null,null,{"$f":"IF(naw_uzovi_zorgverzekeraar<>\"0000\",CONCATENATE(UPPER(naw_naam_zorgverzekeraar),\", \",UPPER(naw_plaats_zorgverzekeraar)),\"\")","v":""},null,null,null,null,null,null,null,null,null,null,null,null,null,null,{"$f":"CONCATENATE(\"UZOVI: \",naw_uzovi_zorgverzekeraar)","v":"UZOVI: 0000"}]
[null,null,null,"SPECIFICATIES INFORMATIE RISICOVEREVENING"]
[]
[null,null,null," KOSTEN NAAR MODELOVEREENKOMST",null,null,null,null,"MODELOVEREENKOMST",null,"MODELOVEREENKOMST",null,"MODELOVEREENKOMST",null,"MODELOVEREENKOMST",null,"MODELOVEREENKOMST",null,"MODELOVEREENKOMST"]
[]
[null,null,null,null,null,null,null,null,"LASTEN 2023 inclusief balanspost ","Ontvangen en geaccepteerde declaraties m.b.t. 2021 en ouder","LASTEN 2023 inclusief balanspost ","Ontvangen en geaccepteerde declaraties m.b.t. 2021 en ouder","LASTEN 2023 inclusief balanspost ","Ontvangen en geaccepteerde declaraties m.b.t. 2021 en ouder","LASTEN 2023 inclusief balanspost ","Ontvangen en geaccepteerde declaraties m.b.t. 2021 en ouder","LASTEN 2023 inclusief balanspost ","Ontvangen en geaccepteerde declaraties m.b.t. 2021 en ouder","LASTEN 2023 inclusief balanspost ","Ontvangen en geaccepteerde declaraties m.b.t. 2021 en ouder"]
[null,null,null,null,null,null,null,null,null,null,null,null,null,"Ontvangen en geaccepteerde declaraties mbt jaar T",null,"Ontvangen en geaccepteerde declaraties mbt jaar T",null,"Ontvangen en geaccepteerde declaraties mbt jaar T",null,"Ontvangen en geaccepteerde declaraties mbt jaar T"]
[null,null,null,"TOTAAL  Variabele zorgkosten"]
[null,null,null,"TOTAAL Rubriek 01 Huisartsenzorg en MDZ"]
[null,null,null,"TOTAAL Rubriek 02 Farmaceutische zorg "]
[null,null,null,"Kostencode 520 - Kosten van bepaalde dure extramurale geneesmiddelen"]
[null,null,null,"TOTAAL Rubriek 03 Verpleging en verzorging "]
[null,null,null,"TOTAAL Rubriek 04 Mondzorg"]
[null,null,null,"TOTAAL Rubriek 05 Verloskundige zorg "]
[null,null,null,"TOTAAL Rubriek 06 Medisch specialistische zorg "]
[null,null,null,"Kostencode 612.1 - Kosten van Add-ons - bepaalde dure intramurale geneesmiddelen, inclusief stollingsmiddelen"]
[null,null,null,"TOTAAL Rubriek 07 Paramedische zorg "]
[null,null,null,"TOTAAL Rubriek 08 Hulpmiddelenzorg "]
[null,null,null,"TOTAAL Rubriek 09 Ziekenvervoer"]
[null,null,null,"TOTAAL Rubriek 11 Geriatrische revalidatiezorg, Eerstelijnsverblijf en Geneeskundige Zorg Specifieke Patiëntengroepen"]
[null,null,null,"TOTAAL Rubriek 12 Kraamzorg"]
[null,null,null,"TOTAAL Rubriek 13 Diverse overige kosten"]
[null,null,null,"Kostencode 703 – Transformatiemiddelen IZA"]
[null,null,null,"TOTAAL Rubriek 15 Grensoverschrijdende zorg "]
[null,null,null,"Kostencode 720 - Kosten via Verzekeraar - Geneeskundige GGZ"]
[null,null,null,"TOTAAL Rubriek 16 Kwaliteitsgelden "]
[null,null,null,null,null,null,null,null,"MODELOVEREENKOMST",null,"MODELOVEREENKOMST",null,"MODELOVEREENKOMST",null,"MODELOVEREENKOMST",null,"MODELOVEREENKOMST",null,"MODELOVEREENKOMST"]
[null,null,null,null,null,null,null,null,{"$f":"IF(I74=\"\",\"\",I74)","v":""},null,{"$f":"IF(K74=\"\",\"\",K74)","v":""},null,{"$f":"IF(M74=\"\",\"\",M74)","v":""},null,{"$f":"IF(O74=\"\",\"\",O74)","v":""},null,{"$f":"IF(Q74=\"\",\"\",Q74)","v":""},null,{"$f":"IF(S74=\"\",\"\",S74)","v":""}]
[null,null,null,null,null,null,null,null,"Bedrag",null,"bedrag",null,"bedrag",null,"bedrag",null,"bedrag",null,"bedrag"]
[null,null,null,"Totale berekende nominale rekenpremies 2023 tijdens de detentieperiode van verzekerden van 18 jaar en ouder"]
[]
[null,null,null,{"$f":"NOW()","v":"2024-01-16T15:35:54.060"},null,null,null,null,null,null,null,null,null,null,null,null,null,null,null,{"$f":"CONCATENATE(\"Specifieke informatie A  2023: detailinformatie RVE, \",LOWER(A68))","v":"Specifieke informatie A  2023: detailinformatie RVE, pagina 3"}]

{"sheet":"Specifieke informatie B","index":6,"n_rows":101,"n_cols":14,"rows_kept":101,"cut":false,"hidden":false,"merged":[[92,3,92,7],[79,3,79,6],[80,3,80,6],[81,3,81,6],[82,3,82,6],[89,3,89,6],[90,3,90,7],[84,3,84,7],[85,3,85,7],[86,3,86,6],[87,3,87,7],[88,3,88,7],[100,6,100,11],[95,3,95,7],[100,3,100,4],[97,3,97,7],[97,8,98,8],[97,9,98,9],[97,10,98,10],[98,3,98,6],[99,3,99,6],[78,3,78,7],[63,3,63,6],[64,3,64,6],[65,3,65,6],[66,3,66,4],[75,3,75,7],[76,3,76,6],[77,3,77,7],[73,7,74,7],[73,8,74,8],[73,9,74,9],[73,10,74,10],[62,3,62,7],[49,3,49,6],[52,3,52,6],[53,3,53,6],[54,3,54,6],[55,3,55,6],[56,3,56,6],[57,3,57,6],[58,3,58,7],[59,3,59,7],[60,3,60,6],[61,3,61,7],[66,6,66,11],[48,3,48,6],[42,7,43,7],[42,8,43,8],[42,10,43,10],[44,3,44,7],[45,3,45,6],[46,3,46,6],[47,3,47,6],[42,9,43,9],[20,3,20,7],[21,3,21,6],[22,3,22,6],[24,3,24,6],[25,3,25,6],[31,3,31,7],[32,3,32,6],[33,3,33,7],[35,3,35,4],[23,3,23,7],[26,3,26,7],[27,3,27,7],[28,3,28,6],[29,3,29,6],[30,3,30,7],[35,5,35,11],[10,7,11,7],[10,8,11,8],[10,9,11,9],[10,10,11,10],[17,3,17,6],[18,3,18,6],[19,3,19,7],[12,3,12,7],[13,3,13,6],[14,3,14,6],[15,3,15,6],[16,3,16,6]]}
[null,null,"INVULSPECIFICATIES SPECIFIEKE INFORMATIE B"]
[]
[]
[]
[]
["Pagina 1",null,null,{"$f":"CONCATENATE(\"JAARSTAAT ZVW \", jaar_id)","v":"JAARSTAAT ZVW 2023"}]
[null,null,null,"SPECIFIEKE INFORMATIE B: KOSTENVERZAMELSTAAT CATASTROFESCHADELAST"]
[null,null,null,{"$f":"IF(naw_uzovi_zorgverzekeraar<>\"0000\",CONCATENATE(UPPER(naw_naam_zorgverzekeraar),\", \",UPPER(naw_plaats_zorgverzekeraar)),\"\")","v":""},null,null,null,null,null,null,{"$f":"CONCATENATE(\"UZOVI: \",naw_uzovi_zorgverzekeraar)","v":"UZOVI: 0000"}]
[null,null,null,"SPECIFICATIES INFORMATIE RISICOVEREVENING"]
[null,null,null,"KOSTENVERZAMELSTAAT CATASTROFESCHADELAST"]
[null,null,null,null,null,null,null,"\ncode","Ontvangen en geaccepteerde declaraties m.b.t. 2021","Ontvangen en geaccepteerde declaraties m.b.t. 2020","TOTAAL ontvangen en geaccepteerde declaraties 2020 en 2021"]
[null,null,null," KOSTENRUBRIEK"]
[null,null,null," 01  HUISARTSENZORG en MDZ"]
[null,null,null," Avond-, nacht- en weekenddiensten",null,null,null,"504   ",null,null,{"$f":"I14+J14","v":0},null,null,""]
[null,null,null," Consulttarieven",null,null,null,"506   ",null,null,0,null,null,""]
[null,null,null," Overige tarieven",null,null,null,"507   ",null,null,0,null,null,""]
[null,null,null," Resultaatbeloning en zorgvernieuwing huisartsen",null,null,null,"515   ",null,null,0,null,null,""]
[null,null,null," Meerkosten COVID-19, indirect",null,null,null,"801.1   ",null,null,0,null,null,""]
[null,null,null," Meerkosten COVID-19, toeslagen",null,null,null,"801.2   ",null,null,0,null,null,""]
[null,null,null," TOTAAL RUBRIEK 01",null,null,null,null,{"$f":"SUM(I14:I19)","v":0},0,0]
[null,null,null," 02 FARMACEUTISCHE ZORG",null,null,null,null,null,null,null,null,null,""]
[null,null,null," Meerkosten COVID-19, indirect",null,null,null,"802.1   ",null,null,{"$f":"J22","v":0},null,null,""]
[null,null,null," TOTAAL RUBRIEK 02",null,null,null,null,{"$f":"SUM(I22:I22)","v":0},0,0]
[null,null,null," 03 VERPLEGING EN VERZORGING ",null,null,null,null,null,null,null,null,null,""]
[null,null,null," Kosten van verpleging en verzorging ",null,null,null,"530   ",null,null,{"$f":"I25+J25","v":0},null,null,""]
[null,null,null," Meerkosten COVID-19, indirect",null,null,null,"803.1   ",null,null,{"$f":"I26+J26","v":0},null,null,""]
[null,null,null," TOTAAL RUBRIEK 03",null,null,null,null,{"$f":"SUM(I25:I26)","v":0},0,0]
[null,null,null," 04  MONDZORG",null,null,null,null,null,null,null,null,null,""]
[null,null,null," Meerkosten COVID-19, indirect",null,null,null,"804.1   ",null,null,{"$f":"J29","v":0},null,null,""]
[null,null,null," Meerkosten COVID-19, toeslagen",null,null,null,"804.2   ",null,null,{"$f":"J30","v":0},null,null,""]
[null,null,null," TOTAAL RUBRIEK 04",null,null,null,null,{"$f":"SUM(I29:I30)","v":0},0,0]
[null,null,null," 05  VERLOSKUNDIGE ZORG",null,null,null,null,null,null,null,null,null,""]
[null,null,null," Meerkosten COVID-19, indirect",null,null,null,"805.1   ",null,null,{"$f":"J33","v":0},null,null,""]
[null,null,null," TOTAAL RUBRIEK 05",null,null,null,null,{"$f":"SUM(I33:I33)","v":0},0,0]
[]
[null,null,null,{"$f":"NOW()","v":"2024-01-16T15:35:54.060"},null,{"$f":"CONCATENATE(\"Specifieke informatie B: kostenverzamelstaat catastrofeschadelast, \",LOWER(A6))","v":"Specifieke informatie B: kostenverzamelstaat catastrofeschadelast, pagina 1"}]
[]
["Pagina 2",null,null,"JAARSTAAT ZVW 2023 "]
[null,null,null,{"$f":"D7","v":"SPECIFIEKE INFORMATIE B: KOSTENVERZAMELSTAAT CATASTROFESCHADELAST"}]
[null,null,null,{"$f":"IF(naw_uzovi_zorgverzekeraar<>\"0000\",CONCATENATE(UPPER(naw_naam_zorgverzekeraar),\", \",UPPER(naw_plaats_zorgverzekeraar)),\"\")","v":""},null,null,null,null,null,null,{"$f":"CONCATENATE(\"UZOVI: \",naw_uzovi_zorgverzekeraar)","v":"UZOVI: 0000"}]
[null,null,null,"SPECIFICATIES INFORMATIE RISICOVEREVENING"]
[null,null,null,"KOSTENVERZAMELSTAAT CATASTROFESCHADELAST - vervolg"]
[null,null,null,null,null,null,null,"\ncode","Ontvangen en geaccepteerde declaraties m.b.t. 2021","Ontvangen en geaccepteerde declaraties m.b.t. 2020","TOTAAL ontvangen en geaccepteerde declaraties 2020 en 2021"]
[null,null,null," KOSTENRUBRIEK"]
[null,null,null," 06  MEDISCH SPECIALISTISCHE ZORG"]
[null,null,null," Kosten add-ons - IC",null,null,null,"612.2",null,null,{"$f":"I46+J46","v":0},null,null,""]
[null,null,null," Integrale kosten van DBC-zorgproduct \n gereguleerde segment  ",null,null,null,"613.1",null,null,{"$f":"I47+J47","v":0},null,null,""]
[null,null,null," Integrale kosten DBC-zorgproduct vrije segment",null,null,null,"615.1",null,null,0,null,null,""]
[null,null,null," Meerkosten COVID-19, indirect",null,null,null,"806.1   ",null,null,0,null,null,""]
[null,null,null," Meerkosten COVID-19, toeslagen",null,null,null,"806.2   ",null,null,0,null,null,""]
[null,null,null," TOTAAL RUBRIEK 06",null,null,null,null,{"$f":"SUM(I46:I50)","v":0},0,0]
[null,null,null," 07  PARAMEDISCHE ZORG",null,null,null,null,null,null,null,null,null,""]
[null,null,null," Kosten fysiotherapie",null,null,null,"620   ",null,null,{"$f":"I53+J53","v":0},null,null,""]
[null,null,null," Kosten oefentherapie Mensendieck/Cesar",null,null,null,"621   ",null,null,{"$f":"I54+J54","v":0},null,null,""]
[null,null,null," Kosten logopedie",null,null,null,"623   ",null,null,{"$f":"I55+J55","v":0},null,null,""]
[null,null,null," Kosten ergotherapie",null,null,null,"624   ",null,null,{"$f":"I56+J56","v":0},null,null,""]
[null,null,null," Kosten dieetadvisering",null,null,null,"625   ",null,null,{"$f":"I57+J57","v":0},null,null,""]
[null,null,null," Meerkosten COVID-19, indirect",null,null,null,"807.1   ",null,null,{"$f":"J58","v":0},null,null,""]
[null,null,null," TOTAAL RUBRIEK 07",null,null,null,null,{"$f":"SUM(I53:I58)","v":0},0,0]
[null,null,null," 08  HULPMIDDELENZORG",null,null,null,null,null,null,null,null,null,""]
[null,null,null," Meerkosten COVID-19, indirect",null,null,null,"808.1   ",null,null,{"$f":"I61+J61","v":0},null,null,""]
[null,null,null," TOTAAL RUBRIEK 08",null,null,null,null,{"$f":"SUM(I61:I61)","v":0},0,0]
[null,null,null," 09  ZIEKENVERVOER",null,null,null,null,null,null,null,null,null,""]
[null,null,null," Kosten vervoer per ambulance/helikopter",null,null,null,"650   ",null,null,{"$f":"I64+J64","v":0},null,null,""]
[null,null,null," Meerkosten COVID-19, indirect",null,null,null,"809.1   ",null,null,{"$f":"I65+J65","v":0},null,null,""]
[null,null,null," TOTAAL RUBRIEK 09",null,null,null,null,{"$f":"SUM(I64:I65)","v":0},0,0]
[null,null,null,{"$f":"NOW()","v":"2024-01-16T15:35:54.060"},null,null,{"$f":"CONCATENATE(\"Specifieke informatie B: kostenverzamelstaat catastrofeschadelast, \",LOWER(A38))","v":"Specifieke informatie B: kostenverzamelstaat catastrofeschadelast, pagina 2"}]
[]
["Pagina 3",null,null,"JAARSTAAT ZVW 2023 "]
[null,null,null,{"$f":"D7","v":"SPECIFIEKE INFORMATIE B: KOSTENVERZAMELSTAAT CATASTROFESCHADELAST"}]
[null,null,null,{"$f":"IF(naw_uzovi_zorgverzekeraar<>\"0000\",CONCATENATE(UPPER(naw_naam_zorgverzekeraar),\", \",UPPER(naw_plaats_zorgverzekeraar)),\"\")","v":""},null,null,null,null,null,{"$f":"CONCATENATE(\"UZOVI: \",naw_uzovi_zorgverzekeraar)","v":"UZOVI: 0000"}]
[null,null,null,"SPECIFICATIES INFORMATIE RISICOVEREVENING"]
[null,null,null,"KOSTENVERZAMELSTAAT CATASTROFESCHADELAST - vervolg"]
[null,null,null,null,null,null,null,"\ncode","Ontvangen en geaccepteerde declaraties m.b.t. 2021","Ontvangen en geaccepteerde declaraties m.b.t. 2020","TOTAAL ontvangen en geaccepteerde declaraties 2020 en 2021"]
[null,null,null," KOSTENRUBRIEK"]
[null,null,null," 10 GENEESKUNDIGE GEESTELIJKE GEZONDHEIDSZORG"]
[null,null,null," Meerkosten COVID-19, indirect",null,null,null,"810.1   ",null,null,{"$f":"I77+J77","v":0},null,null,""]
[null,null,null," TOTAAL RUBRIEK 10",null,null,null,null,{"$f":"SUM(I77:I77)","v":0},0,0]
[null,null,null," 11  GRZ, ELV EN GZSP",null,null,null,null,null,null,null,null,null,""]
[null,null,null," Geriatrische Revalidatiezorg (GRZ)",null,null,null,"670   ",null,null,{"$f":"I80+J80","v":0},null,null,""]
[null,null,null," Eerstelijnsverblijf (ELV)",null,null,null,"671   ",null,null,{"$f":"I81+J81","v":0},null,null,""]
[null,null,null," Meerkosten COVID-19, indirect GRZ",null,null,null,"811.1.1",null,null,{"$f":"I82+J82","v":0},null,null,""]
[null,null,null," Meerkosten COVID-19, indirect ELV",null,null,null,"811.2.1",null,null,{"$f":"I83+J83","v":0},null,null,""]
[null,null,null," Meerkosten COVID-19, indirect GZSP",null,null,null,"811.3.1",null,null,{"$f":"I84+J84","v":0},null,null,""]
[null,null,null," TOTAAL RUBRIEK 11",null,null,null,null,{"$f":"SUM(I80:I84)","v":0},0,0]
[null,null,null," 12  KRAAMZORG",null,null,null,null,null,null,null,null,null,""]
[null,null,null," Meerkosten COVID-19, indirect",null,null,null,"812.1   ",null,null,{"$f":"J87","v":0},null,null,""]
[null,null,null," TOTAAL RUBRIEK 12",null,null,null,null,{"$f":"SUM(I87:I87)","v":0},0,0]
[null,null,null," 13  DIVERSE OVERIGE KOSTEN",null,null,null,null,null,null,null,null,null,""]
[null,null,null," Meerkosten COVID-19, indirect",null,null,null,"813.1   ",null,null,{"$f":"J90","v":0},null,null,""]
[null,null,null," TOTAAL RUBRIEK 13",null,null,null,null,{"$f":"SUM(I90:I90)","v":0},0,0]
[]
[null,null,null,"TOTAAL DIRECTE KOSTEN VOOR COVID-ZORG VOOR COVID-PATIËNTEN",null,null,null,null,{"$f":"SUM(I14:I17,I25,I46:I48,I53:I57,I64:I64,I80,I81)","v":0},{"$f":"SUM(J14:J17,J25,J46:J48,J53:J57,J64:J64,J80,J81)","v":0},{"$f":"SUM(K14:K17,K25,K46:K48,K53:K57,K64:K64,K80,K81)","v":0}]
[null,null,null,"TOTAAL MEERKOSTEN COVID-19, INDIRECT",null,null,null,null,{"$f":"SUM(I18,I22,I26,I29,I33,I49,I58,I61,I65,I77,I82,I83,I84,I87,I90)","v":0},{"$f":"SUM(J18,J22,J26,J29,J33,J49,J58,J61,J65,J77,J82,J83,J84,J87,J90)","v":0},{"$f":"SUM(K18,K22,K26,K29,K33,K49,K58,K61,K65,K77,K82,K83,K84,K87,K90)","v":0}]
[null,null,null,"TOTAAL MEERKOSTEN COVID-19, TOESLAGEN",null,null,null,null,{"$f":"SUM(I19,I30,I50,)","v":0},{"$f":"SUM(J19,J30,J50,)","v":0},{"$f":"SUM(K19,K30,K50,)","v":0}]
[null,null,null," TOTAAL LASTEN   (bruto-schade, definitie ZIN)",null,null,null,null,{"$f":"SUM(I20,I23,I27,I31,I34,I51,I59,I62,I66,I78,I85,I88,I91,)","v":0},{"$f":"SUM(J20,J23,J27,J31,J34,J51,J59,J62,J66,J78,J85,J88,J91,)","v":0},{"$f":"SUM(K20,K23,K27,K31,K34,K51,K59,K62,K66,K78,K85,K88,K91,)","v":0}]
[]
[null,null,null,null,null,null,null,null,"Baten ontvangen m.b.t. 2021","Baten ontvangen m.b.t. 2020","TOTAAL ontvangen baten 2020 en 2021"]
[null,null,null," BATEN ZVW",null,null,null,"code"]
[null,null,null," SCHADE T.L.V. HET VERPLICHT EIGEN RISICO",null,null,null,"915   ",null,null,{"$f":"I100+J100","v":0}]
[null,null,null,{"$f":"NOW()","v":"2024-01-16T15:35:54.060"},null,null,{"$f":"CONCATENATE(\"Specifieke informatie B: kostenverzamelstaat catastrofeschadelast, \",LOWER(A69))","v":"Specifieke informatie B: kostenverzamelstaat catastrofeschadelast, pagina 3"}]

{"sheet":"Specifieke informatie C","index":7,"n_rows":126,"n_cols":12,"rows_kept":126,"cut":false,"hidden":false,"merged":[[22,3,22,6],[18,3,20,6],[18,7,18,8],[18,9,18,10],[19,7,20,7],[19,8,20,8],[19,9,20,9],[19,10,20,10],[19,11,20,11],[21,3,21,6],[125,3,125,4],[116,11,117,11],[118,3,119,4],[118,5,118,9],[119,5,119,9],[120,3,120,9],[121,3,121,9],[35,3,37,6],[35,7,35,8],[35,9,35,10],[36,7,37,7],[36,8,37,8],[36,9,37,9],[36,10,37,10],[36,11,37,11],[38,3,38,6],[39,3,39,6],[40,3,40,6],[41,3,41,6],[42,3,42,6],[49,3,51,6],[49,7,49,8],[49,9,49,10],[50,7,51,7],[50,8,51,8],[102,11,103,11],[104,3,104,9],[105,3,105,9],[106,3,106,9],[109,3,110,9],[109,10,110,10],[109,11,110,11],[111,3,112,4],[94,3,94,9],[95,3,95,9],[96,3,96,9],[97,3,97,9],[98,3,98,9],[100,3,100,9],[102,3,103,9],[102,10,103,10],[60,9,60,10],[60,3,62,4],[60,7,60,8],[99,3,99,9],[113,3,113,9],[69,5,69,6],[68,3,68,6],[69,3,69,4],[90,3,91,9],[84,3,84,4],[90,10,91,10],[28,7,28,11],[63,3,63,4],[61,10,62,10],[31,3,31,6],[29,3,29,6],[50,9,51,9],[50,10,51,10],[50,11,51,11],[52,3,52,6],[53,3,53,6],[54,3,54,6],[55,3,55,6],[56,3,56,6],[60,5,62,6],[61,8,62,8],[92,3,92,9],[93,3,93,9],[114,3,114,9],[116,3,117,9],[116,10,117,10],[57,3,57,6],[11,11,12,11],[28,5,28,6],[33,3,33,6],[30,3,30,6],[11,10,12,10],[11,7,12,7],[26,8,27,8],[26,11,27,11],[25,9,25,10],[25,5,27,6],[13,3,13,6],[25,3,27,4],[26,9,27,9],[14,3,14,6],[15,3,15,6],[26,7,27,7],[61,9,62,9],[112,5,112,9],[90,11,91,11],[61,7,62,7],[10,7,10,8],[10,3,12,6],[11,8,12,8],[11,9,12,9],[10,9,10,10],[111,5,111,9],[32,3,32,6],[28,3,28,4],[25,7,25,8],[26,10,27,10],[43,3,43,4],[63,5,63,6],[64,3,64,6],[65,3,65,6],[73,3,73,6],[74,3,74,6],[63,7,63,11],[72,3,72,6],[66,3,66,6],[67,3,67,6],[71,3,71,6],[69,7,69,11],[61,11,62,11],[70,3,70,6]]}
[null,null,"INVULSPECIFICATIES SPECIFIEKE INFORMATIE C"]
[]
[]
[]
[]
["Pagina 1",null,null,{"$f":"CONCATENATE(\"JAARSTAAT ZVW \", jaar_id)","v":"JAARSTAAT ZVW 2023"}]
[null,null,null,"SPECIFIEKE INFORMATIE C: SPECIFICATIES VAN KOSTEN EN PRODUCTIE"]
[null,null,null,{"$f":"IF(naw_uzovi_zorgverzekeraar<>\"0000\",CONCATENATE(UPPER(naw_naam_zorgverzekeraar),\", \",UPPER(naw_plaats_zorgverzekeraar)),\"\")","v":""},null,null,null,null,null,null,null,{"$f":"CONCATENATE(\"UZOVI: \",naw_uzovi_zorgverzekeraar)","v":"UZOVI: 0000"}]
[null,null,null,"SPECIFICATIES VAN KOSTEN EN PRODUCTIE"]
[null,null,null,"RUBRIEK 06 MEDISCH SPECIALISTISCHE ZORG"]
[null,null,null," CODE 610 - OVERIGE KOSTEN \n ZIEKENHUISZORG EN CURATIEVE ZORG",null,null,null,{"$f":"CONCATENATE(\"LASTEN \",jaar_id)","v":"LASTEN 2023"},null,{"$f":"CONCATENATE(\"LASTEN \",jaar_id-1)","v":"LASTEN 2022"},null,{"$f":"CONCATENATE(\"LASTEN \",jaar_id-2,\" \",\"en ouder\")","v":"LASTEN 2021 en ouder"}]
[null,null,null,null,null,null,null,{"$f":"CONCATENATE(\"LASTEN \",jaar_id,\" inclusief balanspost \")","v":"LASTEN 2023 inclusief balanspost "},{"$f":"CONCATENATE(\"Ontvangen en geaccepteerde declaraties m.b.t. \",jaar_id)","v":"Ontvangen en geaccepteerde declaraties m.b.t. 2023"},{"$f":"CONCATENATE(\"LASTEN \",jaar_id-1,\" inclusief balanspost \")","v":"LASTEN 2022 inclusief balanspost "},{"$f":"CONCATENATE(\"Ontvangen en geaccepteerde declaraties m.b.t. \",jaar_id-1)","v":"Ontvangen en geaccepteerde declaraties m.b.t. 2022"},{"$f":"CONCATENATE(\"Ontvangen en geaccepteerde declaraties m.b.t. \",jaar_id-2, \" en ouder\")","v":"Ontvangen en geaccepteerde declaraties m.b.t. 2021 en ouder"}]
[null,null,null,null,null,null,null,null,"Ontvangen en geaccepteerde declaraties mbt jaar T-1",null,"Ontvangen en geaccepteerde declaraties mbt jaar T-1","Ontvangen en geaccepteerde declaraties mbt jaar T-1"]
[null,null,null," Kosten van eerstelijnsdiagnostiek aangevraagd \n door eerstelijns zorgaanbieders, geleverd door \n huisartsenlaboratoria"]
[null,null,null," Trombosediensten"]
[null,null,null," SKION en NTS"]
[null,null,null," TOTAAL code 610",null,null,null,{"$f":"SUM(H14:H15)","v":0},{"$f":"SUM(I14:I15)","v":0},{"$f":"SUM(J14:J16)","v":0},0,0]
[]
[null,null,null," CODE 610.2\n ",null,null,null,{"$f":"CONCATENATE(\"LASTEN \",jaar_id)","v":"LASTEN 2023"},null,{"$f":"CONCATENATE(\"LASTEN \",jaar_id-1)","v":"LASTEN 2022"},null,{"$f":"CONCATENATE(\"LASTEN \",jaar_id-2,\" \",\"en ouder\")","v":"LASTEN 2021 en ouder"}]
[null,null,null,null,null,null,null,{"$f":"CONCATENATE(\"LASTEN \",jaar_id,\" inclusief balanspost \")","v":"LASTEN 2023 inclusief balanspost "},{"$f":"CONCATENATE(\"Ontvangen en geaccepteerde declaraties m.b.t. \",jaar_id)","v":"Ontvangen en geaccepteerde declaraties m.b.t. 2023"},{"$f":"CONCATENATE(\"LASTEN \",jaar_id-1,\" inclusief balanspost \")","v":"LASTEN 2022 inclusief balanspost "},{"$f":"CONCATENATE(\"Ontvangen en geaccepteerde declaraties m.b.t. \",jaar_id-1)","v":"Ontvangen en geaccepteerde declaraties m.b.t. 2022"},{"$f":"CONCATENATE(\"Ontvangen en geaccepteerde declaraties m.b.t. \",jaar_id-2, \" en ouder\")","v":"Ontvangen en geaccepteerde declaraties m.b.t. 2021 en ouder"}]
[null,null,null,null,null,null,null,null,"Ontvangen en geaccepteerde declaraties mbt jaar T-1",null,"Ontvangen en geaccepteerde declaraties mbt jaar T-1","Ontvangen en geaccepteerde declaraties mbt jaar T-1"]
[null,null,null," Kosten van eerstelijnsdiagnostiek aangevraagd \n door eerstelijns zorgaanbieders, geleverd door \n huisartsenlaboratoria"]
[null,null,null," Trombosediensten"]
[null,null,null," TOTAAL code 610.2",null,null,null,{"$f":"SUM(H22:H23)","v":0},{"$f":"SUM(I22:I23)","v":0},{"$f":"SUM(J22:J23)","v":0},{"$f":"SUM(K22:K23)","v":0},{"$f":"SUM(L22:L23)","v":0}]
[]
[null,null,null," CODE 611 - NAAR INSTELLINGEN",null," ",null,{"$f":"H$11","v":"LASTEN 2023"},null,{"$f":"J$11","v":"LASTEN 2022"},null,{"$f":"L$11","v":"LASTEN 2021 en ouder"}]
[null,null,null,null,null,null,null,{"$f":"H$12","v":"LASTEN 2023 inclusief balanspost "},{"$f":"I$12","v":"Ontvangen en geaccepteerde declaraties m.b.t. 2023"},"LASTEN 2022 inclusief balanspost ","Ontvangen en geaccepteerde declaraties m.b.t. 2022","Ontvangen en geaccepteerde declaraties m.b.t. 2021 en ouder"]
[]
[null,null,null," Overige zorgproducten",null," "]
[null,null,null," Academische ziekenhuizen"]
[null,null,null," Algemene ziekenhuizen"]
[null,null,null," Zelfstandige behandelcentra"]
[null,null,null," Overige zorgaanbieders "]
[null,null,null," TOTAAL code 611",null,null,null,{"$f":"SUM(H30:H33)","v":0},{"$f":"SUM(I30:I33)","v":0},{"$f":"SUM(J30:J33)","v":0},{"$f":"SUM(K30:K33)","v":0},{"$f":"SUM(L30:L33)","v":0}]
[]
[null,null,null,"CODE 612.1 - KOSTEN ADD-ONS                                      DURE GENEESMIDDELEN",null,null,null,{"$f":"H$11","v":"LASTEN 2023"},null,{"$f":"J$11","v":"LASTEN 2022"},null,{"$f":"L$11","v":"LASTEN 2021 en ouder"}]
[null,null,null,null,null,null,null,{"$f":"H$12","v":"LASTEN 2023 inclusief balanspost "},{"$f":"I$12","v":"Ontvangen en geaccepteerde declaraties m.b.t. 2023"},"LASTEN 2022 inclusief balanspost ","Ontvangen en geaccepteerde declaraties m.b.t. 2022","Ontvangen en geaccepteerde declaraties m.b.t. 2021 en ouder"]
[]
[null,null,null," Academische ziekenhuizen"]
[null,null,null," Algemene ziekenhuizen"]
[null,null,null," Zelfstandige behandelcentra"]
[null,null,null," Overige zorgaanbieders "]
[null,null,null," TOTAAL code 612.1",null,null,null,{"$f":"SUM(H39:H42)","v":0},{"$f":"SUM(I39:I42)","v":0},{"$f":"SUM(J39:J42)","v":0},{"$f":"SUM(K39:K42)","v":0},{"$f":"SUM(L39:L42)","v":0}]
[null,null,null,{"$f":"NOW()","v":"2024-01-16T15:35:54.060"},null,null,null,null,null,null,null,{"$f":"CONCATENATE(\"Specifieke informatie C: specificaties van kosten en productie, \",LOWER(A6))","v":"Specifieke informatie C: specificaties van kosten en productie, pagina 1"}]
[]
["Pagina 2",null,null,{"$f":"CONCATENATE(\"JAARSTAAT ZVW \", jaar_id)","v":"JAARSTAAT ZVW 2023"}]
[null,null,null,{"$f":"D7","v":"SPECIFIEKE INFORMATIE C: SPECIFICATIES VAN KOSTEN EN PRODUCTIE"}]
[null,null,null,{"$f":"IF(naw_uzovi_zorgverzekeraar<>\"0000\",CONCATENATE(UPPER(naw_naam_zorgverzekeraar),\", \",UPPER(naw_plaats_zorgverzekeraar)),\"\")","v":""},null,null,null,null,null,null,null,{"$f":"CONCATENATE(\"UZOVI: \",naw_uzovi_zorgverzekeraar)","v":"UZOVI: 0000"}]
[]
[null,null,null,"CODE 612.2 - KOSTEN ADD-ONS  IC",null,null,null,{"$f":"H$11","v":"LASTEN 2023"},null,{"$f":"J$11","v":"LASTEN 2022"},null,{"$f":"L$11","v":"LASTEN 2021 en ouder"}]
[null,null,null,null,null,null,null,{"$f":"H$12","v":"LASTEN 2023 inclusief balanspost "},{"$f":"I$12","v":"Ontvangen en geaccepteerde declaraties m.b.t. 2023"},"LASTEN 2022 inclusief balanspost ","Ontvangen en geaccepteerde declaraties m.b.t. 2022","Ontvangen en geaccepteerde declaraties m.b.t. 2021 en ouder"]
[]
[null,null,null," Academische ziekenhuizen"]
[null,null,null," Algemene ziekenhuizen"]
[null,null,null," Zelfstandige behandelcentra"]
[null,null,null," Overige zorgaanbieders "]
[null,null,null," TOTAAL code 612.2",null,null,null,{"$f":"SUM(H53:H56)","v":0},{"$f":"SUM(I53:I56)","v":0},{"$f":"SUM(J53:J56)","v":0},{"$f":"SUM(K53:K56)","v":0},{"$f":"SUM(L53:L56)","v":0}]
[null,null,null," TOTAAL code 612",null,null,null,{"$f":"SUM(H53:H56)+SUM(H39:H42)","v":0},0,{"$f":"SUM(J53:J56)+SUM(J39:J42)","v":0},{"$f":"SUM(K53:K56)+SUM(K39:K42)","v":0},0]
[]
[null,null,null,"RUBRIEK 06 MEDISCH SPECIALISTISCHE ZORG - vervolg"]
[null,null,null,"DBC-zorgproducten NAAR INSTELLING",null,"Code",null,{"$f":"H$11","v":"LASTEN 2023"},null,{"$f":"J$11","v":"LASTEN 2022"},null,{"$f":"L$11","v":"LASTEN 2021 en ouder"}]
[null,null,null,null,null,null,null,{"$f":"H$12","v":"LASTEN 2023 inclusief balanspost "},{"$f":"I$12","v":"Ontvangen en geaccepteerde declaraties m.b.t. 2023"},"LASTEN 2022 inclusief balanspost ","Ontvangen en geaccepteerde declaraties m.b.t. 2022","Ontvangen en geaccepteerde declaraties m.b.t. 2021 en ouder"]
[]
[null,null,null," Integrale kosten DBC-zorgproduct \n gereguleerde segment",null,"613.1"]
[null,null,null," Academische ziekenhuizen"]
[null,null,null," Algemene ziekenhuizen"]
[null,null,null," Zelfstandige behandelcentra"]
[null,null,null," Overige zorgaanbieders "]
[null,null,null," TOTAAL code 613.1",null,null,null,{"$f":"SUM(H65:H68)","v":0},{"$f":"SUM(I65:I68)","v":0},{"$f":"SUM(J65:J68)","v":0},{"$f":"SUM(K65:K68)","v":0},{"$f":"SUM(L65:L68)","v":0}]
[null,null,null," Integrale kosten DBC-zorgproduct \n vrije segment",null,"615.1"]
[null,null,null," Academische ziekenhuizen"]
[null,null,null," Algemene ziekenhuizen"]
[null,null,null," Zelfstandige behandelcentra"]
[null,null,null," Overige zorgaanbieders "]
[null,null,null," TOTAAL code 615.1",null,null,null,{"$f":"SUM(H71:H74)","v":0},{"$f":"SUM(I71:I74)","v":0},{"$f":"SUM(J71:J74)","v":0},0,{"$f":"SUM(L71:L74)","v":0}]
[]
[]
[]
[]
[]
[]
[]
[]
[]
[null,null,null,{"$f":"NOW()","v":"2024-01-16T15:35:54.060"},null,null,null,null,null,null,null,{"$f":"CONCATENATE(\"Specifieke informatie C: specificaties van kosten en productie, \",LOWER(A46))","v":"Specifieke informatie C: specificaties van kosten en productie, pagina 2"}]
[]
["Pagina 3",null,null,{"$f":"CONCATENATE(\"JAARSTAAT ZVW \", jaar_id)","v":"JAARSTAAT ZVW 2023"}]
[null,null,null,"SPECIFIEKE INFORMATIE C: SPECIFICATIES VAN KOSTEN EN PRODUCTIE"]
[null,null,null,{"$f":"IF(naw_uzovi_zorgverzekeraar<>\"0000\",CONCATENATE(UPPER(naw_naam_zorgverzekeraar),\", \",UPPER(naw_plaats_zorgverzekeraar)),\"\")","v":""},null,null,null,null,null,null,null,{"$f":"CONCATENATE(\"UZOVI: \",naw_uzovi_zorgverzekeraar)","v":"UZOVI: 0000"}]
[null,null,null,"RUBRIEK 13 DIVERSE OVERIGE KOSTEN"]
[null,null,null," CODE 701 - OVERIGE GENEESKUNDIGE ZORG",null,null,null,null,null,null,"Ontvangen en geaccepteerde declaraties mbt jaar 2023","Ontvangen en geaccepteerde declaraties mbt jaar 2022"]
[null,null,null,null,null,null,null,null,null,null,"Ontvangen en geaccepteerde declaraties mbt jaar T","Ontvangen en geaccepteerde declaraties mbt jaar T-1"]
[null,null,null," Geneeskundige individuele zorg bij tuberculose en infectieziekten door GGD'en"]
[null,null,null," Huidtherapie"]
[null,null,null," Orthoptie"]
[null,null,null," Optometrie"]
[null,null,null," Kosten voetzorg bij Diabetes Mellitus type 2"]
[null,null,null," Koemelkallergietest (niet horend bij Multidisciplinaire Zorg) "]
[null,null,null," Regiefunctie complexe wondzorg"]
[null,null,null," ADZ-Parkinsonzorg"]
[null,null,null," TOTAAL code 701",null,null,null,null,null,null,{"$f":"SUM(K93:K100)","v":0},{"$f":"SUM(L93:L99)","v":0}]
[]
[null,null,null," CODE 702 - ZINTUIGLIJK GEHANDICAPTEN",null,null,null,null,null,null,"Ontvangen en geaccepteerde declaraties mbt jaar 2023","Ontvangen en geaccepteerde declaraties mbt jaar 2022"]
[null,null,null,null,null,null,null,null,null,null,"Ontvangen en geaccepteerde declaraties mbt jaar T","Ontvangen en geaccepteerde declaraties mbt jaar T-1"]
[null,null,null," Kosten van zorg ivm visuele beperking "]
[null,null,null," Kosten van zorg ivm auditieve en communicatieve beperking"]
[null,null,null," TOTAAL code 702",null,null,null,null,null,null,{"$f":"SUM(K105:K106)","v":0},{"$f":"SUM(L105:L106)","v":0}]
[]
[null,null,null,"RUBRIEK 15 GRENSOVERSCHRIJDENDE ZORG"]
[null,null,null,"  CODE 720 - KOSTEN GRENSOVERSCHRIJDENDE ZORG VIA VERZEKERAAR",null,null,null,null,null,null,"Ontvangen en geaccepteerde declaraties mbt jaar 2023","Ontvangen en geaccepteerde declaraties mbt jaar 2022"]
[null,null,null,null,null,null,null,null,null,null,"Ontvangen en geaccepteerde declaraties mbt jaar T","Ontvangen en geaccepteerde declaraties mbt jaar T-1"]
[null,null,null," Kosten gemaakt in het buitenland \n van Zvw verzekerden die wonen in \n Nederland",null," Op basis van een contract "]
[null,null,null,null,null," Niet op basis van een contract "]
[null,null,null," Kosten gemaakt in het buitenland van Zvw verzekerden die wonen in het buitenland"]
[null,null,null," TOTAAL code 720",null,null,null,null,null,null,{"$f":"SUM(K112:K114)","v":0},{"$f":"SUM(L112:L114)","v":0}]
[]
[null,null,null,"  CODE 720 - GRENSOVERSCHRIJDENDE ZORG VIA VERZEKERAAR",null,null,null,null,null,null,"Aantal verzekerden mbt 2023","Aantal verzekerden mbt 2022"]
[null,null,null,null,null,null,null,null,null,null,"Ontvangen en geaccepteerde declaraties mbt jaar T","Ontvangen en geaccepteerde declaraties mbt jaar T"]
[null,null,null," Kosten gemaakt in het buitenland \n van Zvw verzekerden die wonen in \n Nederland",null," Op basis van een contract"]
[null,null,null,null,null," Niet op basis van een contract"]
[null,null,null," Kosten gemaakt in het buitenland van Zvw verzekerden die wonen in het buitenland"]
[null,null,null," TOTAAL code 720",null,null,null,null,null,null,{"$f":"SUM(K119:K121)","v":0},{"$f":"SUM(L119:L121)","v":0}]
[]
[]
[]
[null,null,null,{"$f":"NOW()","v":"2024-01-16T15:35:54.060"},null,null,null,null,null,null,null,{"$f":"CONCATENATE(\"Specifieke informatie C: specificaties van kosten en productie, \",LOWER(A87))","v":"Specifieke informatie C: specificaties van kosten en productie, pagina 3"}]

{"sheet":"Contractinformatie","index":8,"n_rows":102,"n_cols":12,"rows_kept":102,"cut":false,"hidden":false,"merged":[[94,3,94,11],[98,3,98,8],[75,3,75,8],[76,3,76,8],[85,3,85,8],[86,3,86,8],[91,3,91,8],[84,3,84,8],[87,3,87,8],[92,3,92,8],[97,3,97,8],[79,3,79,10],[30,3,30,8],[31,3,31,8],[43,3,43,8],[44,3,44,8],[63,3,63,8],[55,3,56,8],[57,3,57,8],[58,3,58,8],[59,3,59,8],[60,3,60,8],[61,3,61,8],[62,3,62,8],[25,9,26,9],[10,11,11,11],[16,3,16,11],[12,3,12,11],[10,10,11,10],[10,9,11,9],[14,3,14,8],[15,3,15,8],[25,3,26,8],[17,3,17,8],[18,3,18,8],[19,3,19,8],[22,3,22,8],[20,3,20,8],[21,3,21,8],[55,11,56,11],[25,10,26,10],[55,10,56,10],[35,11,36,11],[25,11,26,11],[35,10,36,10],[35,9,36,9],[35,3,36,8],[39,3,39,8],[40,3,40,8],[49,3,49,4],[48,3,48,8],[55,9,56,9],[41,3,41,8],[42,3,42,8],[47,3,47,8],[45,3,45,8],[65,3,65,8],[64,3,64,8],[101,3,101,4],[88,3,88,11],[71,11,72,11],[71,10,72,10],[78,5,78,9],[78,3,78,4],[80,10,81,10],[80,11,81,11],[82,3,82,11],[80,9,81,9],[71,9,72,9],[71,3,72,8],[80,3,81,8],[83,3,83,8]]}
[null,null,"INVULSPECIFICATIES SPECIFIEKE INFORMATIE C"]
[]
[]
[]
[]
["Pagina 1",null,null,{"$f":"CONCATENATE(\"JAARSTAAT ZVW \", jaar_id)","v":"JAARSTAAT ZVW 2023"}]
[null,null,null,"SPECIFIEKE INFORMATIE C (CONTRACTINFORMATIE)"]
[null,null,null,{"$f":"IF(naw_uzovi_zorgverzekeraar<>\"0000\",CONCATENATE(UPPER(naw_naam_zorgverzekeraar),\", \",UPPER(naw_plaats_zorgverzekeraar)),\"\")","v":""},null,null,null,null,null,null,null,{"$f":"CONCATENATE(\"UZOVI: \",naw_uzovi_zorgverzekeraar)","v":"UZOVI: 0000"}]
[]
[null,null,null,"CONTRACTINFORMATIE HUISARTSENZORG EN MULTIDISCIPLINAIRE ZORG, rubriek 01"]
[null,null,null,null,null,null,null,null,null,"Lasten inclusief balanspost 2023","Lasten inclusief balanspost 2022","Lasten inclusief balanspost 2021"]
[null,null,null,null,null,null,null,null,null,"Ontvangen en geaccepteerde declaraties mbt jaar T","Ontvangen en geaccepteerde declaraties mbt jaar T","Ontvangen en geaccepteerde declaraties mbt jaar T"]
[null,null,null," Huisartsenzorg, codes 503, 504, 505, 506,507, 515"]
[null,null,null," Gecontracteerde zorg"]
[null,null,null," Niet gecontracteerde zorg"]
[null,null,null," Subtotaal huisartsenzorg",null,null,null,null,null,{"$f":"SUM(J14:J15)","v":0},0,{"$f":"SUM(L14:L15)","v":0}]
[null,null,null," Multidisciplinaire zorg, codes 510 en 516"]
[null,null,null," Gecontracteerde zorg"]
[null,null,null," Niet gecontracteerde zorg"]
[null,null,null," Subtotaal multidisciplinaire zorg",null,null,null,null,null,{"$f":"SUM(J18:J19)","v":0},{"$f":"SUM(K18:K19)","v":0},{"$f":"SUM(L18:L19)","v":0}]
[null,null,null," Meerkosten Corona, indirect en toeslagen, gecontracteerd, niet gecontracteerd"]
[null,null,null," Netto continuïteitsbijdrage Corona, gecontracteerd, niet gecontracteerd"]
[null,null,null," TOTAAL RUBRIEK 01",null,null,null,null,null,{"$f":"SUM(J16,J20,J21,J22)","v":0},{"$f":"SUM(K16,K20,K21,K22)","v":0},0]
[]
[null,null,null,"CONTRACTINFORMATIE VERPLEGING EN VERZORGING, rubriek 03"]
[null,null,null,null,null,null,null,null,null,{"$f":"J11","v":"Lasten inclusief balanspost 2023"},{"$f":"K11","v":"Lasten inclusief balanspost 2022"},"Lasten inclusief balanspost 2021"]
[null,null,null,null,null,null,null,null,null,"Ontvangen en geaccepteerde declaraties mbt jaar T","Ontvangen en geaccepteerde declaraties mbt jaar T","Ontvangen en geaccepteerde declaraties mbt jaar T"]
[null,null,null," Gecontracteerde zorg"]
[null,null,null," Niet gecontracteerde zorg"]
[null,null,null," PGB"]
[null,null,null," Meerkosten Corona, indirect en toeslagen, gecontracteerd, niet gecontracteerd"]
[null,null,null," Netto continuïteitsbijdrage Corona, gecontracteerd, niet gecontracteerd"]
[null,null,null," TOTAAL RUBRIEK 03",null,null,null,null,null,{"$f":"SUM(J28:J32)","v":0},{"$f":"SUM(K28:K32)","v":0},0]
[]
[null,null,null,"CONTRACTINFORMATIE MEDISCH SPECIALISTISCHE ZORG, rubriek 06"]
[null,null,null,null,null,null,null,null,null,{"$f":"J11","v":"Lasten inclusief balanspost 2023"},{"$f":"K11","v":"Lasten inclusief balanspost 2022"},"Lasten inclusief balanspost 2021"]
[null,null,null,null,null,null,null,null,null,"Ontvangen en geaccepteerde declaraties mbt jaar T","Ontvangen en geaccepteerde declaraties mbt jaar T","Ontvangen en geaccepteerde declaraties mbt jaar T"]
[null,null,null," Gecontracteerde zorg: aanneemsom"]
[null,null,null," Gecontracteerde zorg: plafond"]
[null,null,null," Gecontracteerde zorg: nacalculatie bij aanneemsommen en plafondcontracten"]
[null,null,null," Gecontracteerde zorg: open einde contract"]
[null,null,null," Subtotaal gecontracteerde zorg",null,null,null,null,null,{"$f":"SUM(J38:J41)","v":0},{"$f":"SUM(K38:K41)","v":0},{"$f":"SUM(L38:L41)","v":0}]
[null,null,null," Niet gecontracteerde zorg"]
[null,null,null," Meerkosten Corona, indirect en toeslagen, gecontracteerd, niet gecontracteerd"]
[null,null,null," Netto continuïteitsbijdrage Corona, gecontracteerd, niet gecontracteerd"]
[null,null,null," TOTAAL RUBRIEK 06",null,null,null,null,null,{"$f":"SUM(J42:J45)","v":0},{"$f":"SUM(K42:K45)","v":0},0]
[]
[null,null,null,null,null,null,null,null,null,2023,2022,20210]
[null,null,null," Totaal afgesproken maximum omzet plafondcontracten"]
[null,null,null,{"$f":"NOW()","v":"2024-01-16T15:35:54.060"},null,null,null,null,null,null,null,{"$f":"CONCATENATE(\"Contractinformatie, \",LOWER(A6))","v":"Contractinformatie, pagina 1"}]
[]
["Pagina 2",null,null,{"$f":"CONCATENATE(\"JAARSTAAT ZVW \", jaar_id)","v":"JAARSTAAT ZVW 2023"}]
[null,null,null,"SPECIFIEKE INFORMATIE C (CONTRACTINFORMATIE)"]
[null,null,null,{"$f":"IF(naw_uzovi_zorgverzekeraar<>\"0000\",CONCATENATE(UPPER(naw_naam_zorgverzekeraar),\", \",UPPER(naw_plaats_zorgverzekeraar)),\"\")","v":""},null,null,null,null,null,null,null,{"$f":"CONCATENATE(\"UZOVI: \",naw_uzovi_zorgverzekeraar)","v":"UZOVI: 0000"}]
[null,null,null,"CONTRACTINFORMATIE GGZ, rubriek 10"]
[null,null,null,null,null,null,null,null,null,{"$f":"J11","v":"Lasten inclusief balanspost 2023"},{"$f":"K11","v":"Lasten inclusief balanspost 2022"},{"$f":"L11","v":"Lasten inclusief balanspost 2021"}]
[null,null,null,null,null,null,null,null,null,"Ontvangen en geaccepteerde declaraties mbt jaar T","Ontvangen en geaccepteerde declaraties mbt jaar T","Ontvangen en geaccepteerde declaraties mbt jaar T"]
[null,null,null," Gecontracteerde zorg: aanneemsom"]
[null,null,null," Gecontracteerde zorg: plafond"]
[null,null,null," Gecontracteerde zorg: nacalculatie bij aanneemsommen en plafondcontracten"]
[null,null,null," Gecontracteerde zorg: open einde contract"]
[null,null,null," Subtotaal gecontracteerde zorg",null,null,null,null,null,{"$f":"SUM(J58:J61)","v":0},{"$f":"SUM(K58:K61)","v":0},{"$f":"SUM(L58:L61)","v":0}]
[null,null,null," Niet gecontracteerde zorg"]
[null,null,null," Meerkosten Corona, indirect en toeslagen, gecontracteerd, niet gecontracteerd"]
[null,null,null," Netto continuïteitsbijdrage Corona, gecontracteerd, niet gecontracteerd"]
[null,null,null," TOTAAL RUBRIEK 10",null,null,null,null,null,{"$f":"SUM(J62:J65)","v":0},{"$f":"SUM(K62:K65)","v":0},0]
[]
[null,null,null,null,null,null,null,null,null,{"$f":"J48","v":2023},{"$f":"K48","v":2022},{"$f":"L48","v":20210}]
[null,null,null," Totaal afgesproken maximum omzet plafondcontracten"]
[]
[null,null,null,"CONTRACTINFORMATIE ZINTUIGLIJK GEHANDICAPTEN, code 702"]
[null,null,null,null,null,null,null,null,null,{"$f":"J11","v":"Lasten inclusief balanspost 2023"},{"$f":"K11","v":"Lasten inclusief balanspost 2022"},{"$f":"L11","v":"Lasten inclusief balanspost 2021"}]
[null,null,null,null,null,null,null,null,null,"Ontvangen en geaccepteerde declaraties mbt jaar T","Ontvangen en geaccepteerde declaraties mbt jaar T","Ontvangen en geaccepteerde declaraties mbt jaar T"]
[null,null,null," Gecontracteerde zorg"]
[null,null,null," Niet gecontracteerde zorg"]
[null,null,null," Meerkosten Corona, indirect en toeslagen, gecontracteerd, niet gecontracteerd"]
[null,null,null," Netto continuïteitsbijdrage Corona, gecontracteerd, niet gecontracteerd"]
[null,null,null," TOTAAL CODE 702",null,null,null,null,null,{"$f":"SUM(J74:J77)","v":0},{"$f":"SUM(K74:K77)","v":0},0]
[]
[null,null,null,"CONTRACTINFORMATIE GERIATRISCHE REVALIDATIE, EERSTELIJNSVERBLIJF EN GENEESKUNDIGE ZORG SPECIFIEKE PATIENTGROEPEN, rubriek 11"]
[null,null,null,null,null,null,null,null,null,{"$f":"J11","v":"Lasten inclusief balanspost 2023"},{"$f":"K11","v":"Lasten inclusief balanspost 2022"},{"$f":"L11","v":"Lasten inclusief balanspost 2021"}]
[null,null,null,null,null,null,null,null,null,"Ontvangen en geaccepteerde declaraties mbt jaar T","Ontvangen en geaccepteerde declaraties mbt jaar T","Ontvangen en geaccepteerde declaraties mbt jaar T"]
[null,null,null," Geriatrische Revalidatie, code 670"]
[null,null,null," Gecontracteerde zorg"]
[null,null,null," Niet gecontracteerde zorg"]
[null,null,null," Meerkosten Corona, indirect en toeslagen, gecontracteerd, niet gecontracteerd"]
[null,null,null," Netto continuïteitsbijdrage Corona, gecontracteerd, niet gecontracteerd"]
[null,null,null," Subtotaal Geriatrische Revalidatie ",null,null,null,null,null,{"$f":"SUM(J84:J87)","v":0},{"$f":"SUM(K84:K87)","v":0},0]
[null,null,null," Eerstelijnsverblijf, code 671"]
[null,null,null," Gecontracteerde zorg"]
[null,null,null," Niet gecontracteerde zorg"]
[null,null,null," Meerkosten Corona, indirect en toeslagen, gecontracteerd, niet gecontracteerd"]
[null,null,null," Netto continuïteitsbijdrage Corona, gecontracteerd, niet gecontracteerd"]
[null,null,null," Subtotaal Eerstelijnsverblijf ",null,null,null,null,null,{"$f":"SUM(J90:J93)","v":0},{"$f":"SUM(K90:K93)","v":0},0]
[null,null,null," Geneeskundige Zorg Specifieke Patiëntgroepen, code 672"]
[null,null,null," Gecontracteerde zorg"]
[null,null,null," Niet gecontracteerde zorg"]
[null,null,null," Meerkosten Corona, indirect en toeslagen, gecontracteerd, niet gecontracteerd"]
[null,null,null," Netto continuïteitsbijdrage Corona, gecontracteerd, niet gecontracteerd"]
[null,null,null," Subtotaal Geneeskundige Zorg Specifieke Patiëntgroepen",null,null,null,null,null,{"$f":"SUM(J96:J99)","v":0},{"$f":"SUM(K96:K99)","v":0},0]
[null,null,null," TOTAAL RUBRIEK 11",null,null,null,null,null,{"$f":"SUM(J88,J94,J100)","v":0},{"$f":"SUM(K88,K94,K100)","v":0},0]
[null,null,null,{"$f":"NOW()","v":"2024-01-16T15:35:54.060"},null,null,null,null,null,null,null,{"$f":"CONCATENATE(\"Contractinformatie, \",LOWER(A52))","v":"Contractinformatie, pagina 2"}]

{"sheet":"Controleoverzicht","index":9,"n_rows":252,"n_cols":12,"rows_kept":252,"cut":false,"hidden":false,"merged":[[176,11,177,11],[176,9,177,9],[176,10,177,10],[164,3,164,8],[165,3,165,8],[105,10,106,10],[83,11,84,11],[91,3,91,9],[88,3,88,9],[86,3,86,9],[94,3,94,9],[100,3,100,8],[97,3,97,9],[92,3,92,9],[89,3,89,9],[207,3,207,8],[200,3,200,8],[201,3,201,8],[188,3,188,8],[189,3,189,8],[124,3,124,8],[122,3,122,8],[123,3,123,8],[150,3,150,8],[160,3,160,8],[205,3,205,8],[179,3,179,8],[180,3,180,8],[182,3,182,8],[178,3,178,8],[159,3,159,8],[157,3,157,8],[158,3,158,8],[128,3,128,8],[181,3,181,8],[194,3,194,8],[206,3,206,8],[25,3,25,8],[110,3,110,8],[71,3,71,9],[87,3,87,9],[63,3,63,9],[93,3,93,9],[37,3,37,9],[35,3,35,9],[42,3,42,9],[38,3,38,9],[52,3,52,9],[34,3,34,9],[41,3,41,9],[27,3,28,9],[40,3,40,9],[32,3,32,9],[36,3,36,9],[99,3,99,8],[85,3,85,9],[98,3,98,8],[107,3,107,8],[27,11,28,11],[186,11,187,11],[204,3,204,8],[193,3,193,8],[186,9,187,9],[186,10,187,10],[198,10,199,10],[198,11,199,11],[202,3,202,8],[190,3,190,8],[186,3,187,8],[198,9,199,9],[191,3,191,8],[192,3,192,8],[195,3,195,8],[119,11,120,11],[119,9,120,9],[119,10,120,10],[119,3,120,8],[129,3,129,8],[176,3,177,8],[161,3,161,8],[162,3,162,8],[163,3,163,8],[203,3,203,8],[198,3,199,8],[105,11,106,11],[24,3,24,8],[11,3,11,8],[15,3,15,8],[17,3,18,8],[13,10,14,10],[22,11,23,11],[22,10,23,10],[22,9,23,9],[22,3,23,8],[20,3,20,8],[50,11,51,11],[70,3,70,9],[54,3,54,9],[53,3,53,9],[59,3,59,9],[62,3,62,9],[61,3,61,9],[64,3,64,9],[65,3,65,9],[66,3,66,9],[102,3,102,9],[27,10,28,10],[57,3,57,9],[43,3,43,9],[33,3,33,9],[29,3,29,9],[31,3,31,9],[50,10,51,10],[30,3,30,9],[183,3,183,8],[101,3,101,8],[105,9,106,9],[96,3,96,9],[112,3,112,8],[155,3,156,8],[149,3,149,8],[121,3,121,8],[83,10,84,10],[9,11,10,11],[9,9,10,9],[13,9,14,9],[9,3,10,8],[9,10,10,10],[17,10,18,10],[17,9,18,9],[19,3,19,8],[13,3,14,8],[17,11,18,11],[13,11,14,11],[39,3,39,9],[50,3,51,9],[55,3,55,9],[56,3,56,9],[72,3,72,9],[90,3,90,9],[111,3,111,8],[109,3,109,8],[105,3,106,8],[108,3,108,8],[60,3,60,9],[58,3,58,9],[67,3,67,9],[68,3,68,9],[69,3,69,9],[125,3,125,8],[126,3,126,8],[127,3,127,8],[74,3,74,9],[75,3,75,9],[76,3,76,9],[73,3,73,9],[83,3,84,9],[95,3,95,9],[155,10,156,10],[155,9,156,9],[152,3,152,8],[146,11,147,11],[146,10,147,10],[153,3,153,8],[151,3,151,8],[146,3,147,8],[146,9,147,9],[148,3,148,8],[155,11,156,11],[224,11,225,11],[247,3,247,7],[226,3,226,7],[227,3,227,7],[228,3,228,7],[229,3,229,7],[230,3,230,7],[231,3,231,7],[232,3,232,7],[237,3,237,7],[238,3,238,7],[239,3,239,7],[240,3,240,7],[241,3,241,7],[242,3,242,7],[243,3,243,7],[240,9,240,10],[241,9,241,10],[242,9,242,10],[243,9,243,10],[245,3,246,7],[245,8,246,8],[245,9,246,10],[245,11,246,11],[248,3,248,7],[224,9,225,10],[247,9,247,10],[226,9,226,10],[227,9,227,10],[228,9,228,10],[229,9,229,10],[230,9,230,10],[231,9,231,10],[232,9,232,10],[233,9,233,10],[234,9,234,10],[235,9,235,10],[236,9,236,10],[237,9,237,10],[238,9,238,10],[239,9,239,10],[248,9,248,10],[224,3,225,7],[224,8,225,8],[233,3,233,7],[234,3,234,7],[235,3,235,7],[236,3,236,7]]}
[null,null,"SPECIFICATIES CONTROLEOVERZICHT"]
[]
[]
[]
[]
["Pagina 1",null,null,{"$f":"CONCATENATE(\"JAARSTAAT ZVW \", jaar_id)","v":"JAARSTAAT ZVW 2023"}]
[null,null,null,"CONTROLEOVERZICHT"]
[null,null,null,{"$f":"IF(naw_uzovi_zorgverzekeraar<>\"0000\",CONCATENATE(UPPER(naw_naam_zorgverzekeraar),\", \",UPPER(naw_plaats_zorgverzekeraar)),\"\")","v":""},null,null,null,null,null,null,null,{"$f":"CONCATENATE(\"UZOVI: \",naw_uzovi_zorgverzekeraar)","v":"UZOVI: 0000"}]
[null,null,null,"SPECIFIEKE INFORMATIE 2023 EN A"]
[null,null,null," SPECIFICATIES KOSTEN NAAR DEELBIJDRAGE",null,null,null,null,null,"Lasten 2023 inclusief balanspost","Kosten naar deelbijdrage","Verschil"]
[]
[null,null,null," Totaal kosten naar deelbijdrage (totaal lasten t/m rubriek 16) - \n inclusief balanspost",null,null,null,null,null,{"$f":"Kostenverzamelstaat!I145","v":0},{"$f":"'Specifieke informatie A'!K17","v":0},{"$f":"IF(J12<>K12,J12-K12,\"\")","v":""}]
[]
[null,null,null," SPECIFICATIES KOSTEN NAAR DEELBIJDRAGE",null,null,null,null,null,"Ontvangen en \ngeaccepteerde \ndeclaraties mbt \n2021 en ouder","Kosten naar deelbijdrage","Verschil"]
[]
[null,null,null," Totaal kosten naar deelbijdrage (totaal lasten t/m rubriek 16)",null,null,null,null,null,{"$f":"Kostenverzamelstaat!M145","v":0},{"$f":"'Specifieke informatie A'!L17","v":0},{"$f":"IF(J16<>K16,J16-K16,\"\")","v":""}]
[]
[null,null,null," KOSTEN PER CODENUMMER - LASTEN 2023 INCLUSIEF BALANSPOST",null,null,null,null,null,"Volgens\nkostenver- \nzamelstaat","Volgens\ndetail- \nspecificatie ","Verschil"]
[]
[null,null,null," 720 Grensoverschrijdende zorg -Kosten via verzekeraar",null,null,null,null,null,{"$f":"Kostenverzamelstaat!I139","v":0},{"$f":"'Specifieke informatie A'!K53","v":0},{"$f":"IF(J20<>K20,J20-K20,\"\")","v":""}]
[null,null,null," 721 Grensoverschrijdende zorg - Kosten via verbindingsorgaan",null,null,null,null,null,{"$f":"Kostenverzamelstaat!I140","v":0},{"$f":"'Specifieke informatie A'!K60","v":0},{"$f":"IF(J21<>K21,J21-K21,\"\")","v":""}]
[]
[null,null,null," KOSTEN PER CODENUMMER - ONTVANGEN EN GEACCEPTEERDE \n                                            DECLARATIES MBT 2021 EN OUDER",null,null,null,null,null,"Volgens\nkostenver- \nzamelstaat","Volgens\ndetail- \nspecificatie ","Verschil"]
[]
[null,null,null," 720 Grensoverschrijdende zorg -Kosten via verzekeraar",null,null,null,null,null,{"$f":"Kostenverzamelstaat!M139","v":0},{"$f":"'Specifieke informatie A'!L53","v":0},{"$f":"IF(J25<>K25,J25-K25,\"\")","v":""}]
[null,null,null," 721 Grensoverschrijdende zorg - Kosten via verbindingsorgaan",null,null,null,null,null,{"$f":"Kostenverzamelstaat!M140","v":0},{"$f":"'Specifieke informatie A'!L60","v":0},{"$f":"IF(J26<>K26,J26-K26,\"\")","v":""}]
[]
[null,null,null," KOSTENVERZAMELSTAAT",null,null,null,null,null,null,"Kosten balanspost mbt 2023","Kosten balanspost mbt 2022"]
[]
[null,null,null," 503 Bijzondere betalingen",null,null,null,null,null,null,{"$f":"Kostenverzamelstaat!I16-Kostenverzamelstaat!J16","v":0},{"$f":"Kostenverzamelstaat!K16-Kostenverzamelstaat!L16","v":0}]
[null,null,null," 504 Avond-, nacht- en weekenddiensten",null,null,null,null,null,null,{"$f":"Kostenverzamelstaat!I17-Kostenverzamelstaat!J17","v":0},{"$f":"Kostenverzamelstaat!K17-Kostenverzamelstaat!L17","v":0}]
[null,null,null," 505 Inschrijftarieven",null,null,null,null,null,null,{"$f":"Kostenverzamelstaat!I18-Kostenverzamelstaat!J18","v":0},{"$f":"Kostenverzamelstaat!K18-Kostenverzamelstaat!L18","v":0}]
[null,null,null," 506 Consulttarieven",null,null,null,null,null,null,{"$f":"Kostenverzamelstaat!I19-Kostenverzamelstaat!J19","v":0},{"$f":"Kostenverzamelstaat!K19-Kostenverzamelstaat!L19","v":0}]
[null,null,null," 507 Overige tarieven",null,null,null,null,null,null,{"$f":"Kostenverzamelstaat!I20-Kostenverzamelstaat!J20","v":0},{"$f":"Kostenverzamelstaat!K20-Kostenverzamelstaat!L20","v":0}]
[null,null,null," 510 Multidisciplinaire zorg ",null,null,null,null,null,null,{"$f":"Kostenverzamelstaat!I21-Kostenverzamelstaat!J21","v":0},{"$f":"Kostenverzamelstaat!K21-Kostenverzamelstaat!L21","v":0}]
[null,null,null," 515 Resultaatbeloning en zorgvernieuwing huisartsen",null,null,null,null,null,null,{"$f":"Kostenverzamelstaat!I22-Kostenverzamelstaat!J22","v":0},{"$f":"Kostenverzamelstaat!K22-Kostenverzamelstaat!L22","v":0}]
[null,null,null," 516 Resultaatbeloning en zorgvernieuwing MDZ",null,null,null,null,null,null,{"$f":"Kostenverzamelstaat!I23-Kostenverzamelstaat!J23","v":0},{"$f":"Kostenverzamelstaat!K23-Kostenverzamelstaat!L23","v":0}]
[null,null,null," 520 Farmaceutische hulp",null,null,null,null,null,null,{"$f":"Kostenverzamelstaat!I27-Kostenverzamelstaat!J27","v":0},{"$f":"Kostenverzamelstaat!K27-Kostenverzamelstaat!L27","v":0}]
[null,null,null," 530 Kosten van verpleging en verzorging",null,null,null,null,null,null,{"$f":"Kostenverzamelstaat!I31-Kostenverzamelstaat!J31","v":0},{"$f":"Kostenverzamelstaat!K29-Kostenverzamelstaat!L29","v":0}]
[null,null,null," 803.1 Meerkosten COVID-19, indirect",null,null,null,null,null,null,null,{"$f":"Kostenverzamelstaat!K32-Kostenverzamelstaat!L32","v":0}]
[null,null,null," 545 Kosten specialisten mondziekten en kaakchirurgie",null,null,null,null,null,null,{"$f":"Kostenverzamelstaat!I60-Kostenverzamelstaat!J60","v":0},{"$f":"Kostenverzamelstaat!K60-Kostenverzamelstaat!L60","v":0}]
[null,null,null," 560.1 Kosten mondzorg volwassen verzekerden",null,null,null,null,null,null,{"$f":"Kostenverzamelstaat!I36-Kostenverzamelstaat!J36","v":0},{"$f":"Kostenverzamelstaat!K36-Kostenverzamelstaat!L36","v":0}]
[null,null,null," 560.2 Kosten mondzorg jeugdige verzekerden",null,null,null,null,null,null,{"$f":"Kostenverzamelstaat!I37-Kostenverzamelstaat!J37","v":0},{"$f":"Kostenverzamelstaat!K37-Kostenverzamelstaat!L37","v":0}]
[null,null,null," 561 Kosten gebitsprothesen",null,null,null,null,null,null,{"$f":"Kostenverzamelstaat!I38-Kostenverzamelstaat!J38","v":0},{"$f":"Kostenverzamelstaat!K38-Kostenverzamelstaat!L38","v":0}]
[null,null,null,{"$f":"NOW()","v":"2024-01-16T15:35:54.060"},null,null,null,null,null,null,null,{"$f":"CONCATENATE(\"Controleoverzicht \",LOWER(A6))","v":"Controleoverzicht pagina 1"}]
[]
["Pagina 2",null,null,{"$f":"CONCATENATE(\"JAARSTAAT ZVW \", jaar_id)","v":"JAARSTAAT ZVW 2023"}]
[null,null,null,"CONTROLEOVERZICHT"]
[null,null,null,{"$f":"IF(naw_uzovi_zorgverzekeraar<>\"0000\",CONCATENATE(UPPER(naw_naam_zorgverzekeraar),\", \",UPPER(naw_plaats_zorgverzekeraar)),\"\")","v":""},null,null,null,null,null,null,null,{"$f":"CONCATENATE(\"UZOVI: \",naw_uzovi_zorgverzekeraar)","v":"UZOVI: 0000"}]
[null,null,null,"SPECIFIEKE INFORMATIE 2023 EN A - vervolg"]
[null,null,null," KOSTENVERZAMELSTAAT",null,null,null,null,null,null,{"$f":"K28","v":"Kosten balanspost mbt 2023"},{"$f":"L28","v":"Kosten balanspost mbt 2022"}]
[]
[null,null,null," 580 Kosten verloskundige hulp door verloskundigen",null,null,null,null,null,null,{"$f":"Kostenverzamelstaat!I42-Kostenverzamelstaat!J42","v":0},{"$f":"Kostenverzamelstaat!K42-Kostenverzamelstaat!L42","v":0}]
[null,null,null," 582 Kosten Integrale geboortezorg ",null,null,null,null,null,null,{"$f":"Kostenverzamelstaat!I43-Kostenverzamelstaat!J43","v":0},{"$f":"Kostenverzamelstaat!K43-Kostenverzamelstaat!L43","v":0}]
[null,null,null," 610 Overige kosten ziekenhuiszorg en curatieve zorg",null,null,null,null,null,null,null,{"$f":"Kostenverzamelstaat!K61-Kostenverzamelstaat!L61","v":0}]
[null,null,null," 610.1  NTS",null,null,null,null,null,null,{"$f":"Kostenverzamelstaat!I62-Kostenverzamelstaat!J62","v":0}]
[null,null,null," 610.2  Eerstelijnsdiagnostiek aangevraagd door eerstelijnszorg-aanbieders geleverd door huisartsenlaboratoria en Trombosediensten",null,null,null,null,null,null,{"$f":"Kostenverzamelstaat!I63-Kostenverzamelstaat!J63","v":0}]
[null,null,null," 611 Overige zorgproducten",null,null,null,null,null,null,{"$f":"Kostenverzamelstaat!I64-Kostenverzamelstaat!J64","v":0},{"$f":"Kostenverzamelstaat!K64-Kostenverzamelstaat!L64","v":0}]
[null,null,null," 612.1 Kosten addons - Dure geneesmiddelen",null,null,null,null,null,null,{"$f":"Kostenverzamelstaat!I65-Kostenverzamelstaat!J65","v":0},{"$f":"Kostenverzamelstaat!K65-Kostenverzamelstaat!L65","v":0}]
[null,null,null," 612.2  Kosten add-ons - IC",null,null,null,null,null,null,{"$f":"Kostenverzamelstaat!I66-Kostenverzamelstaat!J66","v":0},{"$f":"Kostenverzamelstaat!K66-Kostenverzamelstaat!L66","v":0}]
[null,null,null," 613.1 Integrale kosten DBC-zorgproduct gereguleerde segment",null,null,null,null,null,null,{"$f":"Kostenverzamelstaat!I67-Kostenverzamelstaat!J67","v":0},{"$f":"Kostenverzamelstaat!K67-Kostenverzamelstaat!L67","v":0}]
[null,null,null," 615.1 Integrale kosten DBC-zorgproduct vrije segment",null,null,null,null,null,null,{"$f":"Kostenverzamelstaat!I68-Kostenverzamelstaat!J68","v":0},{"$f":"Kostenverzamelstaat!K68-Kostenverzamelstaat!L68","v":0}]
[null,null,null," 619 Kosten en honoraria extramuraal werkende specialisten",null,null,null,null,null,null,{"$f":"Kostenverzamelstaat!I69-Kostenverzamelstaat!J69","v":0},{"$f":"Kostenverzamelstaat!K69-Kostenverzamelstaat!L69","v":0}]
[null,null,null," 620 Kosten fysiotherapie",null,null,null,null,null,null,{"$f":"Kostenverzamelstaat!I75-Kostenverzamelstaat!J75","v":0},{"$f":"Kostenverzamelstaat!K75-Kostenverzamelstaat!L75","v":0}]
[null,null,null," 621 Kosten oefentherapie Mensendieck/Cesar",null,null,null,null,null,null,{"$f":"Kostenverzamelstaat!I76-Kostenverzamelstaat!J76","v":0},{"$f":"Kostenverzamelstaat!K76-Kostenverzamelstaat!L76","v":0}]
[null,null,null," 623 Kosten logopedie",null,null,null,null,null,null,{"$f":"Kostenverzamelstaat!I77-Kostenverzamelstaat!J77","v":0},{"$f":"Kostenverzamelstaat!K77-Kostenverzamelstaat!L77","v":0}]
[null,null,null," 624 Kosten ergotherapie",null,null,null,null,null,null,{"$f":"Kostenverzamelstaat!I78-Kostenverzamelstaat!J78","v":0},{"$f":"Kostenverzamelstaat!K78-Kostenverzamelstaat!L78","v":0}]
[null,null,null," 625 Kosten dieetadvisering",null,null,null,null,null,null,{"$f":"Kostenverzamelstaat!I79-Kostenverzamelstaat!J79","v":0},{"$f":"Kostenverzamelstaat!K79-Kostenverzamelstaat!L79","v":0}]
[null,null,null," 626  Gecombineerde Leefstijl Interventie (GLI)",null,null,null,null,null,null,{"$f":"Kostenverzamelstaat!I80-Kostenverzamelstaat!J80","v":0},{"$f":"Kostenverzamelstaat!K80-Kostenverzamelstaat!L80","v":0}]
[null,null,null," 640 Hulpmiddelen",null,null,null,null,null,null,{"$f":"Kostenverzamelstaat!I84-Kostenverzamelstaat!J84","v":0},{"$f":"Kostenverzamelstaat!K84-Kostenverzamelstaat!L84","v":0}]
[null,null,null," 650 Kosten vervoer per ambulance/helikopter",null,null,null,null,null,null,{"$f":"Kostenverzamelstaat!I88-Kostenverzamelstaat!J88","v":0},{"$f":"Kostenverzamelstaat!K88-Kostenverzamelstaat!L88","v":0}]
[null,null,null," 650.1 Opbrengstenverrekeningen regionale ambulancevoorzieningen ",null,null,null,null,null,null,{"$f":"Kostenverzamelstaat!I89-Kostenverzamelstaat!J89","v":0},{"$f":"Kostenverzamelstaat!K89-Kostenverzamelstaat!L89","v":0}]
[null,null,null," 651 Kosten vervoer per openbaar vervoer, taxi en eigen auto",null,null,null,null,null,null,{"$f":"Kostenverzamelstaat!I90-Kostenverzamelstaat!J90","v":0},{"$f":"Kostenverzamelstaat!K90-Kostenverzamelstaat!L90","v":0}]
[null,null,null," 666 Kosten specialistische GGZ met verblijf",null,null,null,null,null,null,{"$f":"Kostenverzamelstaat!I111-Kostenverzamelstaat!J111","v":0},{"$f":"Kostenverzamelstaat!K111-Kostenverzamelstaat!L111","v":0}]
[null,null,null," 667 Kosten specialistische GGZ zonder verblijf",null,null,null,null,null,null,{"$f":"Kostenverzamelstaat!I112-Kostenverzamelstaat!J112","v":0},{"$f":"Kostenverzamelstaat!K112-Kostenverzamelstaat!L112","v":0}]
[null,null,null," 668 Kosten overige prestaties GGZ",null,null,null,null,null,null,{"$f":"Kostenverzamelstaat!I113-Kostenverzamelstaat!J113","v":0},{"$f":"Kostenverzamelstaat!K113-Kostenverzamelstaat!L113","v":0}]
[null,null,null," 810.1 Meerkosten COVID-19, indirect",null,null,null,null,null,null,null,{"$f":"Kostenverzamelstaat!K114-Kostenverzamelstaat!L114","v":0}]
[null,null,null,{"$f":"NOW()","v":"2024-01-16T15:35:54.060"},null,null,null,null,null,null,null,{"$f":"CONCATENATE(\"Controleoverzicht \",LOWER(A47))","v":"Controleoverzicht pagina 2"}]
[]
["Pagina 3",null,null,{"$f":"CONCATENATE(\"JAARSTAAT ZVW \", jaar_id)","v":"JAARSTAAT ZVW 2023"}]
[null,null,null,"CONTROLEOVERZICHT"]
[null,null,null,{"$f":"IF(naw_uzovi_zorgverzekeraar<>\"0000\",CONCATENATE(UPPER(naw_naam_zorgverzekeraar),\", \",UPPER(naw_plaats_zorgverzekeraar)),\"\")","v":""},null,null,null,null,null,null,null,{"$f":"CONCATENATE(\"UZOVI: \",naw_uzovi_zorgverzekeraar)","v":"UZOVI: 0000"}]
[null,null,null,"SPECIFIEKE INFORMATIE 2023 EN A - vervolg"]
[null,null,null," KOSTENVERZAMELSTAAT",null,null,null,null,null,null,{"$f":"K28","v":"Kosten balanspost mbt 2023"},{"$f":"L28","v":"Kosten balanspost mbt 2022"}]
[]
[null,null,null," 670 Geriatische revalidatiezorg",null,null,null,null,null,null,{"$f":"Kostenverzamelstaat!I118-Kostenverzamelstaat!J118","v":0},{"$f":"Kostenverzamelstaat!K118-Kostenverzamelstaat!L118","v":0}]
[null,null,null," 811.1.1 Meerkosten Corona, indirect GRZ",null,null,null,null,null,null,null,{"$f":"Kostenverzamelstaat!K119-Kostenverzamelstaat!L119","v":0}]
[null,null,null," 671 Eerstelijnsverblijf ",null,null,null,null,null,null,{"$f":"Kostenverzamelstaat!I121-Kostenverzamelstaat!J121","v":0},{"$f":"Kostenverzamelstaat!K121-Kostenverzamelstaat!L121","v":0}]
[null,null,null," 811.2.1 Meerkosten Corona, indirect ELV",null,null,null,null,null,null,null,{"$f":"Kostenverzamelstaat!K122-Kostenverzamelstaat!L122","v":0}]
[null,null,null," 672  Generalistische Geneeskundige Zorg Specifieke Patiëntgroepen",null,null,null,null,null,null,{"$f":"Kostenverzamelstaat!I124-Kostenverzamelstaat!J124","v":0},{"$f":"Kostenverzamelstaat!K124-Kostenverzamelstaat!L124","v":0}]
[null,null,null," 680 Kraamzorg",null,null,null,null,null,null,{"$f":"Kostenverzamelstaat!I128-Kostenverzamelstaat!J128","v":0},{"$f":"Kostenverzamelstaat!K128-Kostenverzamelstaat!L128","v":0}]
[null,null,null," 832 Netto continuïteitsbijdrage Corona (basisverzekering)",null,null,null,null,null,null,null,{"$f":"Kostenverzamelstaat!K129-Kostenverzamelstaat!L129","v":0}]
[null,null,null," 700 Overige kosten",null,null,null,null,null,null,{"$f":"Kostenverzamelstaat!I132-Kostenverzamelstaat!J132","v":0},{"$f":"Kostenverzamelstaat!K132-Kostenverzamelstaat!L132","v":0}]
[null,null,null," 701 Overige geneeskundige zorg ",null,null,null,null,null,null,{"$f":"Kostenverzamelstaat!I133-Kostenverzamelstaat!J133","v":0},{"$f":"Kostenverzamelstaat!K133-Kostenverzamelstaat!L133","v":0}]
[null,null,null," 702 Kosten van zorg zintuiglijk gehandicapten",null,null,null,null,null,null,{"$f":"Kostenverzamelstaat!I134-Kostenverzamelstaat!J134","v":0},{"$f":"Kostenverzamelstaat!K134-Kostenverzamelstaat!L134","v":0}]
[null,null,null," 703 Transformatiemiddelen IZA",null,null,null,null,null,null,{"$f":"Kostenverzamelstaat!I135-Kostenverzamelstaat!J135","v":0}]
[null,null,null," 720 Grensoverschrijdende zorg, kosten gemaakt in het buitenland, via verzekeraar ",null,null,null,null,null,null,{"$f":"Kostenverzamelstaat!I139-Kostenverzamelstaat!J139","v":0},{"$f":"Kostenverzamelstaat!K139-Kostenverzamelstaat!L139","v":0}]
[null,null,null," 721 Grensoverschrijdende zorg, kosten gemaakt in het buitenland, via verbingsorgaan",null,null,null,null,null,null,{"$f":"Kostenverzamelstaat!I140-Kostenverzamelstaat!J140","v":0},{"$f":"Kostenverzamelstaat!K140-Kostenverzamelstaat!L140","v":0}]
[null,null,null," 730 Kwaliteitsgelden",null,null,null,null,null,null,{"$f":"Kostenverzamelstaat!I143-Kostenverzamelstaat!J143","v":0},{"$f":"Kostenverzamelstaat!K143-Kostenverzamelstaat!L143","v":0}]
[null,null,null," 890.1 Opbrengsten verhaal",null,null,null,null,null,null,{"$f":"Kostenverzamelstaat!I154-Kostenverzamelstaat!J154","v":0},{"$f":"Kostenverzamelstaat!K154-Kostenverzamelstaat!L154","v":0}]
[null,null,null," 910 Schade t.l.v. het vrijwillig eigen risico",null,null,null,null,null,null,{"$f":"Kostenverzamelstaat!I155-Kostenverzamelstaat!J155","v":0},{"$f":"Kostenverzamelstaat!K155-Kostenverzamelstaat!L155","v":0}]
[null,null,null," 915 Schade t.l.v. het verplicht eigen risico",null,null,null,null,null,null,{"$f":"Kostenverzamelstaat!I156-Kostenverzamelstaat!J156","v":0},{"$f":"Kostenverzamelstaat!K156-Kostenverzamelstaat!L156","v":0}]
[null,null,null," 940 Netto premieopbrengsten",null,null,null,null,null,null,{"$f":"Kostenverzamelstaat!I157-Kostenverzamelstaat!J157","v":0},{"$f":"Kostenverzamelstaat!K157-Kostenverzamelstaat!L157","v":0}]
[]
[null,null,null,"VERGELIJKING SPECIFIEKE INFORMATIE 2023 EN C"]
[null,null,null," LASTEN 2023 INCLUSIEF BALANSPOST",null,null,null,null,null,"Kosten- verzamelstaat","Spec. inform. C\ndetailinformatie","Verschil"]
[]
[null,null,null," 610.2 Eerstelijnsdiagnostiek aangevraagd door eerstelijnszorg-aanbieders geleverd door huisartsenlaboratoria en Trombosediensten",null,null,null,null,null,{"$f":"Kostenverzamelstaat!I63","v":0},{"$f":"'Specifieke informatie C'!H24","v":0},{"$f":"IF(J108<>K108,J108-K108,\"\")","v":""}]
[null,null,null," 611 Overige zorgproducten (Instellingen)",null,null,null,null,null,{"$f":"Kostenverzamelstaat!I64","v":0},{"$f":"'Specifieke informatie C'!H34","v":0},{"$f":"IF(J109<>K109,J109-K109,\"\")","v":""}]
[null,null,null," 612.1 Kosten add ons Dure geneesmiddelen",null,null,null,null,null,{"$f":"Kostenverzamelstaat!I65","v":0},{"$f":"'Specifieke informatie C'!H43","v":0},""]
[null,null,null," 612.2 Kosten add-ons - IC",null,null,null,null,null,{"$f":"Kostenverzamelstaat!I66","v":0},{"$f":"'Specifieke informatie C'!H57","v":0},""]
[null,null,null," 613.1 Integrale kosten DBC-zorgproduct gereguleerde segment",null,null,null,null,null,{"$f":"Kostenverzamelstaat!I67","v":0},{"$f":"'Specifieke informatie C'!H69","v":0},""]
[null,null,null," 615.1 Integrale kosten DBC-zorgproduct vrije segment",null,null,null,null,null,{"$f":"Kostenverzamelstaat!I68","v":0},{"$f":"'Specifieke informatie C'!H75","v":0},""]
[null,null,null,{"$f":"NOW()","v":"2024-01-16T15:35:54.060"},null,null,null,null,null,null,null,{"$f":"CONCATENATE(\"Controleoverzicht \",LOWER(A80))","v":"Controleoverzicht pagina 3"}]
[]
["Pagina 4",null,null,{"$f":"CONCATENATE(\"JAARSTAAT ZVW \", jaar_id)","v":"JAARSTAAT ZVW 2023"}]
[null,null,null,"CONTROLEOVERZICHT"]
[null,null,null,{"$f":"IF(naw_uzovi_zorgverzekeraar<>\"0000\",CONCATENATE(UPPER(naw_naam_zorgverzekeraar),\", \",UPPER(naw_plaats_zorgverzekeraar)),\"\")","v":""},null,null,null,null,null,null,null,{"$f":"CONCATENATE(\"UZOVI: \",naw_uzovi_zorgverzekeraar)","v":"UZOVI: 0000"}]
[null,null,null,"VERGELIJKING SPECIFIEKE INFORMATIE A EN C"]
[null,null,null," ONTVANGEN EN GEACCEPTEERDE DECLARATIES mbt 2023",null,null,null,null,null,"Kosten- verzamelstaat","Spec. inform. C\ndetailinformatie","Verschil"]
[]
[null,null,null," 610.2 Eerstelijnsdiagnostiek aangevraagd door eerstelijnszorg-aanbieders geleverd door huisartsenlaboratoria en Trombosediensten",null,null,null,null,null,{"$f":"Kostenverzamelstaat!J63","v":0},{"$f":"'Specifieke informatie C'!I24","v":0},{"$f":"IF(J122<>K122,J122-K122,\"\")","v":""}]
[null,null,null," 611 Overige zorgproducten (Instellingen)",null,null,null,null,null,{"$f":"Kostenverzamelstaat!J64","v":0},{"$f":"'Specifieke informatie C'!I34","v":0},{"$f":"IF(J123<>K123,J123-K123,\"\")","v":""}]
[null,null,null," 612.1 Kosten add-ons - Dure geneesmiddelen ",null,null,null,null,null,{"$f":"Kostenverzamelstaat!J65","v":0},{"$f":"'Specifieke informatie C'!I43","v":0},""]
[null,null,null," 612.2 Kosten add-ons - IC",null,null,null,null,null,{"$f":"Kostenverzamelstaat!J66","v":0},{"$f":"'Specifieke informatie C'!I57","v":0},""]
[null,null,null," 613.1 Integrale kosten DBC-zorgproduct gereguleerde segment",null,null,null,null,null,{"$f":"Kostenverzamelstaat!J67","v":0},{"$f":"'Specifieke informatie C'!I69","v":0},""]
[null,null,null," 615.1 Integrale kosten DBC-zorgproduct vrije segment",null,null,null,null,null,{"$f":"Kostenverzamelstaat!J68","v":0},{"$f":"'Specifieke informatie C'!I75","v":0},""]
[null,null,null," 701 Overige geneeskundige zorg",null,null,null,null,null,{"$f":"Kostenverzamelstaat!J133","v":0},{"$f":"'Specifieke informatie C'!K101","v":0},""]
[null,null,null," 702 Kosten van zorg zintuiglijk gehandicapten",null,null,null,null,null,{"$f":"Kostenverzamelstaat!J134","v":0},{"$f":"'Specifieke informatie C'!K107","v":0},""]
[null,null,null," 720 Kosten grensoverschrijdende zorg, via verzekeraar",null,null,null,null,null,{"$f":"Kostenverzamelstaat!J139","v":0},{"$f":"'Specifieke informatie C'!K115","v":0},""]
[]
[]
[]
[]
[]
[]
[]
[]
[]
[]
[null,null,null,{"$f":"NOW()","v":"2024-01-16T15:35:54.060"},null,null,null,null,null,null,null,{"$f":"CONCATENATE(\"Controleoverzicht \",LOWER(A116))","v":"Controleoverzicht pagina 4"}]
[]
["Pagina 5",null,null,{"$f":"CONCATENATE(\"JAARSTAAT ZVW \", jaar_id)","v":"JAARSTAAT ZVW 2023"}]
[null,null,null,"CONTROLEOVERZICHT"]
[null,null,null,{"$f":"IF(naw_uzovi_zorgverzekeraar<>\"0000\",CONCATENATE(UPPER(naw_naam_zorgverzekeraar),\", \",UPPER(naw_plaats_zorgverzekeraar)),\"\")","v":""},null,null,null,null,null,null,null,{"$f":"CONCATENATE(\"UZOVI: \",naw_uzovi_zorgverzekeraar)","v":"UZOVI: 0000"}]
[null,null,null,"VERGELIJKING SPECIFIEKE INFORMATIE A EN C"]
[null,null,null," LASTEN 2022 INCLUSIEF BALANSPOST",null,null,null,null,null,"Kosten- verzamelstaat","Spec. inform. C\ndetailinformatie","Verschil "]
[]
[null,null,null," 610 Overige kosten ziekenhuiszorg en curatieve zorg",null,null,null,null,null,{"$f":"Kostenverzamelstaat!K61","v":0},{"$f":"'Specifieke informatie C'!J17","v":0},{"$f":"IF(J149<>K149,J149-K149,\"\")","v":""}]
[null,null,null," 611 Overige zorgproducten (Instellingen)",null,null,null,null,null,{"$f":"Kostenverzamelstaat!K64","v":0},{"$f":"'Specifieke informatie C'!J34","v":0},""]
[null,null,null," 612.1  Kosten add ons",null,null,null,null,null,{"$f":"Kostenverzamelstaat!K65","v":0},{"$f":"'Specifieke informatie C'!J43","v":0},""]
[null,null,null," 612.2 Kosten add ons",null,null,null,null,null,{"$f":"Kostenverzamelstaat!K66","v":0},{"$f":"'Specifieke informatie C'!J57","v":0},""]
[null,null,null," 613.1 Integrale kosten DBC-zorgproduct gereguleerde segment ",null,null,null,null,null,{"$f":"Kostenverzamelstaat!K67","v":0},{"$f":"'Specifieke informatie C'!J69","v":0},""]
[null,null,null," 615.1 Integrale kosten DBC-zorgproduct vrije segment ",null,null,null,null,null,{"$f":"Kostenverzamelstaat!K68","v":0},{"$f":"'Specifieke informatie C'!J75","v":0},""]
[]
[null,null,null," ONTVANGEN EN GEACCEPTEERDE DECLARATIES mbt 2022",null,null,null,null,null,"Kosten- verzamelstaat","Spec. inform. C\ndetailinformatie","Verschil"]
[]
[null,null,null," 610 Overige kosten ziekenhuiszorg en curatieve zorg ",null,null,null,null,null,{"$f":"Kostenverzamelstaat!L61","v":0},{"$f":"'Specifieke informatie C'!K17","v":0},{"$f":"IF(J158<>K158,J158-K158,\"\")","v":""}]
[null,null,null," 611 Overige zorgproducten (Instellingen)",null,null,null,null,null,{"$f":"Kostenverzamelstaat!L64","v":0},{"$f":"'Specifieke informatie C'!K34","v":0},""]
[null,null,null," 612.1  Kosten add-ons - Dure geneesmiddelen",null,null,null,null,null,{"$f":"Kostenverzamelstaat!L65","v":0},{"$f":"'Specifieke informatie C'!K43","v":0},""]
[null,null,null," 612.2 Kosten add-ons - IC",null,null,null,null,null,{"$f":"Kostenverzamelstaat!L66","v":0},{"$f":"'Specifieke informatie C'!K57","v":0},{"$f":"IF(J161<>K161,J161-K161,\"\")","v":""}]
[null,null,null," 613.1 Integrale kosten DBC-zorgproduct gereguleerde segment",null,null,null,null,null,{"$f":"Kostenverzamelstaat!L67","v":0},{"$f":"'Specifieke informatie C'!K69","v":0},""]
[null,null,null," 615.1 Integrale kosten DBC-zorgproduct vrije segment",null,null,null,null,null,{"$f":"Kostenverzamelstaat!L68","v":0},{"$f":"'Specifieke informatie C'!K75","v":0},""]
[null,null,null," 701 Overige geneeskundige zorg",null,null,null,null,null,{"$f":"Kostenverzamelstaat!L133","v":0},{"$f":"'Specifieke informatie C'!L101","v":0},""]
[null,null,null," 702 Kosten van zorg zintuiglijk gehandicapten",null,null,null,null,null,{"$f":"Kostenverzamelstaat!L134","v":0},{"$f":"'Specifieke informatie C'!L107","v":0},""]
[null,null,null," 720 Kosten grensoverschrijdende zorg, via verzekeraar",null,null,null,null,null,{"$f":"Kostenverzamelstaat!L139","v":0},{"$f":"'Specifieke informatie C'!L115","v":0},{"$f":"IF(J166<>K166,J166-K166,\"\")","v":""}]
[]
[]
[]
[null,null,null,{"$f":"NOW()","v":"2024-01-16T15:35:54.060"},null,null,null,null,null,null,null,{"$f":"CONCATENATE(\"Controleoverzicht \",LOWER(A143))","v":"Controleoverzicht pagina 5"}]
[]
["Pagina 6",null,null,{"$f":"CONCATENATE(\"JAARSTAAT ZVW \", jaar_id)","v":"JAARSTAAT ZVW 2023"}]
[null,null,null,"CONTROLEOVERZICHT"]
[null,null,null,{"$f":"IF(naw_uzovi_zorgverzekeraar<>\"0000\",CONCATENATE(UPPER(naw_naam_zorgverzekeraar),\", \",UPPER(naw_plaats_zorgverzekeraar)),\"\")","v":""},null,null,null,null,null,null,null,{"$f":"CONCATENATE(\"UZOVI: \",naw_uzovi_zorgverzekeraar)","v":"UZOVI: 0000"}]
[]
[null,null,null,"VERGELIJKING SPECIFIEKE INFORMATIE A EN C"]
[null,null,null," ONTVANGEN EN GEACCEPTEERDE DECLARATIES mbt 2021 en ouder",null,null,null,null,null,"Kosten- verzamelstaat","Spec. inform. C\ndetailinformatie","Verschil "]
[]
[null,null,null," 610 Overige kosten ziekenhuiszorg en curatieve zorg ",null,null,null,null,null,{"$f":"Kostenverzamelstaat!M61","v":0},{"$f":"'Specifieke informatie C'!L17","v":0},{"$f":"IF(J179<>K179,J179-K179,\"\")","v":""}]
[null,null,null," 611 Overige zorgproducten (Instellingen)",null,null,null,null,null,{"$f":"Kostenverzamelstaat!M64","v":0},{"$f":"'Specifieke informatie C'!L34","v":0},""]
[null,null,null," 612.1  Kosten add-ons - Dure geneesmiddelen",null,null,null,null,null,{"$f":"Kostenverzamelstaat!M65","v":0},{"$f":"'Specifieke informatie C'!L43","v":0},""]
[null,null,null," 612.2 Kosten add-ons - IC",null,null,null,null,null,{"$f":"Kostenverzamelstaat!M66+ 'Specifieke informatie B'!I46","v":0},{"$f":"'Specifieke informatie C'!L57","v":0},""]
[null,null,null," 613.1 Integrale kosten DBC-zorgproduct gereguleerde segment",null,null,null,null,null,{"$f":"Kostenverzamelstaat!M67+ 'Specifieke informatie B'!I47","v":0},{"$f":"'Specifieke informatie C'!L69","v":0},""]
[null,null,null," 615.1 Integrale kosten DBC-zorgproduct vrije segment",null,null,null,null,null,{"$f":"Kostenverzamelstaat!M68+ 'Specifieke informatie B'!I48","v":0},{"$f":"'Specifieke informatie C'!L75","v":0},""]
[]
[null,null,null,"VERGELIJKING SPECIFIEKE INFORMATIE 2023 EN CONTRACTINFORMATIE"]
[null,null,null," LASTEN 2023 INCLUSIEF BALANSPOST",null,null,null,null,null,"Kosten- verzamelstaat","Spec. inform. C\ncontract inform.","Verschil "]
[]
[null,null,null," Totaal code 503, 504, 505, 506, 507, 515 ",null,null,null,null,null,{"$f":"SUM(Kostenverzamelstaat!I16+Kostenverzamelstaat!I17+Kostenverzamelstaat!I18+Kostenverzamelstaat!I19+Kostenverzamelstaat!I20+Kostenverzamelstaat!I22)","v":0},{"$f":"Contractinformatie!J16","v":0},{"$f":"IF(J189<>K189,J189-K189,\"\")","v":""}]
[null,null,null," Totaal code 510, 516 ",null,null,null,null,null,{"$f":"SUM(Kostenverzamelstaat!I21+Kostenverzamelstaat!I23)","v":0},{"$f":"Contractinformatie!J20","v":0},""]
[null,null,null," Totaal Rubriek 01",null,null,null,null,null,{"$f":"Kostenverzamelstaat!I25","v":0},{"$f":"Contractinformatie!J23","v":0},""]
[null,null,null," Totaal Rubriek 03",null,null,null,null,null,{"$f":"Kostenverzamelstaat!I34","v":0},{"$f":"Contractinformatie!J33","v":0},""]
[null,null,null," Totaal Rubriek 06",null,null,null,null,null,{"$f":"Kostenverzamelstaat!I73","v":0},{"$f":"Contractinformatie!J46","v":0},""]
[null,null,null," Totaal Rubriek 10",null,null,null,null,null,{"$f":"Kostenverzamelstaat!I116","v":0},{"$f":"Contractinformatie!J66","v":0},{"$f":"IF(J194<>K194,J194-K194,\"\")","v":""}]
[null,null,null," Totaal Rubriek 11",null,null,null,null,null,{"$f":"Kostenverzamelstaat!I126","v":0},{"$f":"Contractinformatie!J101","v":0},{"$f":"IF(J195<>K195,J195-K195,\"\")","v":""}]
[null,null,null," Totaal Code 702",null,null,null,null,null,{"$f":"Kostenverzamelstaat!I134","v":0},{"$f":"Contractinformatie!J78","v":0},{"$f":"IF(J196<>K196,J196-K196,\"\")","v":""}]
[]
[null,null,null,"VERGELIJKING SPECIFIEKE INFORMATIE 2022 EN CONTRACTINFORMATIE"]
[null,null,null," LASTEN 2022 INCLUSIEF BALANSPOST",null,null,null,null,null,"Kosten- verzamelstaat","Spec. inform. C\ncontract inform.","Verschil "]
[]
[null,null,null," Totaal code 503, 504, 505, 506, 507, 515 ",null,null,null,null,null,{"$f":"SUM(Kostenverzamelstaat!K16+Kostenverzamelstaat!K17+Kostenverzamelstaat!K18+Kostenverzamelstaat!K19+Kostenverzamelstaat!K20+Kostenverzamelstaat!K22)","v":0},{"$f":"Contractinformatie!K16","v":0},{"$f":"IF(J201<>K201,J201-K201,\"\")","v":""}]
[null,null,null," Totaal code 510, 516 ",null,null,null,null,null,{"$f":"SUM(Kostenverzamelstaat!K21+Kostenverzamelstaat!K23)","v":0},{"$f":"Contractinformatie!K20","v":0},""]
[null,null,null," Totaal Rubriek 01 ",null,null,null,null,null,{"$f":"Kostenverzamelstaat!K25","v":0},{"$f":"Contractinformatie!K23","v":0},""]
[null,null,null," Totaal Rubriek 03",null,null,null,null,null,{"$f":"Kostenverzamelstaat!K34","v":0},{"$f":"Contractinformatie!K33","v":0},""]
[null,null,null," Totaal Rubriek 06",null,null,null,null,null,{"$f":"Kostenverzamelstaat!K73","v":0},{"$f":"Contractinformatie!K46","v":0},""]
[null,null,null," Totaal Rubriek 10",null,null,null,null,null,{"$f":"Kostenverzamelstaat!K116","v":0},{"$f":"Contractinformatie!K66","v":0},""]
[null,null,null," Totaal Rubriek 11",null,null,null,null,null,{"$f":"Kostenverzamelstaat!K126","v":0},{"$f":"Contractinformatie!K101","v":0},""]
[null,null,null," Totaal Code 702",null,null,null,null,null,{"$f":"Kostenverzamelstaat!K134","v":0},{"$f":"Contractinformatie!K78","v":0},{"$f":"IF(J208<>K208,J208-K208,\"\")","v":""}]
[]
[]
[]
[]
[]
[]
[]
[]
[]
[null,null,null,{"$f":"NOW()","v":"2024-01-16T15:35:54.060"},null,null,null,null,null,null,null,{"$f":"CONCATENATE(\"Controleoverzicht \",LOWER(A172))","v":"Controleoverzicht pagina 6"}]
[]
["Pagina 7",null,null,{"$f":"CONCATENATE(\"JAARSTAAT ZVW \", jaar_id)","v":"JAARSTAAT ZVW 2023"}]
[null,null,null,"CONTROLEOVERZICHT"]
[null,null,null,{"$f":"IF(naw_uzovi_zorgverzekeraar<>\"0000\",CONCATENATE(UPPER(naw_naam_zorgverzekeraar),\", \",UPPER(naw_plaats_zorgverzekeraar)),\"\")","v":""},null,null,null,null,null,null,null,{"$f":"CONCATENATE(\"UZOVI: \",naw_uzovi_zorgverzekeraar)","v":"UZOVI: 0000"}]
[]
[null,null,null,"VERGELIJKING SPECIFIEKE INFORMATIE A: KOSTENVERZAMELSTAAT EN MODELOVEREENKOMSTEN"]
[null,null,null,null,null,null,null,null,"Kosten- verzamelstaat","MODELOVEREENKOMSTEN:                                                                                                                                                                                                                                                                                                                                                                                                                                                                                                                                                                                                                                                                                                                                                                                                                                                                                                                                                                                                                                                                                                                                                                                                                                                                                                                                                          LASTEN 2023 inclusief balanspost ",null,"Verschil "]
[]
[null,null,null,"TOTAAL Rubriek 01 Huisartsenzorg en MDZ",null,null,null,null,{"$f":"Kostenverzamelstaat!I25","v":0},{"$f":"'Specifieke informatie A'!I78+'Specifieke informatie A'!K78+'Specifieke informatie A'!M78+'Specifieke informatie A'!O78+'Specifieke informatie A'!Q78+'Specifieke informatie A'!S78","v":0},null,{"$f":"I227-J227","v":0}]
[null,null,null,"TOTAAL Rubriek 02 Farmaceutische zorg ",null,null,null,null,{"$f":"Kostenverzamelstaat!I29","v":0},{"$f":"'Specifieke informatie A'!I79+'Specifieke informatie A'!K79+'Specifieke informatie A'!M79+'Specifieke informatie A'!O79+'Specifieke informatie A'!Q79+'Specifieke informatie A'!S79","v":0},null,0]
[null,null,null,"Kostencode 520 - Kosten van bepaalde dure extramurale geneesmiddelen",null,null,null,null,{"$f":"Kostenverzamelstaat!I27","v":0},{"$f":"'Specifieke informatie A'!I80+'Specifieke informatie A'!K80+'Specifieke informatie A'!M80+'Specifieke informatie A'!O80+'Specifieke informatie A'!Q80+'Specifieke informatie A'!S80","v":0},null,0]
[null,null,null,"TOTAAL Rubriek 03 Verpleging en verzorging ",null,null,null,null,{"$f":"Kostenverzamelstaat!I34","v":0},{"$f":"'Specifieke informatie A'!I81+'Specifieke informatie A'!K81+'Specifieke informatie A'!M81+'Specifieke informatie A'!O81+'Specifieke informatie A'!Q81+'Specifieke informatie A'!S81","v":0},null,0]
[null,null,null,"TOTAAL Rubriek 04 Mondzorg",null,null,null,null,{"$f":"Kostenverzamelstaat!I40","v":0},{"$f":"'Specifieke informatie A'!I82+'Specifieke informatie A'!K82+'Specifieke informatie A'!M82+'Specifieke informatie A'!O82+'Specifieke informatie A'!Q82+'Specifieke informatie A'!S82","v":0},null,0]
[null,null,null,"TOTAAL Rubriek 05 Verloskundige zorg ",null,null,null,null,{"$f":"Kostenverzamelstaat!I45","v":0},{"$f":"'Specifieke informatie A'!I83+'Specifieke informatie A'!K83+'Specifieke informatie A'!M83+'Specifieke informatie A'!O83+'Specifieke informatie A'!Q83+'Specifieke informatie A'!S83","v":0},null,0]
[null,null,null,"TOTAAL Rubriek 06 Medisch specialistische zorg ",null,null,null,null,{"$f":"Kostenverzamelstaat!I73","v":0},{"$f":"'Specifieke informatie A'!I84+'Specifieke informatie A'!K84+'Specifieke informatie A'!M84+'Specifieke informatie A'!O84+'Specifieke informatie A'!Q84+'Specifieke informatie A'!S84","v":0},null,0]
[null,null,null,"Kostencode 612.1 - Kosten van Add-ons - bepaalde dure intramurale geneesmiddelen, inclusief stollingsmiddelen",null,null,null,null,{"$f":"Kostenverzamelstaat!I65","v":0},{"$f":"'Specifieke informatie A'!I85+'Specifieke informatie A'!K85+'Specifieke informatie A'!M85+'Specifieke informatie A'!O85+'Specifieke informatie A'!Q85+'Specifieke informatie A'!S85","v":0},null,0]
[null,null,null,"TOTAAL Rubriek 07 Paramedische zorg ",null,null,null,null,{"$f":"Kostenverzamelstaat!I82","v":0},{"$f":"'Specifieke informatie A'!I86+'Specifieke informatie A'!K86+'Specifieke informatie A'!M86+'Specifieke informatie A'!O86+'Specifieke informatie A'!Q86+'Specifieke informatie A'!S86","v":0},null,0]
[null,null,null,"TOTAAL Rubriek 08 Hulpmiddelenzorg ",null,null,null,null,{"$f":"Kostenverzamelstaat!I86","v":0},{"$f":"'Specifieke informatie A'!I87+'Specifieke informatie A'!K87+'Specifieke informatie A'!M87+'Specifieke informatie A'!O87+'Specifieke informatie A'!Q87+'Specifieke informatie A'!S87","v":0},null,0]
[null,null,null,"TOTAAL Rubriek 09 Ziekenvervoer",null,null,null,null,{"$f":"Kostenverzamelstaat!I92","v":0},{"$f":"'Specifieke informatie A'!I88+'Specifieke informatie A'!K88+'Specifieke informatie A'!M88+'Specifieke informatie A'!O88+'Specifieke informatie A'!Q88+'Specifieke informatie A'!S88","v":0},null,0]
[null,null,null,"TOTAAL Rubriek 11 Geriatrische revalidatiezorg, Eerstelijnsverblijf en Geneeskundige Zorg Specifieke Patiëntengroepen",null,null,null,null,{"$f":"Kostenverzamelstaat!I126","v":0},{"$f":"'Specifieke informatie A'!I89+'Specifieke informatie A'!K89+'Specifieke informatie A'!M89+'Specifieke informatie A'!O89+'Specifieke informatie A'!Q89+'Specifieke informatie A'!S89","v":0},null,0]
[null,null,null,"TOTAAL Rubriek 12 Kraamzorg",null,null,null,null,{"$f":"Kostenverzamelstaat!I130","v":0},{"$f":"'Specifieke informatie A'!I90+'Specifieke informatie A'!K90+'Specifieke informatie A'!M90+'Specifieke informatie A'!O90+'Specifieke informatie A'!Q90+'Specifieke informatie A'!S90","v":0},null,0]
[null,null,null,"TOTAAL Rubriek 13 Diverse overige kosten",null,null,null,null,{"$f":"Kostenverzamelstaat!I137","v":0},{"$f":"'Specifieke informatie A'!I91+'Specifieke informatie A'!K91+'Specifieke informatie A'!M91+'Specifieke informatie A'!O91+'Specifieke informatie A'!Q91+'Specifieke informatie A'!S91","v":0},null,0]
[null,null,null,"Kostencode 703 – Transformatiemiddelen IZA",null,null,null,null,{"$f":"Kostenverzamelstaat!I135","v":0},{"$f":"'Specifieke informatie A'!I92+'Specifieke informatie A'!K92+'Specifieke informatie A'!M92+'Specifieke informatie A'!O92+'Specifieke informatie A'!Q92+'Specifieke informatie A'!S92","v":0},null,0]
[null,null,null,"TOTAAL Rubriek 15 Grensoverschrijdende zorg ",null,null,null,null,{"$f":"Kostenverzamelstaat!I141","v":0},{"$f":"'Specifieke informatie A'!I93+'Specifieke informatie A'!K93+'Specifieke informatie A'!M93+'Specifieke informatie A'!O93+'Specifieke informatie A'!Q93+'Specifieke informatie A'!S93","v":0},null,0]
[null,null,null,"Kostencode 720 - Kosten via Verzekeraar - Geneeskundige GGZ",null,null,null,null,{"$f":"Kostenverzamelstaat!I139","v":0},{"$f":"'Specifieke informatie A'!I94+'Specifieke informatie A'!K94+'Specifieke informatie A'!M94+'Specifieke informatie A'!O94+'Specifieke informatie A'!Q94+'Specifieke informatie A'!S94","v":0},null,0]
[null,null,null,"TOTAAL Rubriek 16 Kwaliteitsgelden ",null,null,null,null,{"$f":"Kostenverzamelstaat!I144","v":0},{"$f":"'Specifieke informatie A'!I95+'Specifieke informatie A'!K95+'Specifieke informatie A'!M95+'Specifieke informatie A'!O95+'Specifieke informatie A'!Q95+'Specifieke informatie A'!S95","v":0},null,0]
[null,null,null,"VERGELIJKING SPECIFIEKE INFORMATIE A:  SPECIFIEKE INFORMATIE A EN MODELOVEREENKOMSTEN"]
[null,null,null,null,null,null,null,null,"Specifieke informatie A","MODELOVEREENKOMSTEN:                                                                                                                                                                                                                                                                                                                                                                                                                                                                                                                                                                                                                                                                                                                                                                                                                                                                                                                                                                                                                                                                                                                                                                                                                                                                                                                                                          LASTEN 2023 inclusief balanspost ",null,"Verschil "]
[]
[null,null,null,"TOTAAL  Variabele zorgkosten",null,null,null,null,{"$f":"'Specifieke informatie A'!K14","v":0},{"$f":"'Specifieke informatie A'!I77+'Specifieke informatie A'!K77+'Specifieke informatie A'!M77+'Specifieke informatie A'!O77+'Specifieke informatie A'!Q77+'Specifieke informatie A'!S77","v":0},null,{"$f":"I248-J248","v":0}]
[null,null,null,"Totale berekende nominale rekenpremies 2023 tijdens de detentieperiode van verzekerden van 18 jaar en ouder",null,null,null,null,{"$f":"'Specifieke informatie A'!K64","v":0},{"$f":"'Specifieke informatie A'!I99+'Specifieke informatie A'!K99+'Specifieke informatie A'!M99+'Specifieke informatie A'!O99+'Specifieke informatie A'!Q99+'Specifieke informatie A'!S99","v":0},null,0]
[]
[]
[null,null,null,{"$f":"NOW()","v":"2024-01-16T15:35:54.060"},null,null,null,null,null,null,null,{"$f":"CONCATENATE(\"Controleoverzicht \",LOWER(A220))","v":"Controleoverzicht pagina 7"}]

{"sheet":"Blad1","index":10,"n_rows":860,"n_cols":12,"rows_kept":860,"cut":false,"hidden":true,"merged":[]}
[]
[]
[]
[]
[]
[]
[]
[]
[]
[]
[]
[null,null,null,null,"vcd_spec_idvar","vcd_waarde_flt","vcd_waarde_txt","vcd_toelichting_txt","vcd_spec1_idvar","vcd_spec2_idvar","vcd_spec3_idvar","vcd_attrib_idvar"]
[null,null,null,null,"xstaat_kdrwet_id_",{"$f":"0","v":0},"ZVWY","Excel numeriek om te zetten sleutel kdrwet via waarden","xstaat","kdrwet","id",""]
[null,null,null,null,"xstaat_kdrwet_idjmd_",{"$f":"0","v":0},20231231,"Excel numeriek om te zetten sleutel kdrwet periode","xstaat","kdrwet","idjmd",""]
[null,null,null,null,"xstaat_uzovi_filename_",{"$f":"0","v":0},{"$f":"CELL(\"bestandsnaam\")","v":"G:\\verwerk\\vsd_prod\\formats\\jaarstaat\\ZVW\\2023\\[Beveiligd format Jaarstaat ZVW 2023 (versie A).xlsm]Controleoverzicht"},"Excel numeriek filenaam bevat ook sleutels","xstaat","uzovi","filename",""]
[null,null,null,null,"xstaat_uzovi_id_",{"$f":"0","v":0},{"$f":"_xlfn.NUMBERVALUE(NAW_gegevens!$B$6)","v":0},"Excel numeriek om te zetten sleutel uzovi","xstaat","uzovi","id",""]
[null,null,null,null,"xstaat_uzovi_idvrs_",{"$f":"0","v":0},"01","Excel numeriek om te zetten sleutel uzovi versie levering","xstaat","uzovi","idvrs",""]
[null,null,null,null,"zvkx01_c__TY0V01",{"$f":"Kostenverzamelstaat!$I$25","v":0}]
[null,null,null,null,"zvkx01_a__TY0V01",{"$f":"Kostenverzamelstaat!$J$25","v":0}]
[null,null,null,null,"zvkx01_c__TY1V01",{"$f":"Kostenverzamelstaat!$K$25","v":0}]
[null,null,null,null,"zvkx01_a__TY1V01",{"$f":"Kostenverzamelstaat!$L$25","v":0}]
[null,null,null,null,"zvkx01_a__TY2V01",{"$f":"Kostenverzamelstaat!$M$25","v":0}]
[null,null,null,null,"zvkx02_c__TY0V01",{"$f":"Kostenverzamelstaat!$I$29","v":0}]
[null,null,null,null,"zvkx02_a__TY0V01",{"$f":"Kostenverzamelstaat!$J$29","v":0}]
[null,null,null,null,"zvkx02_c__TY1V01",{"$f":"Kostenverzamelstaat!$K$29","v":0}]
[null,null,null,null,"zvkx02_a__TY1V01",{"$f":"Kostenverzamelstaat!$L$29","v":0}]
[null,null,null,null,"zvkx02_a__TY2V01",{"$f":"Kostenverzamelstaat!$M$29","v":0}]
[null,null,null,null,"zvkx03_c__TY0V01",{"$f":"Kostenverzamelstaat!$I$34","v":0}]
[null,null,null,null,"zvkx03_a__TY0V01",{"$f":"Kostenverzamelstaat!$J$34","v":0}]
[null,null,null,null,"zvkx03_c__TY1V01",{"$f":"Kostenverzamelstaat!$K$34","v":0}]
[null,null,null,null,"zvkx03_a__TY1V01",{"$f":"Kostenverzamelstaat!$L$34","v":0}]
[null,null,null,null,"zvkx03_a__TY2V01",{"$f":"Kostenverzamelstaat!$M$34","v":0}]
[null,null,null,null,"zvkx04_c__TY0V01",{"$f":"Kostenverzamelstaat!$I$40","v":0}]
[null,null,null,null,"zvkx04_a__TY0V01",{"$f":"Kostenverzamelstaat!$J$40","v":0}]
[null,null,null,null,"zvkx04_c__TY1V01",{"$f":"Kostenverzamelstaat!$K$40","v":0}]
[null,null,null,null,"zvkx04_a__TY1V01",{"$f":"Kostenverzamelstaat!$L$40","v":0}]
[null,null,null,null,"zvkx04_a__TY2V01",{"$f":"Kostenverzamelstaat!$M$40","v":0}]
[null,null,null,null,"zvkx05_c__TY0V01",{"$f":"Kostenverzamelstaat!$I$45","v":0}]
[null,null,null,null,"zvkx05_a__TY0V01",{"$f":"Kostenverzamelstaat!$J$45","v":0}]
[null,null,null,null,"zvkx05_c__TY1V01",{"$f":"Kostenverzamelstaat!$K$45","v":0}]
[null,null,null,null,"zvkx05_a__TY1V01",{"$f":"Kostenverzamelstaat!$L$45","v":0}]
[null,null,null,null,"zvkx05_a__TY2V01",{"$f":"Kostenverzamelstaat!$M$45","v":0}]
[null,null,null,null,"zvkx06_c__TY0V01",{"$f":"Kostenverzamelstaat!$I$73","v":0}]
[null,null,null,null,"zvkx06_a__TY0V01",{"$f":"Kostenverzamelstaat!$J$73","v":0}]
[null,null,null,null,"zvkx06_c__TY1V01",{"$f":"Kostenverzamelstaat!$K$73","v":0}]
[null,null,null,null,"zvkx06_a__TY1V01",{"$f":"Kostenverzamelstaat!$L$73","v":0}]
[null,null,null,null,"zvkx06_a__TY2V01",{"$f":"Kostenverzamelstaat!$M$73","v":0}]
[null,null,null,null,"zvkx07_c__TY0V01",{"$f":"Kostenverzamelstaat!$I$82","v":0}]
[null,null,null,null,"zvkx07_a__TY0V01",{"$f":"Kostenverzamelstaat!$J$82","v":0}]
[null,null,null,null,"zvkx07_c__TY1V01",{"$f":"Kostenverzamelstaat!$K$82","v":0}]
[null,null,null,null,"zvkx07_a__TY1V01",{"$f":"Kostenverzamelstaat!$L$82","v":0}]
[null,null,null,null,"zvkx07_a__TY2V01",{"$f":"Kostenverzamelstaat!M82","v":0}]
[null,null,null,null,"zvkx08_c__TY0V01",{"$f":"Kostenverzamelstaat!$I$86","v":0}]
[null,null,null,null,"zvkx08_a__TY0V01",{"$f":"Kostenverzamelstaat!$J$86","v":0}]
[null,null,null,null,"zvkx08_c__TY1V01",{"$f":"Kostenverzamelstaat!$K$86","v":0}]
[null,null,null,null,"zvkx08_a__TY1V01",{"$f":"Kostenverzamelstaat!$L$86","v":0}]
[null,null,null,null,"zvkx08_a__TY2V01",{"$f":"Kostenverzamelstaat!$M$86","v":0}]
[null,null,null,null,"zvkx09_c__TY0V01",{"$f":"Kostenverzamelstaat!$I$92","v":0}]
[null,null,null,null,"zvkx09_a__TY0V01",{"$f":"Kostenverzamelstaat!$J$92","v":0}]
[null,null,null,null,"zvkx09_c__TY1V01",{"$f":"Kostenverzamelstaat!$K$92","v":0}]
[null,null,null,null,"zvkx09_a__TY1V01",{"$f":"Kostenverzamelstaat!$L$92","v":0}]
[null,null,null,null,"zvkx09_a__TY2V01",{"$f":"Kostenverzamelstaat!$M$92","v":0}]
[null,null,null,null,"zvkx10_c__TY0V01",{"$f":"Kostenverzamelstaat!$I$116","v":0}]
[null,null,null,null,"zvkx10_a__TY0V01",{"$f":"Kostenverzamelstaat!$J$116","v":0}]
[null,null,null,null,"zvkx10_c__TY1V01",{"$f":"Kostenverzamelstaat!$K$116","v":0}]
[null,null,null,null,"zvkx10_a__TY1V01",{"$f":"Kostenverzamelstaat!$L$116","v":0}]
[null,null,null,null,"zvkx10_a__TY2V01",{"$f":"Kostenverzamelstaat!$M$116","v":0}]
[null,null,null,null,"zvkx11_c__TY0V01",{"$f":"Kostenverzamelstaat!$I$126","v":0}]
[null,null,null,null,"zvkx11_a__TY0V01",{"$f":"Kostenverzamelstaat!$J$126","v":0}]
[null,null,null,null,"zvkx11_c__TY1V01",{"$f":"Kostenverzamelstaat!$K$126","v":0}]
[null,null,null,null,"zvkx11_a__TY1V01",{"$f":"Kostenverzamelstaat!$L$126","v":0}]
[null,null,null,null,"zvkx11_a__TY2V01",{"$f":"Kostenverzamelstaat!$M$126","v":0}]
[null,null,null,null,"zvkx12_c__TY0V01",{"$f":"Kostenverzamelstaat!$I$130","v":0}]
[null,null,null,null,"zvkx12_a__TY0V01",{"$f":"Kostenverzamelstaat!$J$130","v":0}]
[null,null,null,null,"zvkx12_c__TY1V01",{"$f":"Kostenverzamelstaat!$K$130","v":0}]
[null,null,null,null,"zvkx12_a__TY1V01",{"$f":"Kostenverzamelstaat!$L$130","v":0}]
[null,null,null,null,"zvkx12_a__TY2V01",{"$f":"Kostenverzamelstaat!$M$130","v":0}]
[null,null,null,null,"zvkx13_c__TY0V01",{"$f":"Kostenverzamelstaat!$I$137","v":0}]
[null,null,null,null,"zvkx13_a__TY0V01",{"$f":"Kostenverzamelstaat!$J$137","v":0}]
[null,null,null,null,"zvkx13_c__TY1V01",{"$f":"Kostenverzamelstaat!$K$137","v":0}]
[null,null,null,null,"zvkx13_a__TY1V01",{"$f":"Kostenverzamelstaat!$L$137","v":0}]
[null,null,null,null,"zvkx13_a__TY2V01",{"$f":"Kostenverzamelstaat!$M$137","v":0}]
[null,null,null,null,"zvkx15_c__TY0V01",{"$f":"Kostenverzamelstaat!$I$141","v":0}]
[null,null,null,null,"zvkx15_a__TY0V01",{"$f":"Kostenverzamelstaat!$J$141","v":0}]
[null,null,null,null,"zvkx15_c__TY1V01",{"$f":"Kostenverzamelstaat!$K$141","v":0}]
[null,null,null,null,"zvkx15_a__TY2V01",{"$f":"Kostenverzamelstaat!$L$141","v":0}]
[null,null,null,null,"zvkx15_a__TY1V01",{"$f":"Kostenverzamelstaat!$M$141","v":0}]
[null,null,null,null,"zvkx16_c__TY0V01",{"$f":"Kostenverzamelstaat!$I$144","v":0}]
[null,null,null,null,"zvkx16_a__TY0V01",{"$f":"Kostenverzamelstaat!$J$144","v":0}]
[null,null,null,null,"zvkx16_c__TY1V01",{"$f":"Kostenverzamelstaat!$K$144","v":0}]
[null,null,null,null,"zvkx16_a__TY1V01",{"$f":"Kostenverzamelstaat!$L$144","v":0}]
[null,null,null,null,"zvkx16_a__TY2V01",{"$f":"Kostenverzamelstaat!$M$144","v":0}]
[null,null,null,null,"zvkx_c__TY0V01",{"$f":"Kostenverzamelstaat!$I$145","v":0}]
[null,null,null,null,"zvkx_a__TY0V01",{"$f":"Kostenverzamelstaat!$J$145","v":0}]
[null,null,null,null,"zvkx_c__TY1V01",{"$f":"Kostenverzamelstaat!$K$145","v":0}]
[null,null,null,null,"zvkx_a__TY1V01",{"$f":"Kostenverzamelstaat!$L$145","v":0}]
[null,null,null,null,"zvkx_a__TY2V01",{"$f":"Kostenverzamelstaat!$M$145","v":0}]
[null,null,null,null,"zvkx01_c503__TY0V01",{"$f":"Kostenverzamelstaat!$I$16","v":0},"","Huisartsen- bijz betalingen- incl balans","zvkx01","c503","","TY0V01"]
[null,null,null,null,"zvkx01_a503__TY0V01",{"$f":"Kostenverzamelstaat!$J$16","v":0},"","Huisartsen- bijz betalingen- geaccepteerd","zvkx01","a503","","TY0V01"]
[null,null,null,null,"zvkx01_c503__TY1V01",{"$f":"Kostenverzamelstaat!$K$16","v":0},"","Huisartsen- bijz betalingen- incl balans","zvkx01","c503","","TY1V01"]
[null,null,null,null,"zvkx01_a503__TY1V01",{"$f":"Kostenverzamelstaat!$L$16","v":0},"","Huisartsen- bijz betalingen- geaccepteerd","zvkx01","a503","","TY1V01"]
[null,null,null,null,"zvkx01_a503__TY2V01",{"$f":"Kostenverzamelstaat!$M$16","v":0},"","Huisartsen- bijz betalingen- geaccepteerd","zvkx01","a503","","TY2V01"]
[null,null,null,null,"zvkx01_c504__TY0V01",{"$f":"Kostenverzamelstaat!$I$17","v":0},"","Huisartsen- bijz diensttijden- incl balans","zvkx01","c504","","TY0V01"]
[null,null,null,null,"zvkx01_a504__TY0V01",{"$f":"Kostenverzamelstaat!$J$17","v":0},"","Huisartsen- bijz diensttijden- geaccepteerd","zvkx01","a504","","TY0V01"]
[null,null,null,null,"zvkx01_c504__TY1V01",{"$f":"Kostenverzamelstaat!$K$17","v":0},"","Huisartsen- bijz diensttijden- incl balans","zvkx01","c504","","TY1V01"]
[null,null,null,null,"zvkx01_a504__TY1V01",{"$f":"Kostenverzamelstaat!$L$17","v":0},"","Huisartsen- bijz diensttijden- geaccepteerd","zvkx01","a504","","TY1V01"]
[null,null,null,null,"zvkx01_a504__TY2V01",{"$f":"Kostenverzamelstaat!$M$17","v":0},"","Huisartsen- bijz diensttijden- geaccepteerd","zvkx01","a504","","TY2V01"]
[null,null,null,null,"zvkx01_c505__TY0V01",{"$f":"Kostenverzamelstaat!$I$18","v":0},"","Huisartsen- Inschrijvingen- incl balans","zvkx01","c505","","TY0V01"]
[null,null,null,null,"zvkx01_a505__TY0V01",{"$f":"Kostenverzamelstaat!$J$18","v":0},"","Huisartsen- Inschrijvingen- geaccepteerd","zvkx01","a505","","TY0V01"]
[null,null,null,null,"zvkx01_c505__TY1V01",{"$f":"Kostenverzamelstaat!$K$18","v":0},"","Huisartsen- Inschrijvingen- incl balans","zvkx01","c505","","TY1V01"]
[null,null,null,null,"zvkx01_a505__TY1V01",{"$f":"Kostenverzamelstaat!$L$18","v":0},"","Huisartsen- Inschrijvingen- geaccepteerd","zvkx01","a505","","TY1V01"]
[null,null,null,null,"zvkx01_a505__TY2V01",{"$f":"Kostenverzamelstaat!$M$18","v":0},"","Huisartsen- Inschrijvingen- geaccepteerd","zvkx01","a505","","TY2V01"]
[null,null,null,null,"zvkx01_c506__TY0V01",{"$f":"Kostenverzamelstaat!$I$19","v":0},"","Huisartsen- Consult- incl balans","zvkx01","c506","","TY0V01"]
[null,null,null,null,"zvkx01_a506__TY0V01",{"$f":"Kostenverzamelstaat!$J$19","v":0},"","Huisartsen- Consult- geaccepteerd","zvkx01","a506","","TY0V01"]
[null,null,null,null,"zvkx01_c506__TY1V01",{"$f":"Kostenverzamelstaat!$K$19","v":0},"","Huisartsen- Consult- incl balans","zvkx01","c506","","TY1V01"]
[null,null,null,null,"zvkx01_a506__TY1V01",{"$f":"Kostenverzamelstaat!$L$19","v":0},"","Huisartsen- Consult- geaccepteerd","zvkx01","a506","","TY1V01"]
[null,null,null,null,"zvkx01_a506__TY2V01",{"$f":"Kostenverzamelstaat!$M$19","v":0},"","Huisartsen- Consult- geaccepteerd","zvkx01","a506","","TY2V01"]
[null,null,null,null,"zvkx01_a507__TY0V01",{"$f":"Kostenverzamelstaat!$J$20","v":0},"","Huisartsen- Overige- geaccepteerd","zvkx01","a507","","TY0V01"]
[null,null,null,null,"zvkx01_c507__TY0V01",{"$f":"Kostenverzamelstaat!$I$20","v":0},"","Huisartsen- Overige- incl balans","zvkx01","c507","","TY0V01"]
[null,null,null,null,"zvkx01_c507__TY1V01",{"$f":"Kostenverzamelstaat!$K$20","v":0},"","Huisartsen- Overige- incl balans","zvkx01","c507","","TY1V01"]
[null,null,null,null,"zvkx01_a507__TY1V01",{"$f":"Kostenverzamelstaat!$L$20","v":0},"","Huisartsen- Overige- geaccepteerd","zvkx01","a507","","TY1V01"]
[null,null,null,null,"zvkx01_a507__TY2V01",{"$f":"Kostenverzamelstaat!$M$20","v":0},"","Huisartsen- Overige- geaccepteerd","zvkx01","a507","","TY2V01"]
[null,null,null,null,"zvkx01_c510__TY0V01",{"$f":"Kostenverzamelstaat!$I$21","v":0},"","Huisartsen- MDZ- incl balans","zvkx01","c510","","TY0V01"]
[null,null,null,null,"zvkx01_a510__TY0V01",{"$f":"Kostenverzamelstaat!$J$21","v":0},"","Huisartsen- MDZ- geaccepteerd","zvkx01","a510","","TY0V01"]
[null,null,null,null,"zvkx01_c510__TY1V01",{"$f":"Kostenverzamelstaat!$K$21","v":0},"","Huisartsen- MDZ- incl balans","zvkx01","c510","","TY1V01"]
[null,null,null,null,"zvkx01_a510__TY1V01",{"$f":"Kostenverzamelstaat!$L$21","v":0},"","Huisartsen- MDZ- geaccepteerd","zvkx01","a510","","TY1V01"]
[null,null,null,null,"zvkx01_a510__TY2V01",{"$f":"Kostenverzamelstaat!$M$21","v":0},"","Huisartsen- MDZ- geaccepteerd","zvkx01","a510","","TY2V01"]
[null,null,null,null,"zvkx01_c515__TY0V01",{"$f":"Kostenverzamelstaat!$I$22","v":0},"","Huisartsen- Resultaatbel. huisartsen- incl balans","zvkx01","c515","","TY0V01"]
[null,null,null,null,"zvkx01_a515__TY0V01",{"$f":"Kostenverzamelstaat!$J$22","v":0},"","Huisartsen- Resultaatbel. huisartsen- geaccepteerd","zvkx01","a515","","TY0V01"]
[null,null,null,null,"zvkx01_c515__TY1V01",{"$f":"Kostenverzamelstaat!$K$22","v":0},"","Huisartsen- Resultaatbel. huisartsen- incl balans","zvkx01","c515","","TY1V01"]
[null,null,null,null,"zvkx01_a515__TY1V01",{"$f":"Kostenverzamelstaat!$L$22","v":0},"","Huisartsen- Resultaatbel. huisartsen- geaccepteerd","zvkx01","a515","","TY1V01"]
[null,null,null,null,"zvkx01_a515__TY2V01",{"$f":"Kostenverzamelstaat!$M$22","v":0},"","Huisartsen- Resultaatbel. huisartsen- geaccepteerd","zvkx01","a515","","TY2V01"]
[null,null,null,null,"zvkx01_c516__TY0V01",{"$f":"Kostenverzamelstaat!$I$23","v":0},"","Huisartsen- Resultaatbel. MDZ- incl balans","zvkx01","c516","","TY0V01"]
[null,null,null,null,"zvkx01_a516__TY0V01",{"$f":"Kostenverzamelstaat!$J$23","v":0},"","Huisartsen- Resultaatbel. MDZ- geaccepteerd","zvkx01","a516","","TY0V01"]
[null,null,null,null,"zvkx01_c516__TY1V01",{"$f":"Kostenverzamelstaat!$K$23","v":0},"","Huisartsen- Resultaatbel. MDZ- incl balans","zvkx01","c516","","TY1V01"]
[null,null,null,null,"zvkx01_a516__TY1V01",{"$f":"Kostenverzamelstaat!$L$23","v":0},"","Huisartsen- Resultaatbel. MDZ- geaccepteerd","zvkx01","a516","","TY1V01"]
[null,null,null,null,"zvkx01_a516__TY2V01",{"$f":"Kostenverzamelstaat!$M$23","v":0},"","Huisartsen- Resultaatbel. MDZ- geaccepteerd","zvkx01","a516","","TY2V01"]
[null,null,null,null,"zvkx01_a821__TY2V01",{"$f":"Kostenverzamelstaat!$M$24","v":0},null,"Huisartsen- Netto continuïteitsbijdrage COVID (basisverzekering)- geaccepteerd","zvkx01","a821",null,"TY2V01"]
[null,null,null,null,"zvkx02_c520__TY0V01",{"$f":"Kostenverzamelstaat!$I$27","v":0},"","Farmaceutische hulp- incl balans","zvkx02","c520","","TY0V01"]
[null,null,null,null,"zvkx02_a520__TY0V01",{"$f":"Kostenverzamelstaat!$J$27","v":0},"","Farmaceutische hulp- geaccepteerd","zvkx02","a520","","TY0V01"]
[null,null,null,null,"zvkx02_c520__TY1V01",{"$f":"Kostenverzamelstaat!$K$27","v":0},"","Farmaceutische hulp- incl balans","zvkx02","c520","","TY1V01"]
[null,null,null,null,"zvkx02_a520__TY1V01",{"$f":"Kostenverzamelstaat!$L$27","v":0},"","Farmaceutische hulp- geaccepteerd","zvkx02","a520","","TY1V01"]
[null,null,null,null,"zvkx02_a520__TY2V01",{"$f":"Kostenverzamelstaat!$M$27","v":0},"","Farmaceutische hulp- geaccepteerd","zvkx02","a520","","TY2V01"]
[null,null,null,null,"zvkx02_a822__TY2V01",{"$f":"Kostenverzamelstaat!$M$28","v":0},null,"Farmaceutische hulp- Netto continuïteitsbijdrage COVID (basisverzekering)- geaccepteerd","zvkx02","a822",null,"TY2V01"]
[null,null,null,null,"zvkx03_c530__TY0V01",{"$f":"Kostenverzamelstaat!$I$31","v":0},"","Verpleging en verzorging- incl balans","zvkx03","c530","","TY0V01"]
[null,null,null,null,"zvkx03_a530__TY0V01",{"$f":"Kostenverzamelstaat!$J$31","v":0},"","Verpleging en verzorging- geaccepteerd","zvkx03","a530","","TY0V01"]
[null,null,null,null,"zvkx03_c530__TY1V01",{"$f":"Kostenverzamelstaat!$K$31","v":0},"","Verpleging en verzorging- incl balans","zvkx03","c530","","TY1V01"]
[null,null,null,null,"zvkx03_a530__TY1V01",{"$f":"Kostenverzamelstaat!$L$31","v":0},"","Verpleging en verzorging- geaccepteerd","zvkx03","a530","","TY1V01"]
[null,null,null,null,"zvkx03_a530__TY2V01",{"$f":"Kostenverzamelstaat!$M$31","v":0},"","Verpleging en verzorging- geaccepteerd","zvkx03","a530","","TY2V01"]
[null,null,null,null,"zvkx03_c8031__TY1V01",{"$f":"Kostenverzamelstaat!$K$32","v":0},null,"Verpleging en verzorging-  Meerkosten COVID-19, indirect- incl balans","zvkx03","c8031",null,"TY1V01"]
[null,null,null,null,"zvkx03_a8031__TY1V01",{"$f":"Kostenverzamelstaat!$L$32","v":0},null,"Verpleging en verzorging-  Meerkosten COVID-19, indirect- geaccepteerd","zvkx03","a8031",null,"TY1V01"]
[null,null,null,null,"zvkx03_a823__TY2V01",{"$f":"Kostenverzamelstaat!$M$33","v":0},null,"Verpleging en verzorging- Netto continuïteitsbijdrage COVID (basisverzekering)- geaccepteerd","zvkx03","a823",null,"TY2V01"]
[null,null,null,null,"zvkx04_c5601__TY0V01",{"$f":"Kostenverzamelstaat!$I$36","v":0},"","Mondzorg- volwassen verzekerden- incl balans","zvkx04","c5601","","TY0V01"]
[null,null,null,null,"zvkx04_a5601__TY0V01",{"$f":"Kostenverzamelstaat!$J$36","v":0},"","Mondzorg- volwassen verzekerden- geaccepteerd","zvkx04","a5601","","TY0V01"]
[null,null,null,null,"zvkx04_c5601__TY1V01",{"$f":"Kostenverzamelstaat!$K$36","v":0},"","Mondzorg- volwassen verzekerden- incl balans","zvkx04","c5601","","TY1V01"]
[null,null,null,null,"zvkx04_a5601__TY1V01",{"$f":"Kostenverzamelstaat!$L$36","v":0},"","Mondzorg- volwassen verzekerden- geaccepteerd","zvkx04","a5601","","TY1V01"]
[null,null,null,null,"zvkx04_a5601__TY2V01",{"$f":"Kostenverzamelstaat!$M$36","v":0},"","Mondzorg- volwassen verzekerden- geaccepteerd","zvkx04","a5601","","TY2V01"]
[null,null,null,null,"zvkx04_c5602__TY0V01",{"$f":"Kostenverzamelstaat!$I$37","v":0},"","Mondzorg- jeugdige verzekerden- incl balans","zvkx04","c5602","","TY0V01"]
[null,null,null,null,"zvkx04_a5602__TY0V01",{"$f":"Kostenverzamelstaat!$J$37","v":0},"","Mondzorg- jeugdige verzekerden- geaccepteerd","zvkx04","a5602","","TY0V01"]
[null,null,null,null,"zvkx04_c5602__TY1V01",{"$f":"Kostenverzamelstaat!$K$37","v":0},"","Mondzorg- jeugdige verzekerden- incl balans","zvkx04","c5602","","TY1V01"]
[null,null,null,null,"zvkx04_a5602__TY1V01",{"$f":"Kostenverzamelstaat!$L$37","v":0},"","Mondzorg- jeugdige verzekerden- geaccepteerd","zvkx04","a5602","","TY1V01"]
[null,null,null,null,"zvkx04_a5602__TY2V01",{"$f":"Kostenverzamelstaat!$M$37","v":0},"","Mondzorg- jeugdige verzekerden- geaccepteerd","zvkx04","a5602","","TY2V01"]
[null,null,null,null,"zvkx04_c561__TY0V01",{"$f":"Kostenverzamelstaat!$I$38","v":0},"","Mondzorg- gebitsprothesen- incl balans","zvkx04","c561","","TY0V01"]
[null,null,null,null,"zvkx04_a561__TY0V01",{"$f":"Kostenverzamelstaat!$J$38","v":0},"","Mondzorg- gebitsprothesen- geaccepteerd","zvkx04","a561","","TY0V01"]
[null,null,null,null,"zvkx04_c561__TY1V01",{"$f":"Kostenverzamelstaat!$K$38","v":0},"","Mondzorg- gebitsprothesen- incl balans","zvkx04","c561","","TY1V01"]
[null,null,null,null,"zvkx04_a561__TY1V01",{"$f":"Kostenverzamelstaat!$L$38","v":0},"","Mondzorg- gebitsprothesen- geaccepteerd","zvkx04","a561","","TY1V01"]
[null,null,null,null,"zvkx04_a561__TY2V01",{"$f":"Kostenverzamelstaat!$M$38","v":0},"","Mondzorg- gebitsprothesen- geaccepteerd","zvkx04","a561","","TY2V01"]
[null,null,null,null,"zvkx04_a824__TY2V01",{"$f":"Kostenverzamelstaat!$M$39","v":0},null,"Mondzorg- Netto continuïteitsbijdrage COVID (basisverzekering)-geaccepteerd","zvkx04","c824",null,"TY2V01"]
[null,null,null,null,"zvkx05_c580__TY0V01",{"$f":"Kostenverzamelstaat!$I$42","v":0},"","Verloskundige hulp- door verloskundigen- incl balans","zvkx05","c580","","TY0V01"]
[null,null,null,null,"zvkx05_a580__TY0V01",{"$f":"Kostenverzamelstaat!$J$42","v":0},"","Verloskundige hulp- door verloskundigen- geaccepteerd","zvkx05","a580","","TY0V01"]
[null,null,null,null,"zvkx05_c580__TY1V01",{"$f":"Kostenverzamelstaat!$K$42","v":0},"","Verloskundige hulp- door verloskundigen- incl balans","zvkx05","c580","","TY1V01"]
[null,null,null,null,"zvkx05_a580__TY1V01",{"$f":"Kostenverzamelstaat!$L$42","v":0},"","Verloskundige hulp- door verloskundigen- geaccepteerd","zvkx05","a580","","TY1V01"]
[null,null,null,null,"zvkx05_a580__TY2V01",{"$f":"Kostenverzamelstaat!$M$42","v":0},"","Verloskundige hulp- door verloskundigen- geaccepteerd","zvkx05","a580","","TY2V01"]
[null,null,null,null,"zvkx05_c582__TY0V01",{"$f":"Kostenverzamelstaat!$I$43","v":0},"","Verloskundige hulp- Integrale geboortezorg- incl balans","zvkx05","c582","","TY0V01"]
[null,null,null,null,"zvkx05_a582__TY0V01",{"$f":"Kostenverzamelstaat!$J$43","v":0},"","Verloskundige hulp- Integrale geboortezorg- geaccepteerd","zvkx05","a582","","TY0V01"]
[null,null,null,null,"zvkx05_c582__TY1V01",{"$f":"Kostenverzamelstaat!$K$43","v":0},"","Verloskundige hulp- Integrale geboortezorg- incl balans","zvkx05","c582","","TY1V01"]
[null,null,null,null,"zvkx05_a582__TY1V01",{"$f":"Kostenverzamelstaat!$L$43","v":0},"","Verloskundige hulp- Integrale geboortezorg- geaccepteerd","zvkx05","a582","","TY1V01"]
[null,null,null,null,"zvkx05_a582__TY2V01",{"$f":"Kostenverzamelstaat!$M$43","v":0},"","Verloskundige hulp- Integrale geboortezorg- geaccepteerd","zvkx05","a582","","TY2V01"]
[null,null,null,null,"zvkx05_a825__TY2V01",{"$f":"Kostenverzamelstaat!$M$44","v":0},null,"Verloskundige hulp- Netto continuïteitsbijdrage COVID (basisverzekering)- geaccepteerd","zvkx05","a825",null,"TY2V01"]
[null,null,null,null,"zvkx06_c545__TY0V01",{"$f":"Kostenverzamelstaat!$I$60","v":0},"","Medisch specialistische hulp- mondziekten en kaakchirurgie- incl balans","zvkx06","c545","","TY0V01"]
[null,null,null,null,"zvkx06_a545__TY0V01",{"$f":"Kostenverzamelstaat!$J$60","v":0},"","Medisch specialistische hulp- mondziekten en kaakchirurgie- geaccepteerd","zvkx06","a545","","TY0V01"]
[null,null,null,null,"zvkx06_c545__TY1V01",{"$f":"Kostenverzamelstaat!$K$60","v":0},"","Medisch specialistische hulp- mondziekten en kaakchirurgie- incl balans","zvkx06","c545","","TY1V01"]
[null,null,null,null,"zvkx06_a545__TY1V01",{"$f":"Kostenverzamelstaat!$L$60","v":0},"","Medisch specialistische hulp- mondziekten en kaakchirurgie- geaccepteerd","zvkx06","a545","","TY1V01"]
[null,null,null,null,"zvkx06_a545__TY2V01",{"$f":"Kostenverzamelstaat!$M$60","v":0},"","Medisch specialistische hulp- mondziekten en kaakchirurgie- geaccepteerd","zvkx06","a545","","TY2V01"]
[null,null,null,null,"zvkx06_c610__TY1V01",{"$f":"Kostenverzamelstaat!$K$61","v":0},null,"Medisch specialistische hulp- Overige ziekenhuiszorg,curatief- incl balans","zvkx06","c610","","TY1V01"]
[null,null,null,null,"zvkx06_a610__TY1V01",{"$f":"Kostenverzamelstaat!$L$61","v":0},null,"Medisch specialistische hulp- Overige ziekenhuiszorg,curatief- geaccepteerd","zvkx06","a610","","TY1V01"]
[null,null,null,null,"zvkx06_a610__TY2V01",{"$f":"Kostenverzamelstaat!$M$61","v":0},"","Medisch specialistische hulp- Overige ziekenhuiszorg,curatief- geaccepteerd","zvkx06","a610","","TY2V01"]
[null,null,null,null,"zvkx06_c6101__TY0V01",{"$f":"Kostenverzamelstaat!$I$62","v":0},null,"Medisch specialistische hulp- NTS- incl balans","zvkx06","c6101",null,"TY0V01"]
[null,null,null,null,"zvkx06_a6101__TY0V01",{"$f":"Kostenverzamelstaat!$J$62","v":0},null,"Medisch specialistische hulp- NTS- geaccepteerd","zvkx06","a6102",null,"TY0V01"]
[null,null,null,null,"zvkx06_c6102__TY0V01",{"$f":"Kostenverzamelstaat!$I$63","v":0},null,"Medisch specialistische hulp- Eerstelijnsdiagnostiek- incl balans","zvkx06","c6102",null,"TY0V01"]
[null,null,null,null,"zvkx06_a6102__TY0V01",{"$f":"Kostenverzamelstaat!$J$63","v":0},null,"Medisch specialistische hulp- Eerstelijnsdiagnostiek- geaccepteerd","zvkx06","a6102",null,"TY0V01"]
[null,null,null,null,"zvkx06_c611__TY0V01",{"$f":"Kostenverzamelstaat!$I$64","v":0},"","Medisch specialistische hulp- Overige zorg- incl balans","zvkx06","c611","","TY0V01"]
[null,null,null,null,"zvkx06_a611__TY0V01",{"$f":"Kostenverzamelstaat!$J$64","v":0},"","Medisch specialistische hulp- Overige zorg- geaccepteerd","zvkx06","a611","","TY0V01"]
[null,null,null,null,"zvkx06_c611__TY1V01",{"$f":"Kostenverzamelstaat!$K$64","v":0},"","Medisch specialistische hulp- Overige zorg- incl balans","zvkx06","c611","","TY1V01"]
[null,null,null,null,"zvkx06_a611__TY1V01",{"$f":"Kostenverzamelstaat!$L$64","v":0},"","Medisch specialistische hulp- Overige zorg- geaccepteerd","zvkx06","a611","","TY1V01"]
[null,null,null,null,"zvkx06_a611__TY2V01",{"$f":"Kostenverzamelstaat!$M$64","v":0},"","Medisch specialistische hulp- Overige zorg- geaccepteerd","zvkx06","a611","","TY2V01"]
[null,null,null,null,"zvkx06_c6121__TY0V01",{"$f":"Kostenverzamelstaat!$I$65","v":0},"","Medisch specialistische hulp- add-on's Dure geneesmiddelen- incl balans","zvkx06","c6121","","TY0V01"]
[null,null,null,null,"zvkx06_a6121__TY0V01",{"$f":"Kostenverzamelstaat!$J$65","v":0},"","Medisch specialistische hulp- add-on's Dure geneesmiddelen- geaccepteerd","zvkx06","a6121","","TY0V01"]
[null,null,null,null,"zvkx06_c6121__TY1V01",{"$f":"Kostenverzamelstaat!$K$65","v":0},"","Medisch specialistische hulp- add-on's Dure geneesmiddelen- incl balans","zvkx06","c6121","","TY1V01"]
[null,null,null,null,"zvkx06_a6121__TY1V01",{"$f":"Kostenverzamelstaat!$L$65","v":0},"","Medisch specialistische hulp- add-on's Dure geneesmiddelen- geaccepteerd","zvkx06","a6121","","TY1V01"]
[null,null,null,null,"zvkx06_a6121__TY2V01",{"$f":"Kostenverzamelstaat!$M$65","v":0},"","Medisch specialistische hulp- add-on's Dure geneesmiddelen- geaccepteerd","zvkx06","a6121","","TY2V01"]
[null,null,null,null,"zvkx06_c6122__TY0V01",{"$f":"Kostenverzamelstaat!$I$66","v":0},"","Medisch specialistische hulp- IC- incl balans","zvkx06","c6122","","TY0V01"]
[null,null,null,null,"zvkx06_a6122__TY0V01",{"$f":"Kostenverzamelstaat!$J$66","v":0},"","Medisch specialistische hulp- IC- geaccepteerd","zvkx06","a6122","","TY0V01"]
[null,null,null,null,"zvkx06_c6122__TY1V01",{"$f":"Kostenverzamelstaat!$K$66","v":0},"","Medisch specialistische hulp- IC- incl balans","zvkx06","c6122","","TY1V01"]
[null,null,null,null,"zvkx06_a6122__TY1V01",{"$f":"Kostenverzamelstaat!$L$66","v":0},"","Medisch specialistische hulp- IC- geaccepteerd","zvkx06","a6122","","TY1V01"]
[null,null,null,null,"zvkx06_a6122__TY2V01",{"$f":"Kostenverzamelstaat!$M$66","v":0},"","Medisch specialistische hulp- IC- geaccepteerd","zvkx06","a6122","","TY2V01"]
[null,null,null,null,"zvkx06_c6131__TY0V01",{"$f":"Kostenverzamelstaat!$I$67","v":0},"","Medisch specialistische hulp- Integraal DBC-zorgproduct gereguleerd- incl balans","zvkx06","c6131","","TY0V01"]
[null,null,null,null,"zvkx06_a6131__TY0V01",{"$f":"Kostenverzamelstaat!$J$67","v":0},"","Medisch specialistische hulp- Integraal DBC-zorgproduct gereguleerd- geaccepteerd","zvkx06","a6131","","TY0V01"]
[null,null,null,null,"zvkx06_c6131__TY1V01",{"$f":"Kostenverzamelstaat!$K$67","v":0},"","Medisch specialistische hulp- Integraal DBC-zorgproduct gereguleerd- incl balans","zvkx06","c6131","","TY1V01"]
[null,null,null,null,"zvkx06_a6131__TY1V01",{"$f":"Kostenverzamelstaat!$L$67","v":0},"","Medisch specialistische hulp- Integraal DBC-zorgproduct gereguleerd- geaccepteerd","zvkx06","a6131","","TY1V01"]
[null,null,null,null,"zvkx06_a6131__TY2V01",{"$f":"Kostenverzamelstaat!$M$67","v":0},"","Medisch specialistische hulp- Integraal DBC-zorgproduct gereguleerd- geaccepteerd","zvkx06","a6131","","TY2V01"]
[null,null,null,null,"zvkx06_c6151__TY0V01",{"$f":"Kostenverzamelstaat!$I$68","v":0},"","Medisch specialistische hulp- Integraal DBC-zorgproduct vrije segment- incl balans","zvkx06","c6151","","TY0V01"]
[null,null,null,null,"zvkx06_a6151__TY0V01",{"$f":"Kostenverzamelstaat!$J$68","v":0},"","Medisch specialistische hulp- Integraal DBC-zorgproduct vrije segment- geaccepteerd","zvkx06","a6151","","TY0V01"]
[null,null,null,null,"zvkx06_c6151__TY1V01",{"$f":"Kostenverzamelstaat!$K$68","v":0},"","Medisch specialistische hulp- Integraal DBC-zorgproduct vrije segment- incl balans","zvkx06","c6151","","TY1V01"]
[null,null,null,null,"zvkx06_a6151__TY1V01",{"$f":"Kostenverzamelstaat!$L$68","v":0},"","Medisch specialistische hulp- Integraal DBC-zorgproduct vrije segment- geaccepteerd","zvkx06","a6151","","TY1V01"]
[null,null,null,null,"zvkx06_a6151__TY2V01",{"$f":"Kostenverzamelstaat!$M$68","v":0},"","Medisch specialistische hulp- Integraal DBC-zorgproduct vrije segment- geaccepteerd","zvkx06","a6151","","TY2V01"]
[null,null,null,null,"zvkx06_c619__TY0V01",{"$f":"Kostenverzamelstaat!$I$69","v":0},"","Medisch specialistische hulp- honoraria extramuraal- incl balans","zvkx06","c619","","TY0V01"]
[null,null,null,null,"zvkx06_a619__TY0V01",{"$f":"Kostenverzamelstaat!$J$69","v":0},"","Medisch specialistische hulp- honoraria extramuraal- geaccepteerd","zvkx06","a619","","TY0V01"]
[null,null,null,null,"zvkx06_c619__TY1V01",{"$f":"Kostenverzamelstaat!$K$69","v":0},"","Medisch specialistische hulp- honoraria extramuraal- incl balans","zvkx06","c619","","TY1V01"]
[null,null,null,null,"zvkx06_a619__TY1V01",{"$f":"Kostenverzamelstaat!$L$69","v":0},"","Medisch specialistische hulp- honoraria extramuraal- geaccepteerd","zvkx06","a619","","TY1V01"]
[null,null,null,null,"zvkx06_a619__TY2V01",{"$f":"Kostenverzamelstaat!$M$69","v":0},"","Medisch specialistische hulp- honoraria extramuraal- geaccepteerd","zvkx06","a619","","TY2V01"]
[null,null,null,null,"zvkx06_c8061__TY1V01",{"$f":"Kostenverzamelstaat!$K$70","v":0},null,"Medisch specialistische hulp- Meerkosten COVID-19, indirect- incl balans","zvkx06","c8061",null,"TY1V01"]
[null,null,null,null,"zvkx06_a8061__TY1V01",{"$f":"Kostenverzamelstaat!$L$70","v":0},null,"Medisch specialistische hulp- Meerkosten COVID-19, indirect- geaccepteerd","zvkx06","a8061",null,"TY1V01"]
[null,null,null,null,"zvkx06_c8062__TY0V01",{"$f":"Kostenverzamelstaat!$I$71","v":0},null,"Medisch specialistische hulp- Meerkosten COVID-19, toeslagen- incl balans","zvkx06","c8062",null,"TY0V01"]
[null,null,null,null,"zvkx06_a8062__TY0V01",{"$f":"Kostenverzamelstaat!$J$71","v":0},null,"Medisch specialistische hulp- Meerkosten COVID-19, toeslagen- geaccepteerd","zvkx06","a8062",null,"TY0V01"]
[null,null,null,null,"zvkx06_c8062__TY1V01",{"$f":"Kostenverzamelstaat!$K$71","v":0},null,"Medisch specialistische hulp- Meerkosten COVID-19, toeslagen- incl balans","zvkx06","c8062",null,"TY1V01"]
[null,null,null,null,"zvkx06_a8062__TY1V01",{"$f":"Kostenverzamelstaat!$L$71","v":0},null,"Medisch specialistische hulp- Meerkosten COVID-19, toeslagen- geaccepteerd","zvkx06","a8062",null,"TY1V01"]
[null,null,null,null,"zvkx06_a826__TY2V01",{"$f":"Kostenverzamelstaat!$M$72","v":0},null,"Medisch specialistische hulp- Netto continuïteitsbijdrage COVID (basisverzekering)- geaccepteerd","zvkx06","a826",null,"TY2V01"]
[null,null,null,null,"zvkx07_c620__TY0V01",{"$f":"Kostenverzamelstaat!$I$75","v":0},"","Paramedische hulp- fysiotherapie- incl balans","zvkx07","c620","","TY0V01"]
[null,null,null,null,"zvkx07_a620__TY0V01",{"$f":"Kostenverzamelstaat!$J$75","v":0},"","Paramedische hulp- fysiotherapie- geaccepteerd","zvkx07","a620","","TY0V01"]
[null,null,null,null,"zvkx07_c620__TY1V01",{"$f":"Kostenverzamelstaat!$K$75","v":0},"","Paramedische hulp- fysiotherapie- incl balans","zvkx07","c620","","TY1V01"]
[null,null,null,null,"zvkx07_a620__TY1V01",{"$f":"Kostenverzamelstaat!$L$75","v":0},"","Paramedische hulp- fysiotherapie- geaccepteerd","zvkx07","a620","","TY1V01"]
[null,null,null,null,"zvkx07_a620__TY2V01",{"$f":"Kostenverzamelstaat!$M$75","v":0},"","Paramedische hulp- fysiotherapie- geaccepteerd","zvkx07","a620","","TY2V01"]
[null,null,null,null,"zvkx07_c621__TY0V01",{"$f":"Kostenverzamelstaat!$I$76","v":0},"","Paramedische hulp- Mensendieck/Cesar- incl balans","zvkx07","c621","","TY0V01"]
[null,null,null,null,"zvkx07_a621__TY0V01",{"$f":"Kostenverzamelstaat!$J$76","v":0},"","Paramedische hulp- Mensendieck/Cesar- geaccepteerd","zvkx07","a621","","TY0V01"]
[null,null,null,null,"zvkx07_c621__TY1V01",{"$f":"Kostenverzamelstaat!$K$76","v":0},"","Paramedische hulp- Mensendieck/Cesar- incl balans","zvkx07","c621","","TY1V01"]
[null,null,null,null,"zvkx07_a621__TY1V01",{"$f":"Kostenverzamelstaat!$L$76","v":0},"","Paramedische hulp- Mensendieck/Cesar- geaccepteerd","zvkx07","a621","","TY1V01"]
[null,null,null,null,"zvkx07_a621__TY2V01",{"$f":"Kostenverzamelstaat!$M$76","v":0},"","Paramedische hulp- Mensendieck/Cesar- geaccepteerd","zvkx07","a621","","TY2V01"]
[null,null,null,null,"zvkx07_c623__TY0V01",{"$f":"Kostenverzamelstaat!$I$77","v":0},"","Paramedische hulp- logopedie- incl balans","zvkx07","c623","","TY0V01"]
[null,null,null,null,"zvkx07_a623__TY0V01",{"$f":"Kostenverzamelstaat!$J$77","v":0},"","Paramedische hulp- logopedie- geaccepteerd","zvkx07","a623","","TY0V01"]
[null,null,null,null,"zvkx07_c623__TY1V01",{"$f":"Kostenverzamelstaat!$K$77","v":0},"","Paramedische hulp- logopedie- incl balans","zvkx07","c623","","TY1V01"]
[null,null,null,null,"zvkx07_a623__TY1V01",{"$f":"Kostenverzamelstaat!$L$77","v":0},"","Paramedische hulp- logopedie- geaccepteerd","zvkx07","a623","","TY1V01"]
[null,null,null,null,"zvkx07_a623__TY2V01",{"$f":"Kostenverzamelstaat!$M$77","v":0},"","Paramedische hulp- logopedie- geaccepteerd","zvkx07","a623","","TY2V01"]
[null,null,null,null,"zvkx07_c624__TY0V01",{"$f":"Kostenverzamelstaat!$I$78","v":0},"","Paramedische hulp- ergotherapie- incl balans","zvkx07","c624","","TY0V01"]
[null,null,null,null,"zvkx07_a624__TY0V01",{"$f":"Kostenverzamelstaat!$J$78","v":0},"","Paramedische hulp- ergotherapie- geaccepteerd","zvkx07","a624","","TY0V01"]
[null,null,null,null,"zvkx07_c624__TY1V01",{"$f":"Kostenverzamelstaat!$K$78","v":0},"","Paramedische hulp- ergotherapie- incl balans","zvkx07","c624","","TY1V01"]
[null,null,null,null,"zvkx07_a624__TY1V01",{"$f":"Kostenverzamelstaat!$L$78","v":0},"","Paramedische hulp- ergotherapie- geaccepteerd","zvkx07","a624","","TY1V01"]
[null,null,null,null,"zvkx07_a624__TY2V01",{"$f":"Kostenverzamelstaat!$M$78","v":0},"","Paramedische hulp- ergotherapie- geaccepteerd","zvkx07","a624","","TY2V01"]
[null,null,null,null,"zvkx07_c625__TY0V01",{"$f":"Kostenverzamelstaat!$I$79","v":0},"","Paramedische hulp- dieetadvisering- incl balans","zvkx07","c625","","TY0V01"]
[null,null,null,null,"zvkx07_a625__TY0V01",{"$f":"Kostenverzamelstaat!$J$79","v":0},"","Paramedische hulp- dieetadvisering- geaccepteerd","zvkx07","a625","","TY0V01"]
[null,null,null,null,"zvkx07_c625__TY1V01",{"$f":"Kostenverzamelstaat!$K$79","v":0},"","Paramedische hulp- dieetadvisering- incl balans","zvkx07","c625","","TY1V01"]
[null,null,null,null,"zvkx07_a625__TY1V01",{"$f":"Kostenverzamelstaat!$L$79","v":0},"","Paramedische hulp- dieetadvisering- geaccepteerd","zvkx07","a625","","TY1V01"]
[null,null,null,null,"zvkx07_a625__TY2V01",{"$f":"Kostenverzamelstaat!$M$79","v":0},"","Paramedische hulp- dieetadvisering- geaccepteerd","zvkx07","a625","","TY2V01"]
[null,null,null,null,"zvkx07_c626__TY0V01",{"$f":"Kostenverzamelstaat!$I$80","v":0},"","Paramedische hulp- gecombineerde leefstijl interventie- incl balans","zvkx07","c626","","TY0V01"]
[null,null,null,null,"zvkx07_a626__TY0V01",{"$f":"Kostenverzamelstaat!$J$80","v":0},"","Paramedische hulp- gecombineerde leefstijl interventie- geaccepteerd","zvkx07","a626","","TY0V01"]
[null,null,null,null,"zvkx07_c626__TY1V01",{"$f":"Kostenverzamelstaat!$K$80","v":0},"","Paramedische hulp- gecombineerde leefstijl interventie- incl balans","zvkx07","c626","","TY1V01"]
[null,null,null,null,"zvkx07_a626__TY1V01",{"$f":"Kostenverzamelstaat!$L$80","v":0},"","Paramedische hulp- gecombineerde leefstijl interventie- geaccepteerd","zvkx07","a626","","TY1V01"]
[null,null,null,null,"zvkx07_a626__TY2V01",{"$f":"Kostenverzamelstaat!$M$80","v":0},"","Paramedische hulp- gecombineerde leefstijl interventie- geaccepteerd","zvkx07","a626","","TY2V01"]
[null,null,null,null,"zvkx07_a827__TY2V01",{"$f":"Kostenverzamelstaat!$M$81","v":0},null,"Paramedische hulp- Netto continuïteitsbijdrage COVID (basisverzekering)- geaccepteerd","zvkx07","a827",null,"TY2V01"]
[null,null,null,null,"zvkx08_c640__TY0V01",{"$f":"Kostenverzamelstaat!$I$84","v":0},"","Hulpmiddelen-- incl balans","zvkx08","c640","","TY0V01"]
[null,null,null,null,"zvkx08_a640__TY0V01",{"$f":"Kostenverzamelstaat!$J$84","v":0},"","Hulpmiddelen-- geaccepteerd","zvkx08","a640","","TY0V01"]
[null,null,null,null,"zvkx08_c640__TY1V01",{"$f":"Kostenverzamelstaat!$K$84","v":0},"","Hulpmiddelen-- incl balans","zvkx08","c640","","TY1V01"]
[null,null,null,null,"zvkx08_a640__TY1V01",{"$f":"Kostenverzamelstaat!$L$84","v":0},"","Hulpmiddelen-- geaccepteerd","zvkx08","a640","","TY1V01"]
[null,null,null,null,"zvkx08_a640__TY2V01",{"$f":"Kostenverzamelstaat!$M$84","v":0},"","Hulpmiddelen-- geaccepteerd","zvkx08","a640","","TY2V01"]
[null,null,null,null,"zvkx08_a828__TY2V01",{"$f":"Kostenverzamelstaat!$M$85","v":0},null,"Hulpmiddelen-- Netto continuïteitsbijdrage COVID (basisverzekering)- geaccepteerd","zvkx08","a828",null,"TY2V01"]
[null,null,null,null,"zvkx09_c650__TY0V01",{"$f":"Kostenverzamelstaat!$I$88","v":0},"","Ziekenvervoer- ambulance/helicopter- incl balans","zvkx09","c650","","TY0V01"]
[null,null,null,null,"zvkx09_a650__TY0V01",{"$f":"Kostenverzamelstaat!$J$88","v":0},"","Ziekenvervoer- ambulance/helicopter- geaccepteerd","zvkx09","a650","","TY0V01"]
[null,null,null,null,"zvkx09_c650__TY1V01",{"$f":"Kostenverzamelstaat!$K$88","v":0},"","Ziekenvervoer- ambulance/helicopter- incl balans","zvkx09","c650","","TY1V01"]
[null,null,null,null,"zvkx09_a650__TY1V01",{"$f":"Kostenverzamelstaat!$L$88","v":0},"","Ziekenvervoer- ambulance/helicopter- geaccepteerd","zvkx09","a650","","TY1V01"]
[null,null,null,null,"zvkx09_a650__TY2V01",{"$f":"Kostenverzamelstaat!$M$88","v":0},"","Ziekenvervoer- ambulance/helicopter- geaccepteerd","zvkx09","a650","","TY2V01"]
[null,null,null,null,"zvkx09_c6501__TY0V01",{"$f":"Kostenverzamelstaat!$I$89","v":0},null,"Ziekenvervoer- regionale ambulance- incl balans","zvkx09","c6501","","TY0V01"]
[null,null,null,null,"zvkx09_a6501__TY0V01",{"$f":"Kostenverzamelstaat!$J$89","v":0},null,"Ziekenvervoer- regionale ambulance- geaccepteerd","zvkx09","c6501","","TY0V01"]
[null,null,null,null,"zvkx09_c6501__TY1V01",{"$f":"Kostenverzamelstaat!$K$89","v":0},null,"Ziekenvervoer- regionale ambulance- incl balans","zvkx09","c6501","","TY1V01"]
[null,null,null,null,"zvkx09_a6501__TY1V01",{"$f":"Kostenverzamelstaat!$L$89","v":0},null,"Ziekenvervoer- regionale ambulance- geaccepteerd","zvkx09","c6501","","TY1V01"]
[null,null,null,null,"zvkx09_a6501__TY2V01",{"$f":"Kostenverzamelstaat!$M$89","v":0},null,"Ziekenvervoer- regionale ambulance- geaccepteerd","zvkx09","c6501","","TY2V01"]
[null,null,null,null,"zvkx09_c651__TY0V01",{"$f":"Kostenverzamelstaat!$I$90","v":0},"","Ziekenvervoer- ov, taxi en eigen auto- incl balans","zvkx09","c651","","TY0V01"]
[null,null,null,null,"zvkx09_a651__TY0V01",{"$f":"Kostenverzamelstaat!$J$90","v":0},"","Ziekenvervoer- ov, taxi en eigen auto- geaccepteerd","zvkx09","a651","","TY0V01"]
[null,null,null,null,"zvkx09_c651__TY1V01",{"$f":"Kostenverzamelstaat!$K$90","v":0},"","Ziekenvervoer- ov, taxi en eigen auto- incl balans","zvkx09","c651","","TY1V01"]
[null,null,null,null,"zvkx09_a651__TY1V01",{"$f":"Kostenverzamelstaat!$L$90","v":0},"","Ziekenvervoer- ov, taxi en eigen auto- geaccepteerd","zvkx09","a651","","TY1V01"]
[null,null,null,null,"zvkx09_a651__TY2V01",{"$f":"Kostenverzamelstaat!$M$90","v":0},"","Ziekenvervoer- ov, taxi en eigen auto- geaccepteerd","zvkx09","a651","","TY2V01"]
[null,null,null,null,"zvkx09_a829__TY2V01",{"$f":"Kostenverzamelstaat!$M$91","v":0},null,"Ziekenvervoer- Netto continuïteitsbijdrage COVID (basisverzekering)- geaccepteerd","zvkx09","a829",null,"TY2V01"]
[null,null,null,null,"zvkx10_a661__TY2V01",{"$f":"Kostenverzamelstaat!$M$107","v":0},"","Geneeskundige GGZ- GGZ met verblijf- geaccepteerd","zvkx10","a661","","TY2V01"]
[null,null,null,null,"zvkx10_a6611__TY2V01",{"$f":"Kostenverzamelstaat!$M$108","v":0},"","Geneeskundige GGZ- GGZ jaar 2 en 3- geaccepteerd","zvkx10","a6611","","TY2V01"]
[null,null,null,null,"zvkx10_a662__TY2V01",{"$f":"Kostenverzamelstaat!$M$109","v":0},"","Geneeskundige GGZ- GGZ zonder verblijf- geaccepteerd","zvkx10","a662","","TY2V01"]
[null,null,null,null,"zvkx10_a665__TY2V01",{"$f":"Kostenverzamelstaat!$M$110","v":0},"","Geneeskundige GGZ- basis GGZ- geaccepteerd","zvkx10","a665","","TY2V01"]
[null,null,null,null,"zvkx10_c666__TY0V01",{"$f":"Kostenverzamelstaat!$I$111","v":0},"","Geneeskundige GGZ-Kosten consulten GGZ- incl balans","zvkx10","c666","","TY0V01"]
[null,null,null,null,"zvkx10_a666__TY0V01",{"$f":"Kostenverzamelstaat!$J$111","v":0},"","Geneeskundige GGZ- Kosten consulten GGZ- geaccepteerd","zvkx10","a666","","TY0V01"]
[null,null,null,null,"zvkx10_c666__TY1V01",{"$f":"Kostenverzamelstaat!$K$111","v":0},"","Geneeskundige GGZ-Kosten consulten GGZ- incl balans","zvkx10","c666","","TY1V01"]
[null,null,null,null,"zvkx10_a666__TY1V01",{"$f":"Kostenverzamelstaat!$L$111","v":0},"","Geneeskundige GGZ- Kosten consulten GGZ- geaccepteerd","zvkx10","a666","","TY1V01"]
[null,null,null,null,"zvkx10_c667__TY0V01",{"$f":"Kostenverzamelstaat!$I$112","v":0},"","Geneeskundige GGZ- Kosten intrmuraal verblijf GGZ- incl balans","zvkx10","c667","","TY0V01"]
[null,null,null,null,"zvkx10_a667__TY0V01",{"$f":"Kostenverzamelstaat!$J$112","v":0},"","Geneeskundige GGZ- Kosten intrmuraal verblijf GGZ- geaccepteerd","zvkx10","a667","","TY0V01"]
[null,null,null,null,"zvkx10_c667__TY1V01",{"$f":"Kostenverzamelstaat!$K$112","v":0},"","Geneeskundige GGZ- Kosten intrmuraal verblijf GGZ- incl balans","zvkx10","c667","","TY1V01"]
[null,null,null,null,"zvkx10_a667__TY1V01",{"$f":"Kostenverzamelstaat!$L$112","v":0},"","Geneeskundige GGZ- Kosten intrmuraal verblijf GGZ- geaccepteerd","zvkx10","a667","","TY1V01"]
[null,null,null,null,"zvkx10_c668__TY0V01",{"$f":"Kostenverzamelstaat!$I$113","v":0},"","Geneeskundige GGZ- Kosten overige prestaties GGZ- incl balans","zvkx10","c668","","TY0V01"]
[null,null,null,null,"zvkx10_a668__TY0V01",{"$f":"Kostenverzamelstaat!$J$113","v":0},"","Geneeskundige GGZ- Kosten overige prestaties GGZ- geaccepteerd","zvkx10","a668","","TY0V01"]
[null,null,null,null,"zvkx10_c668__TY1V01",{"$f":"Kostenverzamelstaat!$K$113","v":0},"","Geneeskundige GGZ- Kosten overige prestaties GGZ- incl balans","zvkx10","c668","","TY1V01"]
[null,null,null,null,"zvkx10_a668__TY1V01",{"$f":"Kostenverzamelstaat!$L$113","v":0},"","Geneeskundige GGZ- Kosten overige prestaties GGZ- geaccepteerd","zvkx10","a668","","TY1V01"]
[null,null,null,null,"zvkx10_c8101__TY1V01",{"$f":"Kostenverzamelstaat!$K$114","v":0},null,"Geneeskundige GGZ- Meerkosten COVID-19, indirect- geaccepteerd","zvkx10","c8101",null,"TY1V01"]
[null,null,null,null,"zvkx10_a8101__TY1V01",{"$f":"Kostenverzamelstaat!$L$114","v":0},null,"Geneeskundige GGZ- Meerkosten COVID-19, indirect- geaccepteerd","zvkx10","a8101",null,"TY1V01"]
[null,null,null,null,"zvkx10_a830__TY2V01",{"$f":"Kostenverzamelstaat!$M$115","v":0},null,"Geneeskundige GGZ- Netto continuïteitsbijdrage COVID (basisverzekering)- geaccepteerd","zvkx10","a830",null,"TY2V01"]
[null,null,null,null,"zvkx11_c670__TY0V01",{"$f":"Kostenverzamelstaat!$I$118","v":0},"","GRZ, ELV en GZSP- Geriatische revalidatiezorg- incl balans","zvkx11","c670","","TY0V01"]
[null,null,null,null,"zvkx11_a670__TY0V01",{"$f":"Kostenverzamelstaat!$J$118","v":0},"","GRZ, ELV en GZSP- Geriatische revalidatiezorg-- geaccepteerd","zvkx11","a670","","TY0V01"]
[null,null,null,null,"zvkx11_c670__TY1V01",{"$f":"Kostenverzamelstaat!$K$118","v":0},"","GRZ, ELV en GZSP- Geriatische revalidatiezorg-- incl balans","zvkx11","c670","","TY1V01"]
[null,null,null,null,"zvkx11_a670__TY1V01",{"$f":"Kostenverzamelstaat!$L$118","v":0},"","GRZ, ELV en GZSP- Geriatische revalidatiezorg-- geaccepteerd","zvkx11","a670","","TY1V01"]
[null,null,null,null,"zvkx11_a670__TY2V01",{"$f":"Kostenverzamelstaat!$M$118","v":0},"","GRZ, ELV en GZSP- Geriatische revalidatiezorg-- geaccepteerd","zvkx11","a670","","TY2V01"]
[null,null,null,null,"zvkx11_c81111__TY1V01",{"$f":"Kostenverzamelstaat!$K$119","v":0},null,"GRZ, ELV en GZSP- Meerkosten COVID-19, indirect- incl balans","zvkx11","c81111",null,"TY1V01"]
[null,null,null,null,"zvkx11_a81111__TY1V01",{"$f":"Kostenverzamelstaat!$L$119","v":0},null,"GRZ, ELV en GZSP- Meerkosten COVID-19, indirect- geaccepteerd","zvkx11","a81111",null,"TY1V01"]
[null,null,null,null,"zvkx11_a8311__TY2V01",{"$f":"Kostenverzamelstaat!$M$120","v":0},null,"GRZ, ELV en GZSP- Netto continuïteitsbijdrage COVID (basisverzekering)- geaccepteerd","zvkx11","a8311",null,"TY2V01"]
[null,null,null,null,"zvkx11_c671__TY0V01",{"$f":"Kostenverzamelstaat!$I$121","v":0},"","GRZ, ELV en GZSP- Eerstelijnsverblijf- incl balans","zvkx11","c671","","TY0V01"]
[null,null,null,null,"zvkx11_a671__TY0V01",{"$f":"Kostenverzamelstaat!$J$121","v":0},"","GRZ, ELV en GZSP- Eerstelijnsverblijf- geaccepteerd","zvkx11","a671","","TY0V01"]
[null,null,null,null,"zvkx11_c671__TY1V01",{"$f":"Kostenverzamelstaat!$K$121","v":0},"","GRZ, ELV en GZSP- Eerstelijnsverblijf- incl balans","zvkx11","c671","","TY1V01"]
[null,null,null,null,"zvkx11_a671__TY1V01",{"$f":"Kostenverzamelstaat!$L$121","v":0},"","GRZ, ELV en GZSP- Eerstelijnsverblijf- geaccepteerd","zvkx11","a671","","TY1V01"]
[null,null,null,null,"zvkx11_a671__TY2V01",{"$f":"Kostenverzamelstaat!$M$121","v":0},"","GRZ, ELV en GZSP- Eerstelijnsverblijf- geaccepteerd","zvkx11","a671","","TY2V01"]
[null,null,null,null,"zvkx11_c81121__TY1V01",{"$f":"Kostenverzamelstaat!$K$122","v":0},null,"GRZ, ELV en GZSP- Meerkosten COVID-19, indirect- incl balans","zvkx11","c81121",null,"TY0V01"]
[null,null,null,null,"zvkx11_a81121__TY1V01",{"$f":"Kostenverzamelstaat!$L$122","v":0},null,"GRZ, ELV en GZSP- Meerkosten COVID-19, indirect- geaccepteerd","zvkx11","a81121",null,"TY0V01"]
[null,null,null,null,"zvkx11_a8312__TY2V01",{"$f":"Kostenverzamelstaat!$M$123","v":0},null,"GRZ, ELV en GZSP- Netto continuïteitsbijdrage COVID (basisverzekering)- geaccepteerd","zvkx11","a8312",null,"TY2V01"]
[null,null,null,null,"zvkx11_c672__TY0V01",{"$f":"Kostenverzamelstaat!$I$124","v":0},"","GRZ, ELV en GZSP- GZSP- incl balans","zvkx11","c672","","TY0V01"]
[null,null,null,null,"zvkx11_a672__TY0V01",{"$f":"Kostenverzamelstaat!$J$124","v":0},"","GRZ, ELV en GZSP-  GZSP- geaccepteerd","zvkx11","a672","","TY0V01"]
[null,null,null,null,"zvkx11_c672__TY1V01",{"$f":"Kostenverzamelstaat!$K$124","v":0},"","GRZ, ELV en GZSP- GZSP- incl balans","zvkx11","c672","","TY1V01"]
[null,null,null,null,"zvkx11_a672__TY1V01",{"$f":"Kostenverzamelstaat!$L$124","v":0},"","GRZ, ELV en GZSP-  GZSP- geaccepteerd","zvkx11","a672","","TY1V01"]
[null,null,null,null,"zvkx11_a672__TY2V01",{"$f":"Kostenverzamelstaat!$M$124","v":0},"","GRZ, ELV en GZSP-  GZSP- geaccepteerd","zvkx11","a672","","TY2V01"]
[null,null,null,null,"zvkx11_a8313__TY2V01",{"$f":"Kostenverzamelstaat!$M$125","v":0},null,"GRZ, ELV en GZSP- Netto continuïteitsbijdrage COVID (basisverzekering)- geaccepteerd","zvkx11","a8313",null,"TY2V01"]
[null,null,null,null,"zvkx12_c680__TY0V01",{"$f":"Kostenverzamelstaat!$I$128","v":0},"","Kraamzorg-- incl balans","zvkx12","c680","","TY0V01"]
[null,null,null,null,"zvkx12_a680__TY0V01",{"$f":"Kostenverzamelstaat!$J$128","v":0},"","Kraamzorg-- geaccepteerd","zvkx12","a680","","TY0V01"]
[null,null,null,null,"zvkx12_c680__TY1V01",{"$f":"Kostenverzamelstaat!$K$128","v":0},"","Kraamzorg-- incl balans","zvkx12","c680","","TY1V01"]
[null,null,null,null,"zvkx12_a680__TY1V01",{"$f":"Kostenverzamelstaat!$L$128","v":0},"","Kraamzorg-- geaccepteerd","zvkx12","a680","","TY1V01"]
[null,null,null,null,"zvkx12_a680__TY2V01",{"$f":"Kostenverzamelstaat!$M$128","v":0},"","Kraamzorg-- geaccepteerd","zvkx12","a680","","TY2V01"]
[null,null,null,null,"zvkx12_a832__TY2V01",{"$f":"Kostenverzamelstaat!$M$129","v":0},null,"Kraamzorg-- Netto continuïteitsbijdrage COVID (basisverzekering)- incl balans","zvkx12","c832",null,"TY2V01"]
[null,null,null,null,"zvkx13_c700__TY0V01",{"$f":"Kostenverzamelstaat!$I$132","v":0},"","Overige kosten-- incl balans","zvkx13","c700","","TY0V01"]
[null,null,null,null,"zvkx13_a700__TY0V01",{"$f":"Kostenverzamelstaat!$J$132","v":0},"","Overige kosten-- geaccepteerd","zvkx13","a700","","TY0V01"]
[null,null,null,null,"zvkx13_c700__TY1V01",{"$f":"Kostenverzamelstaat!$K$132","v":0},"","Overige kosten-- incl balans","zvkx13","c700","","TY1V01"]
[null,null,null,null,"zvkx13_a700__TY1V01",{"$f":"Kostenverzamelstaat!$L$132","v":0},"","Overige kosten-- geaccepteerd","zvkx13","a700","","TY1V01"]
[null,null,null,null,"zvkx13_a700__TY2V01",{"$f":"Kostenverzamelstaat!$M$132","v":0},"","Overige kosten-- geaccepteerd","zvkx13","a700","","TY2V01"]
[null,null,null,null,"zvkx13_c701__TY0V01",{"$f":"Kostenverzamelstaat!$I$133","v":0},"","Overige kosten- geneeskundige zorg- incl balans","zvkx13","c701","","TY0V01"]
[null,null,null,null,"zvkx13_a701__TY0V01",{"$f":"Kostenverzamelstaat!$J$133","v":0},"","Overige kosten- geneeskundige zorg- geaccepteerd","zvkx13","a701","","TY0V01"]
[null,null,null,null,"zvkx13_c701__TY1V01",{"$f":"Kostenverzamelstaat!$K$133","v":0},"","Overige kosten- geneeskundige zorg- incl balans","zvkx13","c701","","TY1V01"]
[null,null,null,null,"zvkx13_a701__TY1V01",{"$f":"Kostenverzamelstaat!$L$133","v":0},"","Overige kosten- geneeskundige zorg- geaccepteerd","zvkx13","a701","","TY1V01"]
[null,null,null,null,"zvkx13_a701__TY2V01",{"$f":"Kostenverzamelstaat!$M$133","v":0},"","Overige kosten- geneeskundige zorg- geaccepteerd","zvkx13","a701","","TY2V01"]
[null,null,null,null,"zvkx13_c702__TY0V01",{"$f":"Kostenverzamelstaat!$I$134","v":0},"","Overige kosten- zintuiglijk gehandicapten- incl balans","zvkx13","c702","","TY0V01"]
[null,null,null,null,"zvkx13_a702__TY0V01",{"$f":"Kostenverzamelstaat!$J$134","v":0},"","Overige kosten- zintuiglijk gehandicapten- geaccepteerd","zvkx13","a702","","TY0V01"]
[null,null,null,null,"zvkx13_c702__TY1V01",{"$f":"Kostenverzamelstaat!$K$134","v":0},"","Overige kosten- zintuiglijk gehandicapten- incl balans","zvkx13","c702","","TY1V01"]
[null,null,null,null,"zvkx13_a702__TY1V01",{"$f":"Kostenverzamelstaat!$L$134","v":0},"","Overige kosten- zintuiglijk gehandicapten- geaccepteerd","zvkx13","a702","","TY1V01"]
[null,null,null,null,"zvkx13_a702__TY2V01",{"$f":"Kostenverzamelstaat!$M$134","v":0},"","Overige kosten- zintuiglijk gehandicapten- geaccepteerd","zvkx13","a702","","TY2V01"]
[null,null,null,null,"zvkx13_c703__TY0V01",{"$f":"Kostenverzamelstaat!$I$135","v":0},"","Overige kosten- Transformatiemiddelen IZA- incl balans","zvkx13","c703","","TY0V01"]
[null,null,null,null,"zvkx13_a703__TY0V01",{"$f":"Kostenverzamelstaat!$J$135","v":0},"","Overige kosten- Transformatiemiddelen IZA- geaccepteerd","zvkx13","a703","","TY0V01"]
[null,null,null,null,"zvkx13_a833__TY2V01",{"$f":"Kostenverzamelstaat!$M$136","v":0},null,"Overige kosten-- Netto continuïteitsbijdrage COVID (basisverzekering)- geaccepteerd","zvkx13","a833",null,"TY2V01"]
[null,null,null,null,"zvkx15_c720__TY0V01",{"$f":"Kostenverzamelstaat!$I$139","v":0},"","Grensoverschrijdende zorg- Kosten via verzekeraar-- incl balans","zvkx15","c720","","TY0V01"]
[null,null,null,null,"zvkx15_a720__TY0V01",{"$f":"Kostenverzamelstaat!$J$139","v":0},"","Grensoverschrijdende zorg- Kosten via verzekeraar- geaccepteerd","zvkx15","a720","","TY0V01"]
[null,null,null,null,"zvkx15_c720__TY1V01",{"$f":"Kostenverzamelstaat!$K$139","v":0},"","Grensoverschrijdende zorg- Kosten via verzekeraar-- incl balans","zvkx15","c720","","TY1V01"]
[null,null,null,null,"zvkx15_a720__TY1V01",{"$f":"Kostenverzamelstaat!$L$139","v":0},"","Grensoverschrijdende zorg- Kosten via verzekeraar- geaccepteerd","zvkx15","a720","","TY1V01"]
[null,null,null,null,"zvkx15_a720__TY2V01",{"$f":"Kostenverzamelstaat!$M$139","v":0},"","Grensoverschrijdende zorg- Kosten via verzekeraar- geaccepteerd","zvkx15","a720","","TY2V01"]
[null,null,null,null,"zvkx15_c721__TY0V01",{"$f":"Kostenverzamelstaat!$I$140","v":0},"","Grensoverschrijdende zorg-Kosten via verbindingsorgaan- incl balans","zvkx15","c720","","TY0V01"]
[null,null,null,null,"zvkx15_a721__TY0V01",{"$f":"Kostenverzamelstaat!$J$140","v":0},"","Grensoverschrijdende zorg- Kosten via verbindingsorgaan- geaccepteerd","zvkx15","a720","","TY0V01"]
[null,null,null,null,"zvkx15_c721__TY1V01",{"$f":"Kostenverzamelstaat!$K$140","v":0},"","Grensoverschrijdende zorg-Kosten via verbindingsorgaan- incl balans","zvkx15","c720","","TY1V01"]
[null,null,null,null,"zvkx15_a721__TY1V01",{"$f":"Kostenverzamelstaat!$L$140","v":0},"","Grensoverschrijdende zorg- Kosten via verbindingsorgaan- geaccepteerd","zvkx15","a720","","TY1V01"]
[null,null,null,null,"zvkx15_a721__TY2V01",{"$f":"Kostenverzamelstaat!$M$140","v":0},"","Grensoverschrijdende zorg- Kosten via verbindingsorgaan- geaccepteerd","zvkx15","a720","","TY2V01"]
[null,null,null,null,"zvkx16_c730__TY0V01",{"$f":"Kostenverzamelstaat!$I$143","v":0},"","Kwaliteitsgelden-- incl balans","zvkx16","c730","","TY0V01"]
[null,null,null,null,"zvkx16_a730__TY0V01",{"$f":"Kostenverzamelstaat!$J$143","v":0},"","Kwaliteitsgelden-- geaccepteerd","zvkx16","a730","","TY0V01"]
[null,null,null,null,"zvkx16_c730__TY1V01",{"$f":"Kostenverzamelstaat!$K$143","v":0},"","Kwaliteitsgelden-- incl balans","zvkx16","c730","","TY1V01"]
[null,null,null,null,"zvkx16_a730__TY1V01",{"$f":"Kostenverzamelstaat!$L$143","v":0},"","Kwaliteitsgelden-- geaccepteerd","zvkx16","a730","","TY1V01"]
[null,null,null,null,"zvkx16_a730__TY2V01",{"$f":"Kostenverzamelstaat!$M$143","v":0},"","Kwaliteitsgelden-- geaccepteerd","zvkx16","a730","","TY2V01"]
[null,null,null,null,"zvkx17_a1__TY3V01",{"$f":"Kostenverzamelstaat!$M$149","v":0},null,"TOTAAL NETTO CONTINUITEITSBIJDRAGE COVID (BASISVERZEKERING), VARIABEL-  geaccepteerd","zvkx17","a1",null,"TY3V01"]
[null,null,null,null,"zvkx17_a2__TY3V01",{"$f":"Kostenverzamelstaat!$M$150","v":0},null,"'TOTAAL NETTO CONTINUITEITSBIJDRAGE COVID (BASISVERZEKERING), GGZ-  geaccepteerd","zvkx17","a2",null,"TY3V01"]
[null,null,null,null,"zvkxdnb_c8901__TY0V01",{"$f":"Kostenverzamelstaat!$I$154","v":0},"","Verschilposten DNB- Opbrengsten verhaal- incl balans","zvkxdnb","c8901","","TY0V01"]
[null,null,null,null,"zvkxdnb_a8901__TY0V01",{"$f":"Kostenverzamelstaat!$J$154","v":0},"","Verschilposten DNB- Opbrengsten verhaal- geaccepteerd","zvkxdnb","c8901","","TY0V01"]
[null,null,null,null,"zvkxdnb_c8901__TY1V01",{"$f":"Kostenverzamelstaat!$K$154","v":0},"","Verschilposten DNB- Opbrengsten verhaal- incl balans","zvkxdnb","c8901","","TY1V01"]
[null,null,null,null,"zvkxdnb_a8901__TY1V01",{"$f":"Kostenverzamelstaat!$L$154","v":0},"","Verschilposten DNB- Opbrengsten verhaal- geaccepteerd","zvkxdnb","c8901","","TY1V01"]
[null,null,null,null,"zvkxdnb_a8901__TY2V01",{"$f":"Kostenverzamelstaat!$M$154","v":0},"","Verschilposten DNB- Opbrengsten verhaal- geaccepteerd","zvkxdnb","c8901","","TY2V01"]
[null,null,null,null,"zvkxdnb_c910__TY0V01",{"$f":"Kostenverzamelstaat!$I$155","v":0},"","Verschilposten DNB- Schade tlv het vrijwillig eigen risico- incl balans","zvkxdnb","c910","","TY0V01"]
[null,null,null,null,"zvkxdnb_a910__TY0V01",{"$f":"Kostenverzamelstaat!$J$155","v":0},"","Verschilposten DNB- Schade tlv het vrijwillig eigen risico- geaccepteerd","zvkxdnb","a910","","TY0V01"]
[null,null,null,null,"zvkxdnb_c910__TY1V01",{"$f":"Kostenverzamelstaat!$K$155","v":0},"","Verschilposten DNB- Schade tlv het vrijwillig eigen risico- incl balans","zvkxdnb","c910","","TY1V01"]
[null,null,null,null,"zvkxdnb_a910__TY1V01",{"$f":"Kostenverzamelstaat!$L$155","v":0},"","Verschilposten DNB- Schade tlv het vrijwillig eigen risico- geaccepteerd","zvkxdnb","a910","","TY1V01"]
[null,null,null,null,"zvkxdnb_a910__TY2V01",{"$f":"Kostenverzamelstaat!$M$155","v":0},"","Verschilposten DNB- Schade tlv het vrijwillig eigen risico- geaccepteerd","zvkxdnb","a910","","TY2V01"]
[null,null,null,null,"zvkxdnb_c915__TY0V01",{"$f":"Kostenverzamelstaat!$I$156","v":0},"","Verschilposten DNB- Schade tlv het verplicht eigen risico- incl balans","zvkxdnb","c915","","TY0V01"]
[null,null,null,null,"zvkxdnb_a915__TY0V01",{"$f":"Kostenverzamelstaat!$J$156","v":0},"","Verschilposten DNB- Schade tlv het verplicht eigen risico- geaccepteerd","zvkxdnb","a915","","TY0V01"]
[null,null,null,null,"zvkxdnb_c915__TY1V01",{"$f":"Kostenverzamelstaat!$K$156","v":0},"","Verschilposten DNB- Schade tlv het verplicht eigen risico- incl balans","zvkxdnb","c915","","TY1V01"]
[null,null,null,null,"zvkxdnb_a915__TY1V01",{"$f":"Kostenverzamelstaat!$L$156","v":0},"","Verschilposten DNB- Schade tlv het verplicht eigen risico- geaccepteerd","zvkxdnb","a915","","TY1V01"]
[null,null,null,null,"zvkxdnb_a915__TY2V01",{"$f":"Kostenverzamelstaat!$M$156","v":0},"","Verschilposten DNB- Schade tlv het verplicht eigen risico- geaccepteerd","zvkxdnb","a915","","TY2V01"]
[null,null,null,null,"zvkxdnb_c940__TY0V01",{"$f":"Kostenverzamelstaat!$I$157","v":0},"","Verschilposten DNB- Netto Premieopbrengsten- incl balans","zvkxdnb","c940","","TY0V01"]
[null,null,null,null,"zvkxdnb_a940__TY0V01",{"$f":"Kostenverzamelstaat!$J$157","v":0},"","Verschilposten DNB- Netto Premieopbrengsten- geaccepteerd","zvkxdnb","a940","","TY0V01"]
[null,null,null,null,"zvkxdnb_c940__TY1V01",{"$f":"Kostenverzamelstaat!$K$157","v":0},"","Verschilposten DNB- Netto Premieopbrengsten- incl balans","zvkxdnb","c940","","TY1V01"]
[null,null,null,null,"zvkxdnb_a940__TY1V01",{"$f":"Kostenverzamelstaat!$L$157","v":0},"","Verschilposten DNB- Netto Premieopbrengsten- geaccepteerd","zvkxdnb","a940","","TY1V01"]
[null,null,null,null,"zvkxdnb_a940__TY2V01",{"$f":"Kostenverzamelstaat!$M$157","v":0},"","Verschilposten DNB- Netto Premieopbrengsten- geaccepteerd","zvkxdnb","a940","","TY2V01"]
[null,null,null,null,"zvkx01_ac504__TY2V01",{"$f":"'Specifieke informatie B'!$I$14","v":0},"","Huisartsen- bijz diensttijden-kst Corona-  geaccepteerd","zvkx01","ac504","","TY2V01"]
[null,null,null,null,"zvkx01_ac504__TY3V01",{"$f":"'Specifieke informatie B'!$J$14","v":0},"","Huisartsen- bijz diensttijden-kst Corona-  geaccepteerd","zvkx01","ac504","","TY3V01"]
[null,null,null,null,"zvkx01_ac506__TY2V01",{"$f":"'Specifieke informatie B'!$I$15","v":0},"","Huisartsen- Consult-kst Corona-  geaccepteerd","zvkx01","ac506","","TY2V01"]
[null,null,null,null,"zvkx01_ac506__TY3V01",{"$f":"'Specifieke informatie B'!$J$15","v":0},"","Huisartsen- Consult-kst Corona-  geaccepteerd","zvkx01","ac506","","TY3V01"]
[null,null,null,null,"zvkx01_ac507__TY2V01",{"$f":"'Specifieke informatie B'!$I$16","v":0},"","Huisartsen- Overige-kst Corona- geaccepteerd","zvkx01","ac507","","TY2V01"]
[null,null,null,null,"zvkx01_ac507__TY3V01",{"$f":"'Specifieke informatie B'!$J$16","v":0},"","Huisartsen- Overige-kst Corona- geaccepteerd","zvkx01","ac507","","TY3V01"]
[null,null,null,null,"zvkx01_ac515__TY2V01",{"$f":"'Specifieke informatie B'!$I$17","v":0},"","Huisartsen- Resultaatbel. huisartsen-kst Corona-  geaccepteerd","zvkx01","ac515","","TY2V01"]
[null,null,null,null,"zvkx01_ac515__TY3V01",{"$f":"'Specifieke informatie B'!$J$17","v":0},"","Huisartsen- Resultaatbel. huisartsen-kst Corona-  geaccepteerd","zvkx01","ac515","","TY3V01"]
[null,null,null,null,"zvkx01_ac8011__TY2V01",{"$f":"'Specifieke informatie B'!$I$18","v":0},null,"Huisartsen- Meerkosten Corona, indirect en toeslagen- kst Corona- geaccepteerd","zvkx01","ac8011",null,"TY2V01"]
[null,null,null,null,"zvkx01_ac8011__TY3V01",{"$f":"'Specifieke informatie B'!$J$18","v":0},null,"Huisartsen- Meerkosten Corona, indirect en toeslagen-kst Corona- incl balans","zvkx01","ac8011",null,"TY3V01"]
[null,null,null,null,"zvkx01_ac8012__TY2V01",{"$f":"'Specifieke informatie B'!$I$19","v":0},null,"Huisartsen- Meerkosten COVID-19, indirect- kst Corona- incl balans","zvkx01","ac8012",null,"TY2V01"]
[null,null,null,null,"zvkx01_ac8012__TY3V01",{"$f":"'Specifieke informatie B'!$J$19","v":0},null,"Huisartsen- Meerkosten COVID-19, toeslagen- kst Corona- incl balans","zvkx01","ac8012",null,"TY3V01"]
[null,null,null,null,"zvkx02_ac8021__TY3V01",{"$f":"'Specifieke informatie B'!$J$22","v":0},null,"Farmaceutische hulp- Meerkosten COVID-19, indirect-kst Corona- geaccepteerd","zvkx02","ac8021",null,"TY3V01"]
[null,null,null,null,"zvkx03_ac530__TY2V01",{"$f":"'Specifieke informatie B'!$I$25","v":0},"","Verpleging en verzorging-kst Corona- incl balans","zvkx03","ac530","","TY2V01"]
[null,null,null,null,"zvkx03_ac530__TY3V01",{"$f":"'Specifieke informatie B'!$J$25","v":0},"","Verpleging en verzorging-kst Corona- incl balans","zvkx03","ac530","","TY3V01"]
[null,null,null,null,"zvkx03_ac8031__TY2V01",{"$f":"'Specifieke informatie B'!$I$26","v":0},null,"Verpleging en verzorging- Meerkosten COVID-19, indirect-kst Corona- geaccepteerd","zvkx03","ac8031",null,"TY2V01"]
[null,null,null,null,"zvkx03_ac8031__TY3V01",{"$f":"'Specifieke informatie B'!$J$26","v":0},null,"Verpleging en verzorging- Meerkosten COVID-19, indirect-kst Corona- geaccepteerd","zvkx03","ac8031",null,"TY3V01"]
[null,null,null,null,"zvkx04_ac8041__TY3V01",{"$f":"'Specifieke informatie B'!$J$29","v":0},null,"Mondzorg- Meerkosten COVID-19, indirect-kst Corona- geaccepteerd","zvkx04","ac8041",null,"TY3V01"]
[null,null,null,null,"zvkx04_ac8042__TY3V01",{"$f":"'Specifieke informatie B'!$J$30","v":0},null,"Mondzorg- Meerkosten COVID-19, toeslagen-kst Corona- geaccepteerd","zvkx04","ac8042",null,"TY3V01"]
[null,null,null,null,"zvkx05_ac8051__TY3V01",{"$f":"'Specifieke informatie B'!$J$33","v":0},null,"Verloskundige hulp- Meerkosten COVID-19, indirect- kst Corona- geaccepteerd","zvkx05","ac8051",null,"TY3V01"]
[null,null,null,null,"zvkx06_ac6122__TY2V01",{"$f":"'Specifieke informatie B'!$I$46","v":0},"","Medisch specialistische hulp- IC-kst Corona- incl balans","zvkx06","ac6122","","TY2V01"]
[null,null,null,null,"zvkx06_ac6122__TY3V01",{"$f":"'Specifieke informatie B'!$J$46","v":0},"","Medisch specialistische hulp- IC-kst Corona- incl balans","zvkx06","ac6122","","TY3V01"]
[null,null,null,null,"zvkx06_ac6131__TY2V01",{"$f":"'Specifieke informatie B'!$I$47","v":0},"","Medisch specialistische hulp- Integraal DBC-zorgproduct gereguleerd-kst Corona- geaccepteerd","zvkx06","ac6131","","TY2V01"]
[null,null,null,null,"zvkx06_ac6131__TY3V01",{"$f":"'Specifieke informatie B'!$J$47","v":0},"","Medisch specialistische hulp- Integraal DBC-zorgproduct gereguleerd-kst Corona- geaccepteerd","zvkx06","ac6131","","TY3V01"]
[null,null,null,null,"zvkx06_ac6151__TY2V01",{"$f":"'Specifieke informatie B'!$I$48","v":0},"","Medisch specialistische hulp- Integraal DBC-zorgproduct vrije segment-kst Corona-  geaccepteerd","zvkx06","ac6151","","TY2V01"]
[null,null,null,null,"zvkx06_ac6151__TY3V01",{"$f":"'Specifieke informatie B'!$J$48","v":0},"","Medisch specialistische hulp- Integraal DBC-zorgproduct vrije segment-kst Corona-  geaccepteerd","zvkx06","ac6151","","TY3V01"]
[null,null,null,null,"zvkx06_ac8061__TY2V01",{"$f":"'Specifieke informatie B'!$I$49","v":0},null,"Medisch specialistische hulp- Meerkosten COVID-19, indirect-kst Corona- geaccepteerd","zvkx06","ac8061",null,"TY2V01"]
[null,null,null,null,"zvkx06_ac8061__TY3V01",{"$f":"'Specifieke informatie B'!$J$49","v":0},null,"Medisch specialistische hulp- Meerkosten COVID-19, indirect-kst Corona- geaccepteerd","zvkx06","ac8061",null,"TY3V01"]
[null,null,null,null,"zvkx06_ac8062__TY2V01",{"$f":"'Specifieke informatie B'!$I$50","v":0},null,"Medisch specialistische hulp- Meerkosten COVID-19, toeslagen-kst Corona- geaccepteerd","zvkx06","ac8062",null,"TY2V01"]
[null,null,null,null,"zvkx07_ac620__TY2V01",{"$f":"'Specifieke informatie B'!$I$53","v":0},"","Paramedische hulp- fysiotherapie-kst Corona- geaccepteerd","zvkx07","ac620","","TY2V01"]
[null,null,null,null,"zvkx07_ac620__TY3V01",{"$f":"'Specifieke informatie B'!$J$53","v":0},"","Paramedische hulp- fysiotherapie-kst Corona- geaccepteerd","zvkx07","ac620","","TY3V01"]
[null,null,null,null,"zvkx07_ac621__TY2V01",{"$f":"'Specifieke informatie B'!$I$54","v":0},"","Paramedische hulp- Mensendieck/Cesar-kst Corona- geaccepteerd","zvkx07","ac621","","TY2V01"]
[null,null,null,null,"zvkx07_ac621__TY3V01",{"$f":"'Specifieke informatie B'!$J$54","v":0},"","Paramedische hulp- Mensendieck/Cesar-kst Corona- geaccepteerd","zvkx07","ac621","","TY3V01"]
[null,null,null,null,"zvkx07_ac623__TY2V01",{"$f":"'Specifieke informatie B'!$I$55","v":0},"","Paramedische hulp- logopedie-kst Corona- geaccepteerd","zvkx07","ac623","","TY2V01"]
[null,null,null,null,"zvkx07_ac623__TY3V01",{"$f":"'Specifieke informatie B'!$J$55","v":0},"","Paramedische hulp- logopedie-kst Corona- geaccepteerd","zvkx07","ac623","","TY3V01"]
[null,null,null,null,"zvkx07_ac624__TY2V01",{"$f":"'Specifieke informatie B'!$I$56","v":0},"","Paramedische hulp- ergotherapie-kst Corona- geaccepteerd","zvkx07","ac624","","TY2V01"]
[null,null,null,null,"zvkx07_ac624__TY3V01",{"$f":"'Specifieke informatie B'!$J$56","v":0},"","Paramedische hulp- ergotherapie-kst Corona- geaccepteerd","zvkx07","ac624","","TY3V01"]
[null,null,null,null,"zvkx07_ac625__TY2V01",{"$f":"'Specifieke informatie B'!$I$57","v":0},"","Paramedische hulp- dieetadvisering-kst Corona- geaccepteerd","zvkx07","ac625","","TY2V01"]
[null,null,null,null,"zvkx07_ac625__TY3V01",{"$f":"'Specifieke informatie B'!$J$57","v":0},"","Paramedische hulp- dieetadvisering-kst Corona- geaccepteerd","zvkx07","ac625","","TY3V01"]
[null,null,null,null,"zvkx07_ac8071__TY3V01",{"$f":"'Specifieke informatie B'!$J$58","v":0},null,"Paramedische hulp-  Meerkosten COVID-19, indirect-kst Corona- geaccepteerd","zvkx07","ac8071",null,"TY3V01"]
[null,null,null,null,"zvkx08_ac8081__TY2V01",{"$f":"'Specifieke informatie B'!$I$61","v":0},null,"Hulpmiddelen-- Meerkosten COVID-19, indirect-kst Corona- geaccepteerd","zvkx08","ac8081",null,"TY2V01"]
[null,null,null,null,"zvkx08_ac8081__TY3V01",{"$f":"'Specifieke informatie B'!$J$61","v":0},null,"Hulpmiddelen-- Meerkosten COVID-19, indirect-kst Corona- geaccepteerd","zvkx08","ac8081",null,"TY3V01"]
[null,null,null,null,"zvkx09_ac650__TY2V01",{"$f":"'Specifieke informatie B'!$I$64","v":0},"","Ziekenvervoer- dieetadvisering-kst Corona- geaccepteerd","zvkx07","ac650","","TY2V01"]
[null,null,null,null,"zvkx09_ac650__TY3V01",{"$f":"'Specifieke informatie B'!$J$64","v":0},"","Ziekenvervoer- dieetadvisering-kst Corona- geaccepteerd","zvkx07","ac650","","TY3V01"]
[null,null,null,null,"zvkx09_ac8091__TY2V01",{"$f":"'Specifieke informatie B'!$I$65","v":0},null,"Ziekenvervoer- Meerkosten COVID-19, indirect-kst Corona- geaccepteerd","zvkx09","ac8091",null,"TY2V01"]
[null,null,null,null,"zvkx09_ac8091__TY3V01",{"$f":"'Specifieke informatie B'!$J$65","v":0},null,"Ziekenvervoer- Meerkosten COVID-19, indirect-kst Corona- geaccepteerd","zvkx09","ac8091",null,"TY3V01"]
[null,null,null,null,"zvkx10_ac8101__TY2V01",{"$f":"'Specifieke informatie B'!$I$77","v":0},null,"Geneeskundige GGZ- Meerkosten Corona, indirect en toeslagen-kst Corona- incl balans","zvkx10","ac8101",null,"TY2V01"]
[null,null,null,null,"zvkx10_ac8101__TY3V01",{"$f":"'Specifieke informatie B'!$J$77","v":0},null,"Geneeskundige GGZ- Meerkosten Corona, indirect en toeslagen-kst Corona- incl balans","zvkx10","ac8101",null,"TY3V01"]
[null,null,null,null,"zvkx11_ac670__TY2V01",{"$f":"'Specifieke informatie B'!$I$80","v":0},"","GRZ, ELV en GZSP- Eerstelijnsverblijf-kst Corona- geaccepteerd","zvkx11","ac671","","TY2V01"]
[null,null,null,null,"zvkx11_ac670__TY3V01",{"$f":"'Specifieke informatie B'!$J$80","v":0},"","GRZ, ELV en GZSP- Eerstelijnsverblijf-kst Corona- geaccepteerd","zvkx11","ac671","","TY3V01"]
[null,null,null,null,"zvkx11_ac671__TY2V01",{"$f":"'Specifieke informatie B'!$I$81","v":0},"","GRZ, ELV en GZSP- Eerstelijnsverblijf-kst Corona- geaccepteerd","zvkx11","ac671","","TY2V01"]
[null,null,null,null,"zvkx11_ac671__TY3V01",{"$f":"'Specifieke informatie B'!$J$81","v":0},"","GRZ, ELV en GZSP- Eerstelijnsverblijf-kst Corona- geaccepteerd","zvkx11","ac671","","TY3V01"]
[null,null,null,null,"zvkx11_ac81111__TY2V01",{"$f":"'Specifieke informatie B'!$I$82","v":0},null,"GRZ, ELV en GZSP- Meerkosten COVID-19, indirect GRZ- kst Corona- geaccepteerd","zvkx11","ac81111",null,"TY2V01"]
[null,null,null,null,"zvkx11_ac81111__TY3V01",{"$f":"'Specifieke informatie B'!$J$82","v":0},null,"GRZ, ELV en GZSP- Meerkosten COVID-19, indirect GRZ- kst Corona- geaccepteerd","zvkx11","ac81111",null,"TY3V01"]
[null,null,null,null,"zvkx11_ac81121__TY2V01",{"$f":"'Specifieke informatie B'!$I$83","v":0},null,"GRZ, ELV en GZSP- Meerkosten COVID-19, indirect ELV-- kst Corona- geaccepteerd","zvkx11","ac81121",null,"TY2V01"]
[null,null,null,null,"zvkx11_ac81121__TY3V01",{"$f":"'Specifieke informatie B'!$J$83","v":0},null,"GRZ, ELV en GZSP- Meerkosten COVID-19, indirect ELV-- kst Corona- geaccepteerd","zvkx11","ac81121",null,"TY3V01"]
[null,null,null,null,"zvkx11_ac81131__TY2V01",{"$f":"'Specifieke informatie B'!$I$84","v":0},null,"GRZ, ELV en GZSP- Meerkosten COVID-19, indirect GZSP-- kst Corona- geaccepteerd","zvkx11","ac81131",null,"TY2V01"]
[null,null,null,null,"zvkx11_ac81131__TY3V01",{"$f":"'Specifieke informatie B'!$J$84","v":0},null,"GRZ, ELV en GZSP- Meerkosten COVID-19, indirect GZSP-- kst Corona- geaccepteerd","zvkx11","ac81131",null,"TY3V01"]
[null,null,null,null,"zvkx12_ac8121__TY3V01",{"$f":"'Specifieke informatie B'!$J$87","v":0},null,"KRAAMZORG- Meerkosten COVID-19, indirect-kst Corona- geaccepteerd","zvkx12","ac8121",null,"TY3V01"]
[null,null,null,null,"zvkx13_ac8131__TY3V01",{"$f":"'Specifieke informatie B'!$J$90","v":0},null,"Overige kosten-- Meerkosten COVID-19, indirect-kst Corona- geaccepteerd","zvkx13","ac8131",null,"TY3V01"]
[null,null,null,null,"zvkx01_ac__TY2V01",{"$f":"'Specifieke informatie B'!$I$20","v":0}]
[null,null,null,null,"zvkx01_ac__TY3V01",{"$f":"'Specifieke informatie B'!$J$20","v":0}]
[null,null,null,null,"zvkx02_ac__TY2V01",{"$f":"'Specifieke informatie B'!$I$23","v":0}]
[null,null,null,null,"zvkx02_ac__TY3V01",{"$f":"'Specifieke informatie B'!$J$23","v":0}]
[null,null,null,null,"zvkx03_ac__TY2V01",{"$f":"'Specifieke informatie B'!$I$27","v":0}]
[null,null,null,null,"zvkx03_ac__TY3V01",{"$f":"'Specifieke informatie B'!$J$27","v":0}]
[null,null,null,null,"zvkx04_ac__TY2V01",{"$f":"'Specifieke informatie B'!$I$31","v":0}]
[null,null,null,null,"zvkx04_ac__TY3V01",{"$f":"'Specifieke informatie B'!$J$31","v":0}]
[null,null,null,null,"zvkx05_ac__TY2V01",{"$f":"'Specifieke informatie B'!$I$34","v":0}]
[null,null,null,null,"zvkx05_ac__TY3V01",{"$f":"'Specifieke informatie B'!$J$34","v":0}]
[null,null,null,null,"zvkx06_ac__TY2V01",{"$f":"'Specifieke informatie B'!$I$51","v":0}]
[null,null,null,null,"zvkx06_ac__TY3V01",{"$f":"'Specifieke informatie B'!$J$51","v":0}]
[null,null,null,null,"zvkx07_ac__TY2V01",{"$f":"'Specifieke informatie B'!$I$59","v":0}]
[null,null,null,null,"zvkx07_ac__TY3V01",{"$f":"'Specifieke informatie B'!$J$59","v":0}]
[null,null,null,null,"zvkx08_ac__TY2V01",{"$f":"'Specifieke informatie B'!$I$62","v":0}]
[null,null,null,null,"zvkx08_ac__TY3V01",{"$f":"'Specifieke informatie B'!$J$62","v":0}]
[null,null,null,null,"zvkx09_ac__TY2V01",{"$f":"'Specifieke informatie B'!$I$66","v":0}]
[null,null,null,null,"zvkx09_ac__TY3V01",{"$f":"'Specifieke informatie B'!$J$66","v":0}]
[null,null,null,null,"zvkx10_ac__TY2V01",{"$f":"'Specifieke informatie B'!$I$78","v":0}]
[null,null,null,null,"zvkx10_ac__TY3V01",{"$f":"'Specifieke informatie B'!$J$78","v":0}]
[null,null,null,null,"zvkx11_ac__TY2V01",{"$f":"'Specifieke informatie B'!$I$85","v":0}]
[null,null,null,null,"zvkx11_ac__TY3V01",{"$f":"'Specifieke informatie B'!$J$85","v":0}]
[null,null,null,null,"zvkx12_ac__TY3V01",{"$f":"'Specifieke informatie B'!$J$88","v":0}]
[null,null,null,null,"zvkx13_ac__TY3V01",{"$f":"'Specifieke informatie B'!$J$91","v":0}]
[null,null,null,null,"zvkx_ac__TY2V01",{"$f":"'Specifieke informatie B'!$I$96","v":0}]
[null,null,null,null,"zvkx_ac__TY3V01",{"$f":"'Specifieke informatie B'!$J$96","v":0}]
[null,null,null,null,"zvkxdnb_ac915__TY2V01",{"$f":"'Specifieke informatie B'!$I$100","v":0},"","Verschilposten DNB- Schade tlv het verplicht eigen risico- geaccepteerd","zvkxdnb","ac915","","TY2V01"]
[null,null,null,null,"zvkxdnb_ac915__TY3V01",{"$f":"'Specifieke informatie B'!$J$100","v":0},"","Verschilposten DNB- Schade tlv het verplicht eigen risico- geaccepteerd","zvkxdnb","ac915","","TY3V01"]
[null,null,null,null,"zvox01_c97101_o01trf_TY0V01",{"$f":"Contractinformatie!$J$14","v":0},"","Huisartsenzorg en Multidisciplinaire zorg, (code 503,504,505,506,507,515)- Gecontracteerd 503,504,505,506,507,515- incl balans","zvox01","c97101","o01trf","TY0V01"]
[null,null,null,null,"zvox01_c97101_o01trf_TY1V01",{"$f":"Contractinformatie!$K$14","v":0},"","Huisartsenzorg en Multidisciplinaire zorg, (code 503,504,505,506,507,515)- Gecontracteerd 503,504,505,506,507,515- incl balans","zvox01","c97101","o01trf","TY1V01"]
[null,null,null,null,"zvox01_c97101_o01trf_TY2V01",{"$f":"Contractinformatie!$L$14","v":0},"","Huisartsenzorg en Multidisciplinaire zorg, (code 503,504,505,506,507,515)- Gecontracteerd 503,504,505,506,507,515- incl balans","zvox01","c97101","o01trf","TY2V01"]
[null,null,null,null,"zvox01_c97101_o52trf_TY0V01",{"$f":"Contractinformatie!$J$15","v":0},"","Huisartsenzorg en Multidisciplinaire zorg, (code 503,504,505,506,507,515)- Niet gecontracteerd 503,504,505,506,507,515- incl balans","zvox01","c97101","o52trf","TY0V01"]
[null,null,null,null,"zvox01_c97101_o52trf_TY1V01",{"$f":"Contractinformatie!$K$15","v":0},"","Huisartsenzorg en Multidisciplinaire zorg, (code 503,504,505,506,507,515)- Niet gecontracteerd 503,504,505,506,507,515- incl balans","zvox01","c97101","o52trf","TY1V01"]
[null,null,null,null,"zvox01_c97101_o52trf_TY2V01",{"$f":"Contractinformatie!$L$15","v":0},"","Huisartsenzorg en Multidisciplinaire zorg, (code 503,504,505,506,507,515)- Niet gecontracteerd 503,504,505,506,507,515- incl balans","zvox01","c97101","o52trf","TY2V01"]
[null,null,null,null,"zvox01_c97101_o01mdz_TY0V01",{"$f":"Contractinformatie!$J$18","v":0},"","Huisartsenzorg en Multidisciplinaire zorg, (code 510 en 516)- Gecontracteerd 510,516- incl balans","zvox01","c97101","o01mdz","TY0V01"]
[null,null,null,null,"zvox01_c97101_o01mdz_TY1V01",{"$f":"Contractinformatie!$K$18","v":0},"","Huisartsenzorg en Multidisciplinaire zorg, (code 510 en 516)- Gecontracteerd 510,516- incl balans","zvox01","c97101","o01mdz","TY1V01"]
[null,null,null,null,"zvox01_c97101_o01mdz_TY2V01",{"$f":"Contractinformatie!$L$18","v":0},"","Huisartsenzorg en Multidisciplinaire zorg, (code 510 en 516)- Gecontracteerd 510,516- incl balans","zvox01","c97101","o01mdz","TY2V01"]
[null,null,null,null,"zvox01_c97101_o52mdz_TY0V01",{"$f":"Contractinformatie!$J$19","v":0},"","Huisartsenzorg en Multidisciplinaire zorg, (code 510 en 516)- Niet gecontracteerd  510,516- incl balans","zvox01","c97101","o52mdz","TY0V01"]
[null,null,null,null,"zvox01_c97101_o52mdz_TY1V01",{"$f":"Contractinformatie!$K$19","v":0},"","Huisartsenzorg en Multidisciplinaire zorg, (code 510 en 516)- Niet gecontracteerd  510,516- incl balans","zvox01","c97101","o52mdz","TY1V01"]
[null,null,null,null,"zvox01_c97101_o52mdz_TY2V01",{"$f":"Contractinformatie!$L$19","v":0},"","Huisartsenzorg en Multidisciplinaire zorg, (code 510 en 516)- Niet gecontracteerd  510,516- incl balans","zvox01","c97101","o52mdz","TY2V01"]
[null,null,null,null,"zvox01_c97101_o01mk_TY2V01",{"$f":"Contractinformatie!$L$21","v":0},null,"Huisartsenzorg en Multidisciplinaire zorg- Meerkosten (toeslagen en lumpsum), gecontracteerd en niet gecontracteerd- incl balans","zvox01","c97101","o01mk","TY2V01"]
[null,null,null,null,"zvox01_c97101_o01nc_TY2V01",{"$f":"Contractinformatie!$L$22","v":0},null,"Huisartsenzorg en Multidisciplinaire zorg- Netto Continuïteitsbijdrage Corona, gecontracteerd en niet gecontracteerd- incl balans","zvox01","c97101","o01nc","TY2V01"]
[null,null,null,null,"zvox03_c97103_o01_TY0V01",{"$f":"Contractinformatie!$J$28","v":0},"","Contractinformatie Verpleging en Verzorging- Gecontracteerd- incl balans","zvox03","c97103","o01","TY0V01"]
[null,null,null,null,"zvox03_c97103_o01_TY1V01",{"$f":"Contractinformatie!$K$28","v":0},"","Contractinformatie Verpleging en Verzorging- Gecontracteerd- incl balans","zvox03","c97103","o01","TY1V01"]
[null,null,null,null,"zvox03_c97103_o01_TY2V01",{"$f":"Contractinformatie!$L$28","v":0},"","Contractinformatie Verpleging en Verzorging- Gecontracteerd- incl balans","zvox03","c97103","o01","TY2V01"]
[null,null,null,null,"zvox03_c97103_o52_TY0V01",{"$f":"Contractinformatie!$J$29","v":0},"","Contractinformatie Verpleging en Verzorging- Niet gecontracteerd- incl balans","zvox03","c97103","o52","TY0V01"]
[null,null,null,null,"zvox03_c97103_o52_TY1V01",{"$f":"Contractinformatie!$K$29","v":0},"","Contractinformatie Verpleging en Verzorging- Niet gecontracteerd- incl balans","zvox03","c97103","o52","TY1V01"]
[null,null,null,null,"zvox03_c97103_o52_TY2V01",{"$f":"Contractinformatie!$L$29","v":0},"","Contractinformatie Verpleging en Verzorging- Niet gecontracteerd- incl balans","zvox03","c97103","o52","TY2V01"]
[null,null,null,null,"zvox03_c97103_o08_TY0V01",{"$f":"Contractinformatie!$J$30","v":0},null,"Contractinformatie Verpleging en Verzorging- PGB- incl balans","zvox03","c97103","o08","TY0V01"]
[null,null,null,null,"zvox03_c97103_o08_TY1V01",{"$f":"Contractinformatie!$K$30","v":0},null,"Contractinformatie Verpleging en Verzorging- PGB- incl balans","zvox03","c97103","o08","TY1V01"]
[null,null,null,null,"zvox03_c97103_o08_TY2V01",{"$f":"Contractinformatie!$L$30","v":0},null,"Contractinformatie Verpleging en Verzorging- PGB- incl balans","zvox03","c97103","o08","TY2V01"]
[null,null,null,null,"zvox03_c97103_o01mk_TY1V01",{"$f":"Contractinformatie!$K$31","v":0},null,"Contractinformatie Verpleging en Verzorging- Meerkosten (toeslagen en lumpsum), gecontracteerd en niet gecontracteerd- incl balans","zvox03","c97101","o01mk","TY1V01"]
[null,null,null,null,"zvox03_c97103_o01mk_TY2V01",{"$f":"Contractinformatie!$L$31","v":0},null,"Contractinformatie Verpleging en Verzorging- Meerkosten (toeslagen en lumpsum), gecontracteerd en niet gecontracteerd- incl balans","zvox03","c97101","o01mk","TY2V01"]
[null,null,null,null,"zvox03_c97103_o01nc_TY2V01",{"$f":"Contractinformatie!$L$32","v":0},null,"Contractinformatie Verpleging en Verzorging- Netto Continuïteitsbijdrage Corona, gecontracteerd en niet gecontracteerd- incl balans","zvox03","c97101","o01nc","TY2V01"]
[null,null,null,null,"zvox06_c97106_o02_TY0V01",{"$f":"Contractinformatie!$J$38","v":0},"","Medisch Specialistische Zorg- aanneemsom- incl balans","zvox06","c97106","o02","TY0V01"]
[null,null,null,null,"zvox06_c97106_o02_TY1V01",{"$f":"Contractinformatie!$K$38","v":0},"","Medisch Specialistische Zorg- aanneemsom- incl balans","zvox06","c97106","o02","TY1V01"]
[null,null,null,null,"zvox06_c97106_o02_TY2V01",{"$f":"Contractinformatie!$L$38","v":0},"","Medisch Specialistische Zorg- aanneemsom- incl balans","zvox06","c97106","o02","TY2V01"]
[null,null,null,null,"zvox06_c97106_o03_TY0V01",{"$f":"Contractinformatie!$J$39","v":0},"","Medisch Specialistische Zorg- plafond- incl balans","zvox06","c97106","o03","TY0V01"]
[null,null,null,null,"zvox06_c97106_o03_TY1V01",{"$f":"Contractinformatie!$K$39","v":0},"","Medisch Specialistische Zorg- plafond- incl balans","zvox06","c97106","o03","TY1V01"]
[null,null,null,null,"zvox06_c97106_o03_TY2V01",{"$f":"Contractinformatie!$L$39","v":0},"","Medisch Specialistische Zorg- plafond- incl balans","zvox06","c97106","o03","TY2V01"]
[null,null,null,null,"zvox06_c97106_o04_TY0V01",{"$f":"Contractinformatie!$J$40","v":0},"","Medisch Specialistische Zorg- nacalculatie- incl balans","zvox06","c97106","o04","TY0V01"]
[null,null,null,null,"zvox06_c97106_o04_TY1V01",{"$f":"Contractinformatie!$K$40","v":0},"","Medisch Specialistische Zorg- nacalculatie- incl balans","zvox06","c97106","o04","TY1V01"]
[null,null,null,null,"zvox06_c97106_o04_TY2V01",{"$f":"Contractinformatie!$L$40","v":0},"","Medisch Specialistische Zorg- nacalculatie- incl balans","zvox06","c97106","o04","TY2V01"]
[null,null,null,null,"zvox06_c97106_o05_TY0V01",{"$f":"Contractinformatie!$J$41","v":0},"","Medisch Specialistische Zorg- open einde contract- incl balans","zvox06","c97106","o05","TY0V01"]
[null,null,null,null,"zvox06_c97106_o05_TY1V01",{"$f":"Contractinformatie!$K$41","v":0},"","Medisch Specialistische Zorg- open einde contract- incl balans","zvox06","c97106","o05","TY1V01"]
[null,null,null,null,"zvox06_c97106_o05_TY2V01",{"$f":"Contractinformatie!$L$41","v":0},"","Medisch Specialistische Zorg- open einde contract- incl balans","zvox06","c97106","o05","TY2V01"]
[null,null,null,null,"zvox06_c97106_o52_TY0V01",{"$f":"Contractinformatie!$J$43","v":0},"","Medisch Specialistische Zorg- Niet gecontracteerd- incl balans","zvox06","c97106","o52","TY0V01"]
[null,null,null,null,"zvox06_c97106_o52_TY1V01",{"$f":"Contractinformatie!$K$43","v":0},"","Medisch Specialistische Zorg- Niet gecontracteerd- incl balans","zvox06","c97106","o52","TY1V01"]
[null,null,null,null,"zvox06_c97106_o52_TY2V01",{"$f":"Contractinformatie!$L$43","v":0},"","Medisch Specialistische Zorg- Niet gecontracteerd- incl balans","zvox06","c97106","o52","TY2V01"]
[null,null,null,null,"zvox06_c97106_o01mk_TY1V01",{"$f":"Contractinformatie!$K$44","v":0},null,"Medisch Specialistische Zorg- Meerkosten (toeslagen en lumpsum), gecontracteerd en niet gecontracteerd- incl balans","zvox06","c97106","o01mk","TY1V01"]
[null,null,null,null,"zvox06_c97106_o01mk_TY2V01",{"$f":"Contractinformatie!$L$44","v":0},null,"Medisch Specialistische Zorg- Meerkosten (toeslagen en lumpsum), gecontracteerd en niet gecontracteerd- incl balans","zvox06","c97106","o01mk","TY2V01"]
[null,null,null,null,"zvox06_c97106_o01nc_TY2V01",{"$f":"Contractinformatie!$L$45","v":0},null,"Medisch Specialistische Zorg- Netto Continuïteitsbijdrage Corona, gecontracteerd en niet gecontracteerd- incl balans","zvox06","c97106","o01nc","TY2V01"]
[null,null,null,null,"zvox06_c97106_o91_TY0V01",{"$f":"Contractinformatie!$J$49","v":0},null,"Medisch Specialistische Zorg- Totaal afgesproken maximum omzet plafondcontracten- incl balans","zvox06","c97106","o91","TY0V01"]
[null,null,null,null,"zvox06_c97106_o91_TY1V01",{"$f":"Contractinformatie!$K$49","v":0},null,"Medisch Specialistische Zorg- Totaal afgesproken maximum omzet plafondcontracten- incl balans","zvox06","c97106","o91","TY1V01"]
[null,null,null,null,"zvox06_c97106_o91_TY2V01",{"$f":"Contractinformatie!$L$49","v":0},null,"Medisch Specialistische Zorg- Totaal afgesproken maximum omzet plafondcontracten- incl balans","zvox06","c97106","o91","TY2V01"]
[null,null,null,null,"zvox10_c97110_o02_TY0V01",{"$f":"Contractinformatie!$J$58","v":0},"","Geneeskundige GGZ- aanneemsom- incl balans","zvox10","c97110","o02","TY0V01"]
[null,null,null,null,"zvox10_c97110_o02_TY1V01",{"$f":"Contractinformatie!$K$58","v":0},"","Geneeskundige GGZ- aanneemsom- incl balans","zvox10","c97110","o02","TY1V01"]
[null,null,null,null,"zvox10_c97110_o02_TY2V01",{"$f":"Contractinformatie!$L$58","v":0},"","Geneeskundige GGZ- aanneemsom- incl balans","zvox10","c97110","o02","TY2V01"]
[null,null,null,null,"zvox10_c97110_o03_TY0V01",{"$f":"Contractinformatie!$J$59","v":0},"","Geneeskundige GGZ- plafond- incl balans","zvox10","c97110","o03","TY0V01"]
[null,null,null,null,"zvox10_c97110_o03_TY1V01",{"$f":"Contractinformatie!$K$59","v":0},"","Geneeskundige GGZ- plafond- incl balans","zvox10","c97110","o03","TY1V01"]
[null,null,null,null,"zvox10_c97110_o03_TY2V01",{"$f":"Contractinformatie!$L$59","v":0},"","Geneeskundige GGZ- plafond- incl balans","zvox10","c97110","o03","TY2V01"]
[null,null,null,null,"zvox10_c97110_o04_TY0V01",{"$f":"Contractinformatie!$J$60","v":0},"","Geneeskundige GGZ- nacalculatie- incl balans","zvox10","c97110","o04","TY0V01"]
[null,null,null,null,"zvox10_c97110_o04_TY1V01",{"$f":"Contractinformatie!$K$60","v":0},"","Geneeskundige GGZ- nacalculatie- incl balans","zvox10","c97110","o04","TY1V01"]
[null,null,null,null,"zvox10_c97110_o04_TY2V01",{"$f":"Contractinformatie!$L$60","v":0},"","Geneeskundige GGZ- nacalculatie- incl balans","zvox10","c97110","o04","TY2V01"]
[null,null,null,null,"zvox10_c97110_o05_TY0V01",{"$f":"Contractinformatie!$J$61","v":0},"","Geneeskundige GGZ- open einde contract- incl balans","zvox10","c97110","o05","TY0V01"]
[null,null,null,null,"zvox10_c97110_o05_TY1V01",{"$f":"Contractinformatie!$K$61","v":0},"","Geneeskundige GGZ- open einde contract- incl balans","zvox10","c97110","o05","TY1V01"]
[null,null,null,null,"zvox10_c97110_o05_TY2V01",{"$f":"Contractinformatie!$L$61","v":0},"","Geneeskundige GGZ- open einde contract- incl balans","zvox10","c97110","o05","TY2V01"]
[null,null,null,null,"zvox10_c97110_o52_TY0V01",{"$f":"Contractinformatie!$J$63","v":0},"","Geneeskundige GGZ- Niet gecontracteerd- incl balans","zvox10","c97110","o52","TY0V01"]
[null,null,null,null,"zvox10_c97110_o52_TY1V01",{"$f":"Contractinformatie!$K$63","v":0},"","Geneeskundige GGZ- Niet gecontracteerd- incl balans","zvox10","c97110","o52","TY1V01"]
[null,null,null,null,"zvox10_c97110_o52_TY2V01",{"$f":"Contractinformatie!$L$63","v":0},"","Geneeskundige GGZ- Niet gecontracteerd- incl balans","zvox10","c97110","o52","TY2V01"]
[null,null,null,null,"zvox10_c97110_o01mk_TY1V01",{"$f":"Contractinformatie!$K$64","v":0},null,"Geneeskundige GGZ- Meerkosten (toeslagen en lumpsum), gecontracteerd en niet gecontracteerd- incl balans","zvox10","c97110","o01mk","TY1V01"]
[null,null,null,null,"zvox10_c97110_o01mk_TY2V01",{"$f":"Contractinformatie!$L$64","v":0},null,"Geneeskundige GGZ- Meerkosten (toeslagen en lumpsum), gecontracteerd en niet gecontracteerd- incl balans","zvox10","c97110","o01mk","TY2V01"]
[null,null,null,null,"zvox10_c97110_o01nc_TY2V01",{"$f":"Contractinformatie!$L$65","v":0},null,"Geneeskundige GGZ- Netto Continuïteitsbijdrage Corona, gecontracteerd en niet gecontracteerd- incl balans","zvox10","c97110","o01nc","TY2V01"]
[null,null,null,null,"zvox10_c97110_o91_TY0V01",{"$f":"Contractinformatie!$J$69","v":0},null,"Geneeskundige GGZ- Totaal afgesproken maximum omzet plafondcontracten- incl balans","zvox10","c97110","o91","TY0V01"]
[null,null,null,null,"zvox10_c97110_o91_TY1V01",{"$f":"Contractinformatie!$K$69","v":0},null,"Geneeskundige GGZ- Totaal afgesproken maximum omzet plafondcontracten- incl balans","zvox10","c97110","o91","TY1V01"]
[null,null,null,null,"zvox10_c97110_o91_TY2V01",{"$f":"Contractinformatie!$L$69","v":0},null,"Geneeskundige GGZ- Totaal afgesproken maximum omzet plafondcontracten- incl balans","zvox10","c97110","o91","TY2V01"]
[null,null,null,null,"zvox13_c97113_bo01_TY0V01",{"$f":"Contractinformatie!$J$74","v":0},"","Zintuiglijk gehandicapten- Gecontracteerd- incl balans","zvox13","c97113","bo01","TY0V01"]
[null,null,null,null,"zvox13_c97113_bo01_TY1V01",{"$f":"Contractinformatie!$K$74","v":0},"","Zintuiglijk gehandicapten- Gecontracteerd- incl balans","zvox13","c97113","bo01","TY1V01"]
[null,null,null,null,"zvox13_c97113_bo01_TY2V01",{"$f":"Contractinformatie!$L$74","v":0},"","Zintuiglijk gehandicapten- Gecontracteerd- incl balans","zvox13","c97113","bo01","TY2V01"]
[null,null,null,null,"zvox13_c97113_bo52_TY0V01",{"$f":"Contractinformatie!$J$75","v":0},"","Zintuiglijk gehandicapten- Niet gecontracteerd- incl balans","zvox13","c97113","bo52","TY0V01"]
[null,null,null,null,"zvox13_c97113_bo52_TY1V01",{"$f":"Contractinformatie!$K$75","v":0},"","Zintuiglijk gehandicapten- Niet gecontracteerd- incl balans","zvox13","c97113","bo52","TY1V01"]
[null,null,null,null,"zvox13_c97113_bo52_TY2V01",{"$f":"Contractinformatie!$L$75","v":0},"","Zintuiglijk gehandicapten- Niet gecontracteerd- incl balans","zvox13","c97113","bo52","TY2V01"]
[null,null,null,null,"zvox13_c97113_o01mk_TY2V01",{"$f":"Contractinformatie!$L$76","v":0},null,"Zintuiglijk gehandicapten- Meerkosten (toeslagen en lumpsum), gecontracteerd en niet gecontracteerd- incl balans","zvox13","c97113","o01mk","TY2V01"]
[null,null,null,null,"zvox13_c97113_o01nc_TY2V01",{"$f":"Contractinformatie!$L$77","v":0},null,"Zintuiglijk gehandicapten- Netto Continuïteitsbijdrage Corona, gecontracteerd en niet gecontracteerd- incl balans","zvox13","c97113","o01nc","TY2V01"]
[null,null,null,null,"zvox11_c97111_o01rvl_TY0V01",{"$f":"Contractinformatie!$J$84","v":0},"","Geriatrische Revalidatiezorg 670 en Eerstelijnsverblijf 671,  Geneeskundige Zorg Specifieke Patiëntgroepen (code 672))- Gecontracteerd  670- incl balans","zvox11","c97111","o01rvl","TY0V01"]
[null,null,null,null,"zvox11_c97111_o01rvl_TY1V01",{"$f":"Contractinformatie!$K$84","v":0},"","Geriatrische Revalidatiezorg 670 en Eerstelijnsverblijf 671,  Geneeskundige Zorg Specifieke Patiëntgroepen (code 672)- Gecontracteerd  670- incl balans","zvox11","c97111","o01rvl","TY1V01"]
[null,null,null,null,"zvox11_c97111_o01rvl_TY2V01",{"$f":"Contractinformatie!$L$84","v":0},"","Geriatrische Revalidatiezorg 670 en Eerstelijnsverblijf 671,  Geneeskundige Zorg Specifieke Patiëntgroepen (code 672))- Gecontracteerd  670- incl balans","zvox11","c97111","o01rvl","TY2V01"]
[null,null,null,null,"zvox11_c97111_o52rvl_TY0V01",{"$f":"Contractinformatie!$J$85","v":0},"","Geriatrische Revalidatiezorg 670 en Eerstelijnsverblijf 671,  Geneeskundige Zorg Specifieke Patiëntgroepen (code 672)- Niet gecontracteerd 670- incl balans","zvox11","c97111","o52rvl","TY0V01"]
[null,null,null,null,"zvox11_c97111_o52rvl_TY1V01",{"$f":"Contractinformatie!$K$85","v":0},"","Geriatrische Revalidatiezorg 670 en Eerstelijnsverblijf 671,  Geneeskundige Zorg Specifieke Patiëntgroepen (code 672)- Niet gecontracteerd 670- incl balans","zvox11","c97111","o52rvl","TY1V01"]
[null,null,null,null,"zvox11_c97111_o52rvl_TY2V01",{"$f":"Contractinformatie!$L$85","v":0},"","Geriatrische Revalidatiezorg 670 en Eerstelijnsverblijf 671,  Geneeskundige Zorg Specifieke Patiëntgroepen (code 672)- Niet gecontracteerd 670- incl balans","zvox11","c97111","o52rvl","TY2V01"]
[null,null,null,null,"zvox11_c97111_o52rvlmk_TY1V01",{"$f":"Contractinformatie!$K$86","v":0},null,"Geriatrische Revalidatiezorg 670 en Eerstelijnsverblijf 671, Geneeskundige Zorg Specifieke Patiëntgroepen (code 672)- Meerkosten (toeslagen en lumpsum), gecontracteerd en niet gecontracteerd- incl balans","zvox11","c97111","o52rvlmk","TY1V01"]
[null,null,null,null,"zvox11_c97111_o52rvlmk_TY2V01",{"$f":"Contractinformatie!$L$86","v":0},null,"Geriatrische Revalidatiezorg 670 en Eerstelijnsverblijf 671, Geneeskundige Zorg Specifieke Patiëntgroepen (code 672)- Meerkosten (toeslagen en lumpsum), gecontracteerd en niet gecontracteerd- incl balans","zvox11","c97111","o52rvlmk","TY2V01"]
[null,null,null,null,"zvox11_c97111_o52rvlnc_TY2V01",{"$f":"Contractinformatie!$L$87","v":0},null,"Geriatrische Revalidatiezorg 670 en Eerstelijnsverblijf 671, Geneeskundige Zorg Specifieke Patiëntgroepen (code 672)- Netto Continuïteitsbijdrage Corona, gecontracteerd en niet gecontracteerd- incl balans","zvox11","c97111","o52rvlnc","TY2V01"]
[null,null,null,null,"zvox11_c97111_o01ln1_TY0V01",{"$f":"Contractinformatie!$J$90","v":0},"","Geriatrische Revalidatiezorg 670 en Eerstelijnsverblijf 671,  Geneeskundige Zorg Specifieke Patiëntgroepen (code 672)- Gecontracteerd 671- incl balans","zvox11","c97111","o01ln1","TY0V01"]
[null,null,null,null,"zvox11_c97111_o01ln1_TY1V01",{"$f":"Contractinformatie!$K$90","v":0},"","Geriatrische Revalidatiezorg 670 en Eerstelijnsverblijf 671,  Geneeskundige Zorg Specifieke Patiëntgroepen (code 672)- Gecontracteerd 671- incl balans","zvox11","c97111","o01ln1","TY1V01"]
[null,null,null,null,"zvox11_c97111_o01ln1_TY2V01",{"$f":"Contractinformatie!$L$90","v":0},"","Geriatrische Revalidatiezorg 670 en Eerstelijnsverblijf 671,  Geneeskundige Zorg Specifieke Patiëntgroepen (code 672)- Gecontracteerd 671- incl balans","zvox11","c97111","o01ln1","TY2V01"]
[null,null,null,null,"zvox11_c97111_o52ln1_TY0V01",{"$f":"Contractinformatie!$J$91","v":0},"","Geriatrische Revalidatiezorg 670 en Eerstelijnsverblijf 671,  Geneeskundige Zorg Specifieke Patiëntgroepen (code 672)- Niet gecontracteerd 671- incl balans","zvox11","c97111","o52ln1","TY0V01"]
[null,null,null,null,"zvox11_c97111_o52ln1_TY1V01",{"$f":"Contractinformatie!$K$91","v":0},"","Geriatrische Revalidatiezorg 670 en Eerstelijnsverblijf 671,  Geneeskundige Zorg Specifieke Patiëntgroepen (code 672)- Niet gecontracteerd 671- incl balans","zvox11","c97111","o52ln1","TY1V01"]
[null,null,null,null,"zvox11_c97111_o52ln1_TY2V01",{"$f":"Contractinformatie!$L$91","v":0},"","Geriatrische Revalidatiezorg 670 en Eerstelijnsverblijf 671,  Geneeskundige Zorg Specifieke Patiëntgroepen (code 672)- Niet gecontracteerd 671- incl balans","zvox11","c97111","o52ln1","TY2V01"]
[null,null,null,null,"zvox11_c97111_o52ln1mk_TY1V01",{"$f":"Contractinformatie!$K$92","v":0},null,"Geriatrische Revalidatiezorg 670 en Eerstelijnsverblijf 671, Geneeskundige Zorg Specifieke Patiëntgroepen (code 672)- Meerkosten (toeslagen en lumpsum), gecontracteerd en niet gecontracteerd- incl balans","zvox11","c97111","o52ln1mk","TY1V01"]
[null,null,null,null,"zvox11_c97111_o52ln1mk_TY2V01",{"$f":"Contractinformatie!$L$92","v":0},null,"Geriatrische Revalidatiezorg 670 en Eerstelijnsverblijf 671, Geneeskundige Zorg Specifieke Patiëntgroepen (code 672)- Meerkosten (toeslagen en lumpsum), gecontracteerd en niet gecontracteerd- incl balans","zvox11","c97111","o52ln1mk","TY2V01"]
[null,null,null,null,"zvox11_c97111_o52ln1nc_TY2V01",{"$f":"Contractinformatie!$L$93","v":0},null,"Geriatrische Revalidatiezorg 670 en Eerstelijnsverblijf 671, Geneeskundige Zorg Specifieke Patiëntgroepen (code 672)- Netto Continuïteitsbijdrage Corona, gecontracteerd en niet gecontracteerd- incl balans","zvox11","c97111","o52ln1nc","TY2V01"]
[null,null,null,null,"zvox11_c97111_o01gzsp_TY0V01",{"$f":"Contractinformatie!$J$96","v":0},null,"Geriatrische Revalidatiezorg 670 en Eerstelijnsverblijf 671,  Geneeskundige Zorg Specifieke Patiëntgroepen (code 672)- Gecontracteerd 672- incl balans","zvox11","c97111","o01gzsp","TY0V01"]
[null,null,null,null,"zvox11_c97111_o01gzsp_TY1V01",{"$f":"Contractinformatie!$K$96","v":0},null,"Geriatrische Revalidatiezorg 670 en Eerstelijnsverblijf 671,  Geneeskundige Zorg Specifieke Patiëntgroepen (code 672)- Gecontracteerd 672- incl balans","zvox11","c97111","o01gzsp","TY1V01"]
[null,null,null,null,"zvox11_c97111_o01gzsp_TY2V01",{"$f":"Contractinformatie!$L$96","v":0},null,"Geriatrische Revalidatiezorg 670 en Eerstelijnsverblijf 671,  Geneeskundige Zorg Specifieke Patiëntgroepen (code 672)- Gecontracteerd 672- incl balans","zvox11","c97111","o01gzsp","TY2V01"]
[null,null,null,null,"zvox11_c97111_o52gzsp_TY0V01",{"$f":"Contractinformatie!$J$97","v":0},null,"Geriatrische Revalidatiezorg 670 en Eerstelijnsverblijf 671, Geneeskundige Zorg Specifieke Patiëntgroepen (code 672)- Niet gecontracteerd 672- incl balans","zvox11","c97111","o52gzsp","TY0V01"]
[null,null,null,null,"zvox11_c97111_o52gzsp_TY1V01",{"$f":"Contractinformatie!$K$97","v":0},null,"Geriatrische Revalidatiezorg 670 en Eerstelijnsverblijf 671, Geneeskundige Zorg Specifieke Patiëntgroepen (code 672)- Niet gecontracteerd 672- incl balans","zvox11","c97111","o52gzsp","TY1V01"]
[null,null,null,null,"zvox11_c97111_o52gzsp_TY2V01",{"$f":"Contractinformatie!$L$97","v":0},null,"Geriatrische Revalidatiezorg 670 en Eerstelijnsverblijf 671, Geneeskundige Zorg Specifieke Patiëntgroepen (code 672)- Niet gecontracteerd 672- incl balans","zvox11","c97111","o52gzsp","TY2V01"]
[null,null,null,null,"zvox11_c97111_o52gzmk_TY1V01",{"$f":"Contractinformatie!$K$98","v":0},null,"Geriatrische Revalidatiezorg 670 en Eerstelijnsverblijf 671, Geneeskundige Zorg Specifieke Patiëntgroepen (code 672)- Meerkosten (toeslagen en lumpsum), gecontracteerd en niet gecontracteerd- incl balans","zvox11","c97111","o52gzmk","TY1V01"]
[null,null,null,null,"zvox11_c97111_o52gzmk_TY2V01",{"$f":"Contractinformatie!$L$98","v":0},null,"Geriatrische Revalidatiezorg 670 en Eerstelijnsverblijf 671, Geneeskundige Zorg Specifieke Patiëntgroepen (code 672)- Meerkosten (toeslagen en lumpsum), gecontracteerd en niet gecontracteerd- incl balans","zvox11","c97111","o52gzmk","TY2V01"]
[null,null,null,null,"zvox11_c97111_o52gznc_TY2V01",{"$f":"Contractinformatie!$L$99","v":0},null,"Geriatrische Revalidatiezorg 670 en Eerstelijnsverblijf 671, Geneeskundige Zorg Specifieke Patiëntgroepen (code 672)- Netto Continuïteitsbijdrage Corona, gecontracteerd en niet gecontracteerd- incl balans","zvox11","c97111","o52gznc","TY2V01"]
[null,null,null,null,"zvrxsg_c978_dl101_TY0V01",{"$f":"'Specifieke informatie A'!K14","v":0},"","Kosten naar deelbijdrage- Variabele zorgkosten- incl balans","zvrxsg","c978","dl101","TY0V01"]
[null,null,null,null,"zvrxsg_a978_dl101_TY2V01",{"$f":"'Specifieke informatie A'!$L$14","v":0},"","Kosten naar deelbijdrage- Variabele zorgkosten- geaccepteerd","zvrxsg","a978","dl101","TY2V01"]
[null,null,null,null,"zvrxsg_c978_dl102_TY0V01",{"$f":"'Specifieke informatie A'!K15","v":0},"","Kosten naar deelbijdrage- Vaste zorgkosten- incl balans","zvrxsg","c978","dl102","TY0V01"]
[null,null,null,null,"zvrxsg_a978_dl102_TY2V01",{"$f":"'Specifieke informatie A'!$L$15","v":0},"","Kosten naar deelbijdrage- Vaste zorgkosten- geaccepteerd","zvrxsg","a978","dl102","TY2V01"]
[null,null,null,null,"zvrxsg_c978_dl152_TY0V01",{"$f":"'Specifieke informatie A'!K16","v":0},"","Kosten naar deelbijdrage- Geneeskundige GGZ- incl balans","zvrxsg","c978","dl152","TY0V01"]
[null,null,null,null,"zvrxsg_a978_dl152_TY2V01",{"$f":"'Specifieke informatie A'!$L$16","v":0},"","Kosten naar deelbijdrage- Geneeskundige GGZ- geaccepteerd","zvrxsg","a978","dl152","TY2V01"]
[null,null,null,null,"zvrx02_c520_Kdegm_TY0V01",{"$f":"'Specifieke informatie A'!K22","v":0},"","C520 Kosten dure intramurale geneesmiddelen (artikel 1, regeling risicoverevening)- geaccepteerd","zvrx02","c520","degm","TY0V01"]
[null,null,null,null,"zvrx06_a610_sknt_TY2V01",{"$f":"'Specifieke informatie A'!L27","v":0},"","C610 Overige kosten ziekenhuiszorg en curatieve zorg- SKION en NTS- geaccepteerd","zvrx06","a610","sknt","TY2V01"]
[null,null,null,null,"zvrx06_c6121_e08_TY0V01",{"$f":"'Specifieke informatie A'!K31","v":0},"","C612.1 Kosten ADD-ON'S- dure intramurale geneesmiddelen- incl balans","zvrx06","a6121","e08","TY0V01"]
[null,null,null,null,"zvrx06_c6121_e08_TY2V01",{"$f":"'Specifieke informatie A'!L31","v":0},"","C612.1 Kosten ADD-ON'S- dure intramurale geneesmiddelen- incl balans","zvrx06","a6121","e08","TY2V01"]
[null,null,null,null,"zvrx10_c662_e09_TY2V01",{"$f":"'Specifieke informatie A'!L36","v":0},"","C612.1 Kosten dure intramurale geneesmiddelen- incl balans","zvrx10","c662","e09","TY2V01"]
[null,null,null,null,"zvrx10_c666_e10_TY0V01",{"$f":"'Specifieke informatie A'!K40","v":0},"","C612.1 Kosten dure intramurale geneesmiddelen- incl balans","zvrx10","a666","e10","TY0V01"]
[null,null,null,null,"zvrx15_c720v_m69_TY0V01",{"$f":"'Specifieke informatie A'!$K$51","v":0},"","C720 Buitenland, Via Verzekeraar- variabele zorgkosten- incl balans","zvrx15","c720v","m69","TY0V01"]
[null,null,null,null,"zvrx15_a720v_m69_TY2V01",{"$f":"'Specifieke informatie A'!$L$51","v":0},"","C720 Buitenland, Via Verzekeraar- variabele zorgkosten- geaccepteerd","zvrx15","a720v","m69","TY2V01"]
[null,null,null,null,"zvrx15_a720v_m51_TY0V01",{"$f":"'Specifieke informatie A'!$K$52","v":0},"","C720 Buitenland, Via Verzekeraar- geestelijke gezondheidszorgg- incl balans","zvrx15","a720v","m51","TY0V01"]
[null,null,null,null,"zvrx15_a720v_m51_TY2V01",{"$f":"'Specifieke informatie A'!$L$52","v":0},"","C720 Buitenland, Via Verzekeraar- geestelijke gezondheidszorgg- geaccepteerd","zvrx15","a720v","m51","TY2V01"]
[null,null,null,null,"zvrx15_c721o_i01_TY0V01",{"$f":"'Specifieke informatie A'!$K$57","v":0},"","C721 buitenland, opgave ZIN- verordening of verdrag, via internationaal verbindingsorgaan- incl balans","zvrx15","c721o","i01","TY0V01"]
[null,null,null,null,"zvrx15_a720o_i01_TY2V01",{"$f":"'Specifieke informatie A'!$L$57","v":0},"","C721 buitenland, opgave ZIN- verordening of verdrag, via internationaal verbindingsorgaan- geaccepteerd","zvrx15","a720o","i01","TY2V01"]
[null,null,null,null,"zvrx15_c721o_i11_TY0V01",{"$f":"'Specifieke informatie A'!$K$58","v":0},"","C721 buitenland, opgave ZIN- Zvw verzekerden die wonen in Nederland- incl balans","zvrx15","c721o","i11","TY0V01"]
[null,null,null,null,"zvrx15_a720o_i11_TY2V01",{"$f":"'Specifieke informatie A'!$L$58","v":0},"","C721 buitenland, opgave ZIN- Zvw verzekerden die wonen in Nederland- geaccepteerd","zvrx15","a720o","i11","TY2V01"]
[null,null,null,null,"zvrx15_c721o_i02_TY0V01",{"$f":"'Specifieke informatie A'!$K$59","v":0},"","C721 buitenland, opgave ZIN- Zvw verzekerden die wonen in het buitenland- incl balans","zvrx15","c721o","i02","TY0V01"]
[null,null,null,null,"zvrx15_a720o_i02_TY2V01",{"$f":"'Specifieke informatie A'!$L$59","v":0},"","C721 buitenland, opgave ZIN- Zvw verzekerden die wonen in het buitenland- geaccepteerd","zvrx15","a720o","i02","TY2V01"]
[null,null,null,null,"zvrx19_s999_inbw_TY0V01",{"$f":"'Specifieke informatie A'!$K$64","v":0},"","C999 rekenpremies gedetineerden","zvrx19","s999","inbw","TY0V01"]
[null,null,null,null,"zvsx06k_c610_d1l_TY1V01",{"$f":"'Specifieke informatie C'!$J$14","v":0},"","C610 Overige kosten ziekenhuiszorg en curatieve zorg- eerstelijnsdiagnostiek eerstelijnszorgaanbieders - huisartslab- incl balans","zvsx06k","c610","d1l","TY1V01"]
[null,null,null,null,"zvsx06k_a610_d1l_TY1V01",{"$f":"'Specifieke informatie C'!$K$14","v":0},"","C610 Overige kosten ziekenhuiszorg en curatieve zorg- eerstelijnsdiagnostiek eerstelijnszorgaanbieders - huisartslab- geaccepteerd","zvsx06k","a610","d1l","TY1V01"]
[null,null,null,null,"zvsx06k_a610_d1l_TY2V01",{"$f":"'Specifieke informatie C'!$L$14","v":0},"","C610 Overige kosten ziekenhuiszorg en curatieve zorg- eerstelijnsdiagnostiek eerstelijnszorgaanbieders - huisartslab- geaccepteerd","zvsx06k","a610","d1l","TY2V01"]
[null,null,null,null,"zvsx06k_c610_trmb_TY1V01",{"$f":"'Specifieke informatie C'!$J$15","v":0},"","C610 Overige kosten ziekenhuiszorg en curatieve zorg- Trombosediensten- incl balans","zvsx06k","c610","trmb","TY1V01"]
[null,null,null,null,"zvsx06k_a610_trmb_TY1V01",{"$f":"'Specifieke informatie C'!$K$15","v":0},"","C610 Overige kosten ziekenhuiszorg en curatieve zorg- Trombosediensten- geaccepteerd","zvsx06k","a610","trmb","TY1V01"]
[null,null,null,null,"zvsx06k_a610_trmb_TY2V01",{"$f":"'Specifieke informatie C'!$L$15","v":0},"","C610 Overige kosten ziekenhuiszorg en curatieve zorg- Trombosediensten- geaccepteerd","zvsx06k","a610","trmb","TY2V01"]
[null,null,null,null,"zvsx06k_c610_sknt_TY1V01",{"$f":"'Specifieke informatie C'!$J$16","v":0},"","C610 Overige kosten ziekenhuiszorg en curatieve zorg- SKION en NTS- incl balans","zvsx06k","c610","sknt","TY1V01"]
[null,null,null,null,"zvsx06k_a610_sknt_TY1V01",{"$f":"'Specifieke informatie C'!$K$16","v":0},"","C610 Overige kosten ziekenhuiszorg en curatieve zorg- SKION en NTS- geaccepteerd","zvsx06k","a610","sknt","TY1V01"]
[null,null,null,null,"zvsx06k_a610_sknt_TY2V01",{"$f":"'Specifieke informatie C'!$L$16","v":0},"","C610 Overige kosten ziekenhuiszorg en curatieve zorg- SKION en NTS- geaccepteerd","zvsx06k","a610","sknt","TY2V01"]
[null,null,null,null,"zvsx06k_c6102_d1l_TY0V01",{"$f":"'Specifieke informatie C'!$H$22","v":0},"","C6102 Overige kosten ziekenhuiszorg en curatieve zorg- eerstelijnsdiagnostiek eerstelijnszorgaanbieders - huisartslab- incl balans","zvsx06k","c6102","d1l","TY0V01"]
[null,null,null,null,"zvsx06k_a6102_d1l_TY0V01",{"$f":"'Specifieke informatie C'!$I$22","v":0},"","C6102 Overige kosten ziekenhuiszorg en curatieve zorg- eerstelijnsdiagnostiek eerstelijnszorgaanbieders - huisartslab- geaccepteerd","zvsx06k","a6102","d1l","TY0V01"]
[null,null,null,null,"zvsx06k_c6102_trmb_TY0V01",{"$f":"'Specifieke informatie C'!$H$23","v":0},"","C6102 Overige kosten ziekenhuiszorg en curatieve zorg- Trombosediensten- incl balans","zvsx06k","c6102","trmb","TY0V01"]
[null,null,null,null,"zvsx06k_a6102_trmb_TY0V01",{"$f":"'Specifieke informatie C'!$I$23","v":0},"","C6102 Overige kosten ziekenhuiszorg en curatieve zorg- Trombosediensten- geaccepteerd","zvsx06k","a6102","trmb","TY0V01"]
[null,null,null,null,"zvsx06k_c611_az_TY0V01",{"$f":"'Specifieke informatie C'!$H$30","v":0},"","C611 Naar Instelling- Academische ziekenhuizen- incl balans","zvsx06k","c611","az","TY0V01"]
[null,null,null,null,"zvsx06k_a611_az_TY0V01",{"$f":"'Specifieke informatie C'!$I$30","v":0},"","C611 Naar Instelling- Academische ziekenhuizen- geaccepteerd","zvsx06k","a611","az","TY0V01"]
[null,null,null,null,"zvsx06k_c611_az_TY1V01",{"$f":"'Specifieke informatie C'!$J$30","v":0},"","C611 Naar Instelling- Academische ziekenhuizen- incl balans","zvsx06k","c611","az","TY1V01"]
[null,null,null,null,"zvsx06k_a611_az_TY1V01",{"$f":"'Specifieke informatie C'!$K$30","v":0},"","C611 Naar Instelling- Academische ziekenhuizen- geaccepteerd","zvsx06k","a611","az","TY1V01"]
[null,null,null,null,"zvsx06k_a611_az_TY2V01",{"$f":"'Specifieke informatie C'!$L$30","v":0},"","C611 Naar Instelling- Academische ziekenhuizen- geaccepteerd","zvsx06k","a611","az","TY2V01"]
[null,null,null,null,"zvsx06k_c611_sz_TY0V01",{"$f":"'Specifieke informatie C'!$H$31","v":0},"","C611 Naar Instelling- Algemene ziekenhuizen- incl balans","zvsx06k","c611","sz","TY0V01"]
[null,null,null,null,"zvsx06k_a611_sz_TY0V01",{"$f":"'Specifieke informatie C'!$I$31","v":0},"","C611 Naar Instelling- Algemene ziekenhuizen- geaccepteerd","zvsx06k","a611","sz","TY0V01"]
[null,null,null,null,"zvsx06k_c611_sz_TY1V01",{"$f":"'Specifieke informatie C'!$J$31","v":0},"","C611 Naar Instelling- Algemene ziekenhuizen- incl balans","zvsx06k","c611","sz","TY1V01"]
[null,null,null,null,"zvsx06k_a611_sz_TY1V01",{"$f":"'Specifieke informatie C'!$K$31","v":0},"","C611 Naar Instelling- Algemene ziekenhuizen- geaccepteerd","zvsx06k","a611","sz","TY1V01"]
[null,null,null,null,"zvsx06k_a611_sz_TY2V01",{"$f":"'Specifieke informatie C'!$L$31","v":0},"","C611 Naar Instelling- Algemene ziekenhuizen- geaccepteerd","zvsx06k","a611","sz","TY2V01"]
[null,null,null,null,"zvsx06k_c611_zb_TY0V01",{"$f":"'Specifieke informatie C'!$H$32","v":0},"","C611 Naar Instelling- Zelfstandige behandelcentra- incl balans","zvsx06k","c611","zb","TY0V01"]
[null,null,null,null,"zvsx06k_a611_zb_TY0V01",{"$f":"'Specifieke informatie C'!$I$32","v":0},"","C611 Naar Instelling- Zelfstandige behandelcentra- geaccepteerd","zvsx06k","a611","zb","TY0V01"]
[null,null,null,null,"zvsx06k_c611_zb_TY1V01",{"$f":"'Specifieke informatie C'!$J$32","v":0},"","C611 Naar Instelling- Zelfstandige behandelcentra- incl balans","zvsx06k","c611","zb","TY1V01"]
[null,null,null,null,"zvsx06k_a611_zb_TY1V01",{"$f":"'Specifieke informatie C'!$K$32","v":0},"","C611 Naar Instelling- Zelfstandige behandelcentra- geaccepteerd","zvsx06k","a611","zb","TY1V01"]
[null,null,null,null,"zvsx06k_a611_zb_TY2V01",{"$f":"'Specifieke informatie C'!$L$32","v":0},"","C611 Naar Instelling- Zelfstandige behandelcentra- geaccepteerd","zvsx06k","a611","zb","TY2V01"]
[null,null,null,null,"zvsx06k_c611_ov_TY0V01",{"$f":"'Specifieke informatie C'!$H$33","v":0},"","C611 Naar Instelling- Overige zorgaanbieders- incl balans","zvsx06k","c611","ov","TY0V01"]
[null,null,null,null,"zvsx06k_a611_ov_TY0V01",{"$f":"'Specifieke informatie C'!$I$33","v":0},"","C611 Naar Instelling- Overige zorgaanbieders- geaccepteerd","zvsx06k","a611","ov","TY0V01"]
[null,null,null,null,"zvsx06k_c611_ov_TY1V01",{"$f":"'Specifieke informatie C'!$J$33","v":0},"","C611 Naar Instelling- Overige zorgaanbieders- incl balans","zvsx06k","c611","ov","TY1V01"]
[null,null,null,null,"zvsx06k_a611_ov_TY1V01",{"$f":"'Specifieke informatie C'!$K$33","v":0},"","C611 Naar Instelling- Overige zorgaanbieders- geaccepteerd","zvsx06k","a611","ov","TY1V01"]
[null,null,null,null,"zvsx06k_a611_ov_TY2V01",{"$f":"'Specifieke informatie C'!$L$33","v":0},"","C611 Naar Instelling- Overige zorgaanbieders- geaccepteerd","zvsx06k","a611","ov","TY2V01"]
[null,null,null,null,"zvsx06k_c6121_az_TY0V01",{"$f":"'Specifieke informatie C'!$H$39","v":0},"","C612.1 Kosten add-ons dure geneesmiddelen naar instelling- Academische ziekenhuizen- incl balans","zvsx06k","c6121","az","TY0V01"]
[null,null,null,null,"zvsx06k_a6121_az_TY0V01",{"$f":"'Specifieke informatie C'!$I$39","v":0},"","C612.1 Kosten add-ons dure geneesmiddelen naar instelling- Academische ziekenhuizen- geaccepteerd","zvsx06k","a6121","az","TY0V01"]
[null,null,null,null,"zvsx06k_c6121_az_TY1V01",{"$f":"'Specifieke informatie C'!$J$39","v":0},"","C612.1 Kosten add-ons dure geneesmiddelen naar instelling- Academische ziekenhuizen- incl balans","zvsx06k","c6121","az","TY1V01"]
[null,null,null,null,"zvsx06k_a6121_az_TY1V01",{"$f":"'Specifieke informatie C'!$K$39","v":0},"","C612.1 Kosten add-ons dure geneesmiddelen naar instelling- Academische ziekenhuizen- geaccepteerd","zvsx06k","a6121","az","TY1V01"]
[null,null,null,null,"zvsx06k_a6121_az_TY2V01",{"$f":"'Specifieke informatie C'!$L$39","v":0},"","C612.1 Kosten add-ons dure geneesmiddelen naar instelling- Academische ziekenhuizen- geaccepteerd","zvsx06k","a6121","az","TY2V01"]
[null,null,null,null,"zvsx06k_c6121_sz_TY0V01",{"$f":"'Specifieke informatie C'!$H$40","v":0},"","C612.1 Kosten add-ons dure geneesmiddelen naar instelling- Algemene ziekenhuizen- incl balans","zvsx06k","c6121","sz","TY0V01"]
[null,null,null,null,"zvsx06k_a6121_sz_TY0V01",{"$f":"'Specifieke informatie C'!$I$40","v":0},"","C612.1 Kosten add-ons dure geneesmiddelen naar instelling- Algemene ziekenhuizen- geaccepteerd","zvsx06k","a6121","sz","TY0V01"]
[null,null,null,null,"zvsx06k_c6121_sz_TY1V01",{"$f":"'Specifieke informatie C'!$J$40","v":0},"","C612.1 Kosten add-ons dure geneesmiddelen naar instelling- Algemene ziekenhuizen- incl balans","zvsx06k","c6121","sz","TY1V01"]
[null,null,null,null,"zvsx06k_a6121_sz_TY1V01",{"$f":"'Specifieke informatie C'!$K$40","v":0},"","C612.1 Kosten add-ons dure geneesmiddelen naar instelling- Algemene ziekenhuizen- geaccepteerd","zvsx06k","a6121","sz","TY1V01"]
[null,null,null,null,"zvsx06k_a6121_sz_TY2V01",{"$f":"'Specifieke informatie C'!$L$40","v":0},"","C612.1 Kosten add-ons dure geneesmiddelen naar instelling- Algemene ziekenhuizen- geaccepteerd","zvsx06k","a6121","sz","TY2V01"]
[null,null,null,null,"zvsx06k_c6121_zb_TY0V01",{"$f":"'Specifieke informatie C'!$H$41","v":0},"","C612.1 Kosten add-ons dure geneesmiddelen naar instelling- Zelfstandige behandelcentra- incl balans","zvsx06k","c6121","zb","TY0V01"]
[null,null,null,null,"zvsx06k_a6121_zb_TY0V01",{"$f":"'Specifieke informatie C'!$I$41","v":0},"","C612.1 Kosten add-ons dure geneesmiddelen naar instelling- Zelfstandige behandelcentra- geaccepteerd","zvsx06k","a6121","zb","TY0V01"]
[null,null,null,null,"zvsx06k_c6121_zb_TY1V01",{"$f":"'Specifieke informatie C'!$J$41","v":0},"","C612.1 Kosten add-ons dure geneesmiddelen naar instelling- Zelfstandige behandelcentra- incl balans","zvsx06k","c6121","zb","TY1V01"]
[null,null,null,null,"zvsx06k_a6121_zb_TY1V01",{"$f":"'Specifieke informatie C'!$K$41","v":0},"","C612.1 Kosten add-ons dure geneesmiddelen naar instelling- Zelfstandige behandelcentra- geaccepteerd","zvsx06k","a6121","zb","TY1V01"]
[null,null,null,null,"zvsx06k_a6121_zb_TY2V01",{"$f":"'Specifieke informatie C'!$L$41","v":0},"","C612.1 Kosten add-ons dure geneesmiddelen naar instelling- Zelfstandige behandelcentra- geaccepteerd","zvsx06k","a6121","zb","TY2V01"]
[null,null,null,null,"zvsx06k_c6121_ov_TY0V01",{"$f":"'Specifieke informatie C'!$H$42","v":0},"","C612.1 Kosten add-ons dure geneesmiddelen naar instelling- Overige zorgaanbieders- incl balans","zvsx06k","c6121","ov","TY0V01"]
[null,null,null,null,"zvsx06k_a6121_ov_TY0V01",{"$f":"'Specifieke informatie C'!$I$42","v":0},"","C612.1 Kosten add-ons dure geneesmiddelen naar instelling- Overige zorgaanbieders- geaccepteerd","zvsx06k","a6121","ov","TY0V01"]
[null,null,null,null,"zvsx06k_c6121_ov_TY1V01",{"$f":"'Specifieke informatie C'!$J$42","v":0},"","C612.1 Kosten add-ons dure geneesmiddelen naar instelling- Overige zorgaanbieders- incl balans","zvsx06k","c6121","ov","TY1V01"]
[null,null,null,null,"zvsx06k_a6121_ov_TY1V01",{"$f":"'Specifieke informatie C'!$K$42","v":0},"","C612.1 Kosten add-ons dure geneesmiddelen naar instelling- Overige zorgaanbieders- geaccepteerd","zvsx06k","a6121","ov","TY1V01"]
[null,null,null,null,"zvsx06k_a6121_ov_TY2V01",{"$f":"'Specifieke informatie C'!$L$42","v":0},"","C612.1 Kosten add-ons dure geneesmiddelen naar instelling- Overige zorgaanbieders- geaccepteerd","zvsx06k","a6121","ov","TY2V01"]
[null,null,null,null,"zvsx06k_c6122_az_TY0V01",{"$f":"'Specifieke informatie C'!$H$53","v":0},"","C612.2 Kosten add-ons IC naar instelling- Academische ziekenhuizen- incl balans","zvsx06k","c6122","az","TY0V01"]
[null,null,null,null,"zvsx06k_a6122_az_TY0V01",{"$f":"'Specifieke informatie C'!$I$53","v":0},"","C612.2 Kosten add-ons IC naar instelling- Academische ziekenhuizen- geaccepteerd","zvsx06k","a6122","az","TY0V01"]
[null,null,null,null,"zvsx06k_c6122_az_TY1V01",{"$f":"'Specifieke informatie C'!$J$53","v":0},"","C612.2 Kosten add-ons IC naar instelling- Academische ziekenhuizen- incl balans","zvsx06k","c6122","az","TY1V01"]
[null,null,null,null,"zvsx06k_a6122_az_TY1V01",{"$f":"'Specifieke informatie C'!$K$53","v":0},"","C612.2 Kosten add-ons IC naar instelling- Academische ziekenhuizen- geaccepteerd","zvsx06k","a6122","az","TY1V01"]
[null,null,null,null,"zvsx06k_a6122_az_TY2V01",{"$f":"'Specifieke informatie C'!$L$53","v":0},"","C612.2 Kosten add-ons IC naar instelling- Academische ziekenhuizen- geaccepteerd","zvsx06k","a6122","az","TY2V01"]
[null,null,null,null,"zvsx06k_c6122_sz_TY0V01",{"$f":"'Specifieke informatie C'!$H$54","v":0},"","C612.2 Kosten add-ons IC naar instelling- Algemene ziekenhuizen- incl balans","zvsx06k","c6122","sz","TY0V01"]
[null,null,null,null,"zvsx06k_a6122_sz_TY0V01",{"$f":"'Specifieke informatie C'!$I$54","v":0},"","C612.2 Kosten add-ons IC naar instelling- Algemene ziekenhuizen- geaccepteerd","zvsx06k","a6122","sz","TY0V01"]
[null,null,null,null,"zvsx06k_c6122_sz_TY1V01",{"$f":"'Specifieke informatie C'!$J$54","v":0},"","C612.2 Kosten add-ons IC naar instelling- Algemene ziekenhuizen- incl balans","zvsx06k","c6122","sz","TY1V01"]
[null,null,null,null,"zvsx06k_a6122_sz_TY1V01",{"$f":"'Specifieke informatie C'!$K$54","v":0},"","C612.2 Kosten add-ons IC naar instelling- Algemene ziekenhuizen- geaccepteerd","zvsx06k","a6122","sz","TY1V01"]
[null,null,null,null,"zvsx06k_a6122_sz_TY2V01",{"$f":"'Specifieke informatie C'!$L$54","v":0},"","C612.2 Kosten add-ons IC naar instelling- Algemene ziekenhuizen- geaccepteerd","zvsx06k","a6122","sz","TY2V01"]
[null,null,null,null,"zvsx06k_c6122_zb_TY0V01",{"$f":"'Specifieke informatie C'!$H$55","v":0},"","C612.2 Kosten add-ons IC naar instelling- Zelfstandige behandelcentra- incl balans","zvsx06k","c6122","zb","TY0V01"]
[null,null,null,null,"zvsx06k_a6122_zb_TY0V01",{"$f":"'Specifieke informatie C'!$I$55","v":0},"","C612.2 Kosten add-ons IC naar instelling- Zelfstandige behandelcentra- geaccepteerd","zvsx06k","a6122","zb","TY0V01"]
[null,null,null,null,"zvsx06k_c6122_zb_TY1V01",{"$f":"'Specifieke informatie C'!$J$55","v":0},"","C612.2 Kosten add-ons IC naar instelling- Zelfstandige behandelcentra- incl balans","zvsx06k","c6122","zb","TY1V01"]
[null,null,null,null,"zvsx06k_a6122_zb_TY1V01",{"$f":"'Specifieke informatie C'!$K$55","v":0},"","C612.2 Kosten add-ons IC naar instelling- Zelfstandige behandelcentra- geaccepteerd","zvsx06k","a6122","zb","TY1V01"]
[null,null,null,null,"zvsx06k_a6122_zb_TY2V01",{"$f":"'Specifieke informatie C'!$L$55","v":0},"","C612.2 Kosten add-ons IC naar instelling- Zelfstandige behandelcentra- geaccepteerd","zvsx06k","a6122","zb","TY2V01"]
[null,null,null,null,"zvsx06k_c6122_ov_TY0V01",{"$f":"'Specifieke informatie C'!$H$56","v":0},"","C612.2 Kosten add-ons IC naar instelling- Overige zorgaanbieders- incl balans","zvsx06k","c6122","ov","TY0V01"]
[null,null,null,null,"zvsx06k_a6122_ov_TY0V01",{"$f":"'Specifieke informatie C'!$I$56","v":0},"","C612.2 Kosten add-ons IC naar instelling- Overige zorgaanbieders- geaccepteerd","zvsx06k","a6122","ov","TY0V01"]
[null,null,null,null,"zvsx06k_c6122_ov_TY1V01",{"$f":"'Specifieke informatie C'!$J$56","v":0},"","C612.2 Kosten add-ons IC naar instelling- Overige zorgaanbieders- incl balans","zvsx06k","c6122","ov","TY1V01"]
[null,null,null,null,"zvsx06k_a6122_ov_TY1V01",{"$f":"'Specifieke informatie C'!$K$56","v":0},"","C612.2 Kosten add-ons IC naar instelling- Overige zorgaanbieders- geaccepteerd","zvsx06k","a6122","ov","TY1V01"]
[null,null,null,null,"zvsx06k_a6122_ov_TY2V01",{"$f":"'Specifieke informatie C'!$L$56","v":0},"","C612.2 Kosten add-ons IC naar instelling- Overige zorgaanbieders- geaccepteerd","zvsx06k","a6122","ov","TY2V01"]
[null,null,null,null,"zvsx06k_c6131_az_TY0V01",{"$f":"'Specifieke informatie C'!$H$65","v":0},"","C613.1 Integrale kosten DBC-zorgproducten gereguleerde segment- Academische ziekenhuizen- incl balans","zvsx06k","c6131","az","TY0V01"]
[null,null,null,null,"zvsx06k_a6131_az_TY0V01",{"$f":"'Specifieke informatie C'!$I$65","v":0},"","C613.1 Integrale kosten DBC-zorgproducten gereguleerde segment- Academische ziekenhuizen- geaccepteerd","zvsx06k","a6131","az","TY0V01"]
[null,null,null,null,"zvsx06k_c6131_az_TY1V01",{"$f":"'Specifieke informatie C'!$J$65","v":0},"","C613.1 Integrale kosten DBC-zorgproducten gereguleerde segment- Academische ziekenhuizen- incl balans","zvsx06k","c6131","az","TY1V01"]
[null,null,null,null,"zvsx06k_a6131_az_TY1V01",{"$f":"'Specifieke informatie C'!$K$65","v":0},"","C613.1 Integrale kosten DBC-zorgproducten gereguleerde segment- Academische ziekenhuizen- geaccepteerd","zvsx06k","a6131","az","TY1V01"]
[null,null,null,null,"zvsx06k_a6131_az_TY2V01",{"$f":"'Specifieke informatie C'!$L$65","v":0},"","C613.1 Integrale kosten DBC-zorgproducten gereguleerde segment- Academische ziekenhuizen- geaccepteerd","zvsx06k","a6131","az","TY2V01"]
[null,null,null,null,"zvsx06k_c6131_sz_TY0V01",{"$f":"'Specifieke informatie C'!$H$66","v":0},"","C613.1 Integrale kosten DBC-zorgproducten gereguleerde segment- Algemene ziekenhuizen- incl balans","zvsx06k","c6131","sz","TY0V01"]
[null,null,null,null,"zvsx06k_a6131_sz_TY0V01",{"$f":"'Specifieke informatie C'!$I$66","v":0},"","C613.1 Integrale kosten DBC-zorgproducten gereguleerde segment- Algemene ziekenhuizen- geaccepteerd","zvsx06k","a6131","sz","TY0V01"]
[null,null,null,null,"zvsx06k_c6131_sz_TY1V01",{"$f":"'Specifieke informatie C'!$J$66","v":0},"","C613.1 Integrale kosten DBC-zorgproducten gereguleerde segment- Algemene ziekenhuizen- incl balans","zvsx06k","c6131","sz","TY1V01"]
[null,null,null,null,"zvsx06k_a6131_sz_TY1V01",{"$f":"'Specifieke informatie C'!$K$66","v":0},"","C613.1 Integrale kosten DBC-zorgproducten gereguleerde segment- Algemene ziekenhuizen- geaccepteerd","zvsx06k","a6131","sz","TY1V01"]
[null,null,null,null,"zvsx06k_a6131_sz_TY2V01",{"$f":"'Specifieke informatie C'!$L$66","v":0},"","C613.1 Integrale kosten DBC-zorgproducten gereguleerde segment- Algemene ziekenhuizen- geaccepteerd","zvsx06k","a6131","sz","TY2V01"]
[null,null,null,null,"zvsx06k_c6131_zb_TY0V01",{"$f":"'Specifieke informatie C'!$H$67","v":0},"","C613.1 Integrale kosten DBC-zorgproducten gereguleerde segment- Zelfstandige behandelcentra- incl balans","zvsx06k","c6131","zb","TY0V01"]
[null,null,null,null,"zvsx06k_a6131_zb_TY0V01",{"$f":"'Specifieke informatie C'!$I$67","v":0},"","C613.1 Integrale kosten DBC-zorgproducten gereguleerde segment- Zelfstandige behandelcentra- geaccepteerd","zvsx06k","a6131","zb","TY0V01"]
[null,null,null,null,"zvsx06k_c6131_zb_TY1V01",{"$f":"'Specifieke informatie C'!$J$67","v":0},"","C613.1 Integrale kosten DBC-zorgproducten gereguleerde segment- Zelfstandige behandelcentra- incl balans","zvsx06k","c6131","zb","TY1V01"]
[null,null,null,null,"zvsx06k_a6131_zb_TY1V01",{"$f":"'Specifieke informatie C'!$K$67","v":0},"","C613.1 Integrale kosten DBC-zorgproducten gereguleerde segment- Zelfstandige behandelcentra- geaccepteerd","zvsx06k","a6131","zb","TY1V01"]
[null,null,null,null,"zvsx06k_a6131_zb_TY2V01",{"$f":"'Specifieke informatie C'!$L$67","v":0},"","C613.1 Integrale kosten DBC-zorgproducten gereguleerde segment- Zelfstandige behandelcentra- geaccepteerd","zvsx06k","a6131","zb","TY2V01"]
[null,null,null,null,"zvsx06k_c6131_ov_TY0V01",{"$f":"'Specifieke informatie C'!$H$68","v":0},"","C613.1 Integrale kosten DBC-zorgproducten gereguleerde segment- Overige zorgaanbieders- incl balans","zvsx06k","c6131","ov","TY0V01"]
[null,null,null,null,"zvsx06k_a6131_ov_TY0V01",{"$f":"'Specifieke informatie C'!$I$68","v":0},"","C613.1 Integrale kosten DBC-zorgproducten gereguleerde segment- Overige zorgaanbieders- geaccepteerd","zvsx06k","a6131","ov","TY0V01"]
[null,null,null,null,"zvsx06k_c6131_ov_TY1V01",{"$f":"'Specifieke informatie C'!$J$68","v":0},"","C613.1 Integrale kosten DBC-zorgproducten gereguleerde segment- Overige zorgaanbieders- incl balans","zvsx06k","c6131","ov","TY1V01"]
[null,null,null,null,"zvsx06k_a6131_ov_TY1V01",{"$f":"'Specifieke informatie C'!$K$68","v":0},"","C613.1 Integrale kosten DBC-zorgproducten gereguleerde segment- Overige zorgaanbieders- geaccepteerd","zvsx06k","a6131","ov","TY2V01"]
[null,null,null,null,"zvsx06k_a6131_ov_TY1V01",{"$f":"'Specifieke informatie C'!$L$68","v":0},"","C613.1 Integrale kosten DBC-zorgproducten gereguleerde segment- Overige zorgaanbieders- geaccepteerd","zvsx06k","a6131","ov","TY1V01"]
[null,null,null,null,"zvsx06k_c6151_az_TY0V01",{"$f":"'Specifieke informatie C'!$H$71","v":0},"","C615.1 Integrale kosten DBC-zorgproduct vrije segment- Academische ziekenhuizen- incl balans","zvsx06k","c6151","az","TY0V01"]
[null,null,null,null,"zvsx06k_a6151_az_TY0V01",{"$f":"'Specifieke informatie C'!$I$71","v":0},"","C615.1 Integrale kosten DBC-zorgproduct vrije segment- Academische ziekenhuizen- geaccepteerd","zvsx06k","a6151","az","TY0V01"]
[null,null,null,null,"zvsx06k_c6151_az_TY1V01",{"$f":"'Specifieke informatie C'!$J$71","v":0},"","C615.1 Integrale kosten DBC-zorgproduct vrije segment- Academische ziekenhuizen- incl balans","zvsx06k","c6151","az","TY1V01"]
[null,null,null,null,"zvsx06k_a6151_az_TY1V01",{"$f":"'Specifieke informatie C'!$K$71","v":0},"","C615.1 Integrale kosten DBC-zorgproduct vrije segment- Academische ziekenhuizen- geaccepteerd","zvsx06k","a6151","az","TY1V01"]
[null,null,null,null,"zvsx06k_a6151_az_TY2V01",{"$f":"'Specifieke informatie C'!$L$71","v":0},"","C615.1 Integrale kosten DBC-zorgproduct vrije segment- Academische ziekenhuizen- geaccepteerd","zvsx06k","a6151","az","TY2V01"]
[null,null,null,null,"zvsx06k_c6151_sz_TY0V01",{"$f":"'Specifieke informatie C'!$H$72","v":0},"","C615.1 Integrale kosten DBC-zorgproduct vrije segment- Algemene ziekenhuizen- incl balans","zvsx06k","c6151","sz","TY0V01"]
[null,null,null,null,"zvsx06k_a6151_sz_TY0V01",{"$f":"'Specifieke informatie C'!$I$72","v":0},"","C615.1 Integrale kosten DBC-zorgproduct vrije segment- Algemene ziekenhuizen- geaccepteerd","zvsx06k","a6151","sz","TY0V01"]
[null,null,null,null,"zvsx06k_c6151_sz_TY1V01",{"$f":"'Specifieke informatie C'!$J$72","v":0},"","C615.1 Integrale kosten DBC-zorgproduct vrije segment- Algemene ziekenhuizen- incl balans","zvsx06k","c6151","sz","TY1V01"]
[null,null,null,null,"zvsx06k_a6151_sz_TY1V01",{"$f":"'Specifieke informatie C'!$K$72","v":0},"","C615.1 Integrale kosten DBC-zorgproduct vrije segment- Algemene ziekenhuizen- geaccepteerd","zvsx06k","a6151","sz","TY1V01"]
[null,null,null,null,"zvsx06k_a6151_sz_TY2V01",{"$f":"'Specifieke informatie C'!$L$72","v":0},"","C615.1 Integrale kosten DBC-zorgproduct vrije segment- Algemene ziekenhuizen- geaccepteerd","zvsx06k","a6151","sz","TY2V01"]
[null,null,null,null,"zvsx06k_c6151_zb_TY0V01",{"$f":"'Specifieke informatie C'!$H$73","v":0},"","C615.1 Integrale kosten DBC-zorgproduct vrije segment- Zelfstandige behandelcentra- incl balans","zvsx06k","c6151","zb","TY0V01"]
[null,null,null,null,"zvsx06k_a6151_zb_TY0V01",{"$f":"'Specifieke informatie C'!$I$73","v":0},"","C615.1 Integrale kosten DBC-zorgproduct vrije segment- Zelfstandige behandelcentra- geaccepteerd","zvsx06k","a6151","zb","TY0V01"]
[null,null,null,null,"zvsx06k_c6151_zb_TY1V01",{"$f":"'Specifieke informatie C'!$J$73","v":0},"","C615.1 Integrale kosten DBC-zorgproduct vrije segment- Zelfstandige behandelcentra- incl balans","zvsx06k","c6151","zb","TY1V01"]
[null,null,null,null,"zvsx06k_a6151_zb_TY1V01",{"$f":"'Specifieke informatie C'!$K$73","v":0},"","C615.1 Integrale kosten DBC-zorgproduct vrije segment- Zelfstandige behandelcentra- geaccepteerd","zvsx06k","a6151","zb","TY1V01"]
[null,null,null,null,"zvsx06k_a6151_zb_TY2V01",{"$f":"'Specifieke informatie C'!$L$73","v":0},"","C615.1 Integrale kosten DBC-zorgproduct vrije segment- Zelfstandige behandelcentra- geaccepteerd","zvsx06k","a6151","zb","TY2V01"]
[null,null,null,null,"zvsx06k_c6151_ov_TY0V01",{"$f":"'Specifieke informatie C'!$H$74","v":0},"","C615.1 Integrale kosten DBC-zorgproduct vrije segment- Overige zorgaanbieders- incl balans","zvsx06k","c6151","ov","TY0V01"]
[null,null,null,null,"zvsx06k_a6151_ov_TY0V01",{"$f":"'Specifieke informatie C'!$I$74","v":0},"","C615.1 Integrale kosten DBC-zorgproduct vrije segment- Overige zorgaanbieders- geaccepteerd","zvsx06k","a6151","ov","TY0V01"]
[null,null,null,null,"zvsx06k_c6151_ov_TY1V01",{"$f":"'Specifieke informatie C'!$J$74","v":0},"","C615.1 Integrale kosten DBC-zorgproduct vrije segment- Overige zorgaanbieders- incl balans","zvsx06k","c6151","ov","TY1V01"]
[null,null,null,null,"zvsx06k_a6151_ov_TY1V01",{"$f":"'Specifieke informatie C'!$K$74","v":0},"","C615.1 Integrale kosten DBC-zorgproduct vrije segment- Overige zorgaanbieders- geaccepteerd","zvsx06k","a6151","ov","TY1V01"]
[null,null,null,null,"zvsx06k_a6151_ov_TY2V01",{"$f":"'Specifieke informatie C'!$L$74","v":0},"","C615.1 Integrale kosten DBC-zorgproduct vrije segment- Overige zorgaanbieders- geaccepteerd","zvsx06k","a6151","ov","TY2V01"]
[null,null,null,null,"zvsx13k_a701_g21_TY0V01",{"$f":"'Specifieke informatie C'!$K$93","v":0},"","C701 Overige geneeskundige zorg- Kort- geaccepteerd","zvsx13k","a701","g21","TY0V01"]
[null,null,null,null,"zvsx13k_a701_g21_TY1V01",{"$f":"'Specifieke informatie C'!$L$93","v":0},"","C701 Overige geneeskundige zorg- Kort- geaccepteerd","zvsx13k","a701","g21","TY1V01"]
[null,null,null,null,"zvsx13k_a701_g22_TY1V01",{"$f":"'Specifieke informatie C'!$L$94","v":0},"","C701 Overige geneeskundige zorg- Huidtherapie- geaccepteerd","zvsx13k","a701","g22","TY1V01"]
[null,null,null,null,"zvsx13k_a701_g23_TY0V01",{"$f":"'Specifieke informatie C'!$K$95","v":0},"","C701 Overige geneeskundige zorg- Orthoptie- geaccepteerd","zvsx13k","a701","g23","TY0V01"]
[null,null,null,null,"zvsx13k_a701_g23_TY1V01",{"$f":"'Specifieke informatie C'!$L$95","v":0},"","C701 Overige geneeskundige zorg- Orthoptie- geaccepteerd","zvsx13k","a701","g23","TY1V01"]
[null,null,null,null,"zvsx13k_a701_g24_TY0V01",{"$f":"'Specifieke informatie C'!$K$96","v":0},"","C701 Overige geneeskundige zorg- Optometrie- geaccepteerd","zvsx13k","a701","g24","TY0V01"]
[null,null,null,null,"zvsx13k_a701_g24_TY1V01",{"$f":"'Specifieke informatie C'!$L$96","v":0},"","C701 Overige geneeskundige zorg- Optometrie- geaccepteerd","zvsx13k","a701","g24","TY1V01"]
[null,null,null,null,"zvsx13k_a701_g25_TY0V01",{"$f":"'Specifieke informatie C'!$K$97","v":0},"","C701 Overige geneeskundige zorg- voetzorg bij Diabetes Mellitus type 2- geaccepteerd","zvsx13k","a701","g25","TY0V01"]
[null,null,null,null,"zvsx13k_a701_g25_TY1V01",{"$f":"'Specifieke informatie C'!$L$97","v":0},"","C701 Overige geneeskundige zorg- voetzorg bij Diabetes Mellitus type 2- geaccepteerd","zvsx13k","a701","g25","TY1V01"]
[null,null,null,null,"zvsx13k_a701_g26_TY0V01",{"$f":"'Specifieke informatie C'!$K$98","v":0},"","C701 Overige geneeskundige zorg- Koemelkallergietest (niet horend bij Multidisciplinaire Zorg)- geaccepteerd","zvsx13k","a701","g26","TY0V01"]
[null,null,null,null,"zvsx13k_a701_g26_TY1V01",{"$f":"'Specifieke informatie C'!$L$98","v":0},"","C701 Overige geneeskundige zorg- Koemelkallergietest (niet horend bij Multidisciplinaire Zorg)- geaccepteerd","zvsx13k","a701","g26","TY1V01"]
[null,null,null,null,"zvsx13k_a701_g27_TY0V01",{"$f":"'Specifieke informatie C'!$K$99","v":0},"","C701 Overige geneeskundige zorg- Regiefunctie complexe wondzorg- geaccepteerd","zvsx13k","a701","g27","TY0V01"]
[null,null,null,null,"zvsx13k_a701_g27_TY1V01",{"$f":"'Specifieke informatie C'!$L$99","v":0},"","C701 Overige geneeskundige zorg- Regiefunctie complexe wondzorg- geaccepteerd","zvsx13k","a701","g27","TY1V01"]
[null,null,null,null,"zvsx13k_a701_g28_TY0V01",{"$f":"'Specifieke informatie C'!$K$100","v":0},"","C701 Overige geneeskundige zorg- ADZ-Parkinsonzorg- geaccepteerd","zvsx13k","a701","g28","TY0V01"]
[null,null,null,null,"zvsx13k_a702_g01_TY0V01",{"$f":"'Specifieke informatie C'!$K$105","v":0},"","C702 Zintuiglijk gehandicapten- visuele beperking- geaccepteerd","zvsx13k","a702","g01","TY0V01"]
[null,null,null,null,"zvsx13k_a702_g01_TY1V01",{"$f":"'Specifieke informatie C'!$L$105","v":0},"","C702 Zintuiglijk gehandicapten- visuele beperking- geaccepteerd","zvsx13k","a702","g01","TY1V01"]
[null,null,null,null,"zvsx13k_a702_g02_TY0V01",{"$f":"'Specifieke informatie C'!$K$106","v":0},"","C702 Zintuiglijk gehandicapten- auditieve  en communicatieve beperking- geaccepteerd","zvsx13k","a702","g02","TY0V01"]
[null,null,null,null,"zvsx13k_a702_g02_TY1V01",{"$f":"'Specifieke informatie C'!$L$106","v":0},"","C702 Zintuiglijk gehandicapten- auditieve  en communicatieve beperking- geaccepteerd","zvsx13k","a702","g02","TY1V01"]
[null,null,null,null,"zvsx15i_a720g_u12_TY0V01",{"$f":"'Specifieke informatie C'!$K$112","v":0},"","C720 Grensoverschrijdende zorg- wonen in Nederland (op basis van contract- geaccepteerd","zvsx15i","a720g","u12","TY0V01"]
[null,null,null,null,"zvsx15i_a720g_u12_TY1V01",{"$f":"'Specifieke informatie C'!$L$112","v":0},"","C720 Grensoverschrijdende zorg- wonen in Nederland (op basis van contract- geaccepteerd","zvsx15i","a720g","u12","TY1V01"]
[null,null,null,null,"zvsx15i_a720g_u13_TY0V01",{"$f":"'Specifieke informatie C'!$K$113","v":0},"","C720 Grensoverschrijdende zorg- wonen in Nederland (niet op basis van contract)- geaccepteerd","zvsx15i","a720g","u13","TY0V01"]
[null,null,null,null,"zvsx15i_a720g_u13_TY1V01",{"$f":"'Specifieke informatie C'!$L$113","v":0},"","C720 Grensoverschrijdende zorg- wonen in Nederland (niet op basis van contract)- geaccepteerd","zvsx15i","a720g","u13","TY1V01"]
[null,null,null,null,"zvsx15i_a720g_u02_TY0V01",{"$f":"'Specifieke informatie C'!$K$114","v":0},"","C720 Grensoverschrijdende zorg- Zvw verzekerden die wonen in het buitenland- geaccepteerd","zvsx15i","a720g","u02","TY0V01"]
[null,null,null,null,"zvsx15i_a720g_u02_TY1V01",{"$f":"'Specifieke informatie C'!$L$114","v":0},"","C720 Grensoverschrijdende zorg- Zvw verzekerden die wonen in het buitenland- geaccepteerd","zvsx15i","a720g","u02","TY1V01"]
[null,null,null,null,"zvsx15i_n720g_u12_TY0V01",{"$f":"'Specifieke informatie C'!$K$119","v":0},null,"C720 Grensoverschrijdende zorg- wonen in Nederland (op basis van contract)- geaccepteerd","zvsx15i","a720g","u12","TY0V01"]
[null,null,null,null,"zvsx15i_n720g_u12_TY1V01",{"$f":"'Specifieke informatie C'!$L$119","v":0},null,"C720 Grensoverschrijdende zorg- wonen in Nederland (op basis van contract)- geaccepteerd","zvsx15i","a720g","u12","TY1V01"]
[null,null,null,null,"zvsx15i_n720g_u13_TY0V01",{"$f":"'Specifieke informatie C'!$K$120","v":0},null,"C720 Grensoverschrijdende zorg- wonen in Nederland (niet op basis van contract)- geaccepteerd","zvsx15i","a720g","u13","TY0V01"]
[null,null,null,null,"zvsx15i_n720g_u13_TY1V01",{"$f":"'Specifieke informatie C'!$L$120","v":0},null,"C720 Grensoverschrijdende zorg- wonen in Nederland (niet op basis van contract)- geaccepteerd","zvsx15i","a720g","u13","TY1V01"]
[null,null,null,null,"zvsx15i_n720g_u02_TY0V01",{"$f":"'Specifieke informatie C'!$K$121","v":0},null,"C720 Grensoverschrijdende zorg- Zvw verzekerden die wonen in het buitenland- geaccepteerd","zvsx15i","a720g","u02","TY0V01"]
[null,null,null,null,"zvsx15i_n720g_u02_TY1V01",{"$f":"'Specifieke informatie C'!$L$121","v":0},null,"C720 Grensoverschrijdende zorg- Zvw verzekerden die wonen in het buitenland- geaccepteerd","zvsx15i","a720g","u02","TY1V01"]
[null,null,null,null,{"$f":"\"zvrx_dwh_91_c__TY0V01\"","v":"zvrx_dwh_91_c__TY0V01"},{"$f":"'Specifieke informatie A'!I77","v":0},{"$f":"Parameters!$L$3","v":""},null,null,null,null,"TY0V01"]
[null,null,null,null,{"$f":"\"zvrx_dwh_91_c01__TY0V01\"","v":"zvrx_dwh_91_c01__TY0V01"},{"$f":"'Specifieke informatie A'!I78","v":0},{"$f":"Parameters!$L$3","v":""},null,null,null,null,"TY0V01"]
[null,null,null,null,{"$f":"\"zvrx_dwh_91_c02__TY0V01\"","v":"zvrx_dwh_91_c02__TY0V01"},{"$f":"'Specifieke informatie A'!I79","v":0},{"$f":"Parameters!$L$3","v":""},null,null,null,null,"TY0V01"]
[null,null,null,null,{"$f":"\"zvrx_dwh_91_c520_Kdegm_TY0V01\"","v":"zvrx_dwh_91_c520_Kdegm_TY0V01"},{"$f":"'Specifieke informatie A'!I80","v":0},{"$f":"Parameters!$L$3","v":""},"C520 Kosten dure intramurale geneesmiddelen (artikel 1, regeling risicoverevening)- geaccepteerd","zvrx02","c520","degm","TY0V01"]
[null,null,null,null,{"$f":"\"zvrx_dwh_91_c03__TY0V01\"","v":"zvrx_dwh_91_c03__TY0V01"},{"$f":"'Specifieke informatie A'!I81","v":0},{"$f":"Parameters!$L$3","v":""},null,null,null,null,"TY0V01"]
[null,null,null,null,{"$f":"\"zvrx_dwh_91_c04__TY0V01\"","v":"zvrx_dwh_91_c04__TY0V01"},{"$f":"'Specifieke informatie A'!I82","v":0},{"$f":"Parameters!$L$3","v":""},null,null,null,null,"TY0V01"]
[null,null,null,null,{"$f":"\"zvrx_dwh_91_c05__TY0V01\"","v":"zvrx_dwh_91_c05__TY0V01"},{"$f":"'Specifieke informatie A'!I83","v":0},{"$f":"Parameters!$L$3","v":""},null,null,null,null,"TY0V01"]
[null,null,null,null,{"$f":"\"zvrx_dwh_91_c06__TY0V01\"","v":"zvrx_dwh_91_c06__TY0V01"},{"$f":"'Specifieke informatie A'!I84","v":0},{"$f":"Parameters!$L$3","v":""},null,null,null,null,"TY0V01"]
[null,null,null,null,{"$f":"\"zvrx_dwh_91_c6121_e08_TY0V01\"","v":"zvrx_dwh_91_c6121_e08_TY0V01"},{"$f":"'Specifieke informatie A'!I85","v":0},{"$f":"Parameters!$L$3","v":""},"C612.1 Kosten ADD-ON'S- dure intramurale geneesmiddelen- incl balans","zvrx06","c6121","e08","TY0V01"]
[null,null,null,null,{"$f":"\"zvrx_dwh_91_c07__TY0V01\"","v":"zvrx_dwh_91_c07__TY0V01"},{"$f":"'Specifieke informatie A'!I86","v":0},{"$f":"Parameters!$L$3","v":""},null,null,null,null,"TY0V01"]
[null,null,null,null,{"$f":"\"zvrx_dwh_91_c08__TY0V01\"","v":"zvrx_dwh_91_c08__TY0V01"},{"$f":"'Specifieke informatie A'!I87","v":0},{"$f":"Parameters!$L$3","v":""},null,null,null,null,"TY0V01"]
[null,null,null,null,{"$f":"\"zvrx_dwh_91_c09__TY0V01\"","v":"zvrx_dwh_91_c09__TY0V01"},{"$f":"'Specifieke informatie A'!I88","v":0},{"$f":"Parameters!$L$3","v":""},null,null,null,null,"TY0V01"]
[null,null,null,null,{"$f":"\"zvrx_dwh_91_c11__TY0V01\"","v":"zvrx_dwh_91_c11__TY0V01"},{"$f":"'Specifieke informatie A'!I89","v":0},{"$f":"Parameters!$L$3","v":""},null,null,null,null,"TY0V01"]
[null,null,null,null,{"$f":"\"zvrx_dwh_91_c12__TY0V01\"","v":"zvrx_dwh_91_c12__TY0V01"},{"$f":"'Specifieke informatie A'!I90","v":0},{"$f":"Parameters!$L$3","v":""},null,null,null,null,"TY0V01"]
[null,null,null,null,{"$f":"\"zvrx_dwh_91_c13__TY0V01\"","v":"zvrx_dwh_91_c13__TY0V01"},{"$f":"'Specifieke informatie A'!I91","v":0},{"$f":"Parameters!$L$3","v":""},null,null,null,null,"TY0V01"]
[null,null,null,null,{"$f":"\"zvrx_dwh_91_c703__TY0V01\"","v":"zvrx_dwh_91_c703__TY0V01"},{"$f":"'Specifieke informatie A'!I92","v":0},{"$f":"Parameters!$L$3","v":""},"Overige kosten- Transformatiemiddelen IZA- incl balans","zvkx13","c703",null,"TY0V01"]
[null,null,null,null,{"$f":"\"zvrx_dwh_91_c15__TY0V01\"","v":"zvrx_dwh_91_c15__TY0V01"},{"$f":"'Specifieke informatie A'!I93","v":0},{"$f":"Parameters!$L$3","v":""},null,null,null,null,"TY0V01"]
[null,null,null,null,{"$f":"\"zvrx_dwh_91_c720v_m51_TY0V01\"","v":"zvrx_dwh_91_c720v_m51_TY0V01"},{"$f":"'Specifieke informatie A'!I94","v":0},{"$f":"Parameters!$L$3","v":""},"C720 Buitenland, Via Verzekeraar- geestelijke gezondheidszorgg- incl balans","zvrx15","c720v","m51","TY0V01"]
[null,null,null,null,{"$f":"\"zvrx_dwh_91_c16__TY0V01\"","v":"zvrx_dwh_91_c16__TY0V01"},{"$f":"'Specifieke informatie A'!I95","v":0},{"$f":"Parameters!$L$3","v":""},null,null,null,null,"TY0V01"]
[null,null,null,null,{"$f":"\"zvrx_dwh_91_s999_inbw_TY0V01\"","v":"zvrx_dwh_91_s999_inbw_TY0V01"},{"$f":"'Specifieke informatie A'!I99","v":0},{"$f":"Parameters!$L$3","v":""},"C999 rekenpremies gedetineerden","zvrx19","s999","inbw","TY0V01"]
[null,null,null,null,{"$f":"\"zvrx_dwh_92_c__TY0V01\"","v":"zvrx_dwh_92_c__TY0V01"},{"$f":"'Specifieke informatie A'!K77","v":0},{"$f":"Parameters!$L$4","v":""},null,null,null,null,"TY0V01"]
[null,null,null,null,{"$f":"\"zvrx_dwh_92_c01__TY0V01\"","v":"zvrx_dwh_92_c01__TY0V01"},{"$f":"'Specifieke informatie A'!K78","v":0},{"$f":"Parameters!$L$4","v":""},null,null,null,null,"TY0V01"]
[null,null,null,null,{"$f":"\"zvrx_dwh_92_c02__TY0V01\"","v":"zvrx_dwh_92_c02__TY0V01"},{"$f":"'Specifieke informatie A'!K79","v":0},{"$f":"Parameters!$L$4","v":""},null,null,null,null,"TY0V01"]
[null,null,null,null,{"$f":"\"zvrx_dwh_92_c520_Kdegm_TY0V01\"","v":"zvrx_dwh_92_c520_Kdegm_TY0V01"},{"$f":"'Specifieke informatie A'!K80","v":0},{"$f":"Parameters!$L$4","v":""},"C520 Kosten dure intramurale geneesmiddelen (artikel 1, regeling risicoverevening)- geaccepteerd","zvrx02","c520","degm","TY0V01"]
[null,null,null,null,{"$f":"\"zvrx_dwh_92_c03__TY0V01\"","v":"zvrx_dwh_92_c03__TY0V01"},{"$f":"'Specifieke informatie A'!K81","v":0},{"$f":"Parameters!$L$4","v":""},null,null,null,null,"TY0V01"]
[null,null,null,null,{"$f":"\"zvrx_dwh_92_c04__TY0V01\"","v":"zvrx_dwh_92_c04__TY0V01"},{"$f":"'Specifieke informatie A'!K82","v":0},{"$f":"Parameters!$L$4","v":""},null,null,null,null,"TY0V01"]
[null,null,null,null,{"$f":"\"zvrx_dwh_92_c05__TY0V01\"","v":"zvrx_dwh_92_c05__TY0V01"},{"$f":"'Specifieke informatie A'!K83","v":0},{"$f":"Parameters!$L$4","v":""},null,null,null,null,"TY0V01"]
[null,null,null,null,{"$f":"\"zvrx_dwh_92_c06__TY0V01\"","v":"zvrx_dwh_92_c06__TY0V01"},{"$f":"'Specifieke informatie A'!K84","v":0},{"$f":"Parameters!$L$4","v":""},null,null,null,null,"TY0V01"]
[null,null,null,null,{"$f":"\"zvrx_dwh_92_c6121_e08_TY0V01\"","v":"zvrx_dwh_92_c6121_e08_TY0V01"},{"$f":"'Specifieke informatie A'!K85","v":0},{"$f":"Parameters!$L$4","v":""},"C612.1 Kosten ADD-ON'S- dure intramurale geneesmiddelen- incl balans","zvrx06","a6121","e08","TY0V01"]
[null,null,null,null,{"$f":"\"zvrx_dwh_92_c07__TY0V01\"","v":"zvrx_dwh_92_c07__TY0V01"},{"$f":"'Specifieke informatie A'!K86","v":0},{"$f":"Parameters!$L$4","v":""},null,null,null,null,"TY0V01"]
[null,null,null,null,{"$f":"\"zvrx_dwh_92_c08__TY0V01\"","v":"zvrx_dwh_92_c08__TY0V01"},{"$f":"'Specifieke informatie A'!K87","v":0},{"$f":"Parameters!$L$4","v":""},null,null,null,null,"TY0V01"]
[null,null,null,null,{"$f":"\"zvrx_dwh_92_c09__TY0V01\"","v":"zvrx_dwh_92_c09__TY0V01"},{"$f":"'Specifieke informatie A'!K88","v":0},{"$f":"Parameters!$L$4","v":""},null,null,null,null,"TY0V01"]
[null,null,null,null,{"$f":"\"zvrx_dwh_92_c11__TY0V01\"","v":"zvrx_dwh_92_c11__TY0V01"},{"$f":"'Specifieke informatie A'!K89","v":0},{"$f":"Parameters!$L$4","v":""},null,null,null,null,"TY0V01"]
[null,null,null,null,{"$f":"\"zvrx_dwh_92_c12__TY0V01\"","v":"zvrx_dwh_92_c12__TY0V01"},{"$f":"'Specifieke informatie A'!K90","v":0},{"$f":"Parameters!$L$4","v":""},null,null,null,null,"TY0V01"]
[null,null,null,null,{"$f":"\"zvrx_dwh_92_c13__TY0V01\"","v":"zvrx_dwh_92_c13__TY0V01"},{"$f":"'Specifieke informatie A'!K91","v":0},{"$f":"Parameters!$L$4","v":""},null,null,null,null,"TY0V01"]
[null,null,null,null,{"$f":"\"zvrx_dwh_92_c703__TY0V01\"","v":"zvrx_dwh_92_c703__TY0V01"},{"$f":"'Specifieke informatie A'!K92","v":0},{"$f":"Parameters!$L$4","v":""},"Overige kosten- Transformatiemiddelen IZA- incl balans","zvkx13","c703",null,"TY0V01"]
[null,null,null,null,{"$f":"\"zvrx_dwh_92_c15__TY0V01\"","v":"zvrx_dwh_92_c15__TY0V01"},{"$f":"'Specifieke informatie A'!K93","v":0},{"$f":"Parameters!$L$4","v":""},null,null,null,null,"TY0V01"]
[null,null,null,null,{"$f":"\"zvrx_dwh_92_c720v_m51_TY0V01\"","v":"zvrx_dwh_92_c720v_m51_TY0V01"},{"$f":"'Specifieke informatie A'!K94","v":0},{"$f":"Parameters!$L$4","v":""},"C720 Buitenland, Via Verzekeraar- geestelijke gezondheidszorgg- incl balans","zvrx15","a720v","m51","TY0V01"]
[null,null,null,null,{"$f":"\"zvrx_dwh_92_c16__TY0V01\"","v":"zvrx_dwh_92_c16__TY0V01"},{"$f":"'Specifieke informatie A'!K95","v":0},{"$f":"Parameters!$L$4","v":""},null,null,null,null,"TY0V01"]
[null,null,null,null,{"$f":"\"zvrx_dwh_92_s999_inbw_TY0V01\"","v":"zvrx_dwh_92_s999_inbw_TY0V01"},{"$f":"'Specifieke informatie A'!K99","v":0},{"$f":"Parameters!$L$4","v":""},"C999 rekenpremies gedetineerden","zvrx19","s999","inbw","TY0V01"]
[null,null,null,null,{"$f":"\"zvrx_dwh_93_c__TY0V01\"","v":"zvrx_dwh_93_c__TY0V01"},{"$f":"'Specifieke informatie A'!M77","v":0},{"$f":"Parameters!$L$5","v":""},null,null,null,null,"TY0V01"]
[null,null,null,null,{"$f":"\"zvrx_dwh_93_c01__TY0V01\"","v":"zvrx_dwh_93_c01__TY0V01"},{"$f":"'Specifieke informatie A'!M78","v":0},{"$f":"Parameters!$L$5","v":""},null,null,null,null,"TY0V01"]
[null,null,null,null,{"$f":"\"zvrx_dwh_93_c02__TY0V01\"","v":"zvrx_dwh_93_c02__TY0V01"},{"$f":"'Specifieke informatie A'!M79","v":0},{"$f":"Parameters!$L$5","v":""},null,null,null,null,"TY0V01"]
[null,null,null,null,{"$f":"\"zvrx_dwh_93_c520_Kdegm_TY0V01\"","v":"zvrx_dwh_93_c520_Kdegm_TY0V01"},{"$f":"'Specifieke informatie A'!M80","v":0},{"$f":"Parameters!$L$5","v":""},"C520 Kosten dure intramurale geneesmiddelen (artikel 1, regeling risicoverevening)- geaccepteerd","zvrx02","c520","degm","TY0V01"]
[null,null,null,null,{"$f":"\"zvrx_dwh_93_c03__TY0V01\"","v":"zvrx_dwh_93_c03__TY0V01"},{"$f":"'Specifieke informatie A'!M81","v":0},{"$f":"Parameters!$L$5","v":""},null,null,null,null,"TY0V01"]
[null,null,null,null,{"$f":"\"zvrx_dwh_93_c04__TY0V01\"","v":"zvrx_dwh_93_c04__TY0V01"},{"$f":"'Specifieke informatie A'!M82","v":0},{"$f":"Parameters!$L$5","v":""},null,null,null,null,"TY0V01"]
[null,null,null,null,{"$f":"\"zvrx_dwh_93_c05__TY0V01\"","v":"zvrx_dwh_93_c05__TY0V01"},{"$f":"'Specifieke informatie A'!M83","v":0},{"$f":"Parameters!$L$5","v":""},null,null,null,null,"TY0V01"]
[null,null,null,null,{"$f":"\"zvrx_dwh_93_c06__TY0V01\"","v":"zvrx_dwh_93_c06__TY0V01"},{"$f":"'Specifieke informatie A'!M84","v":0},{"$f":"Parameters!$L$5","v":""},null,null,null,null,"TY0V01"]
[null,null,null,null,{"$f":"\"zvrx_dwh_93_c6121_e08_TY0V01\"","v":"zvrx_dwh_93_c6121_e08_TY0V01"},{"$f":"'Specifieke informatie A'!M85","v":0},{"$f":"Parameters!$L$5","v":""},"C612.1 Kosten ADD-ON'S- dure intramurale geneesmiddelen- incl balans","zvrx06","a6121","e08","TY0V01"]
[null,null,null,null,{"$f":"\"zvrx_dwh_93_c07__TY0V01\"","v":"zvrx_dwh_93_c07__TY0V01"},{"$f":"'Specifieke informatie A'!M86","v":0},{"$f":"Parameters!$L$5","v":""},null,null,null,null,"TY0V01"]
[null,null,null,null,{"$f":"\"zvrx_dwh_93_c08__TY0V01\"","v":"zvrx_dwh_93_c08__TY0V01"},{"$f":"'Specifieke informatie A'!M87","v":0},{"$f":"Parameters!$L$5","v":""},null,null,null,null,"TY0V01"]
[null,null,null,null,{"$f":"\"zvrx_dwh_93_c09__TY0V01\"","v":"zvrx_dwh_93_c09__TY0V01"},{"$f":"'Specifieke informatie A'!M88","v":0},{"$f":"Parameters!$L$5","v":""},null,null,null,null,"TY0V01"]
[null,null,null,null,{"$f":"\"zvrx_dwh_93_c11__TY0V01\"","v":"zvrx_dwh_93_c11__TY0V01"},{"$f":"'Specifieke informatie A'!M89","v":0},{"$f":"Parameters!$L$5","v":""},null,null,null,null,"TY0V01"]
[null,null,null,null,{"$f":"\"zvrx_dwh_93_c12__TY0V01\"","v":"zvrx_dwh_93_c12__TY0V01"},{"$f":"'Specifieke informatie A'!M90","v":0},{"$f":"Parameters!$L$5","v":""},null,null,null,null,"TY0V01"]
[null,null,null,null,{"$f":"\"zvrx_dwh_93_c13__TY0V01\"","v":"zvrx_dwh_93_c13__TY0V01"},{"$f":"'Specifieke informatie A'!M91","v":0},{"$f":"Parameters!$L$5","v":""},null,null,null,null,"TY0V01"]
[null,null,null,null,{"$f":"\"zvrx_dwh_93_c703__TY0V01\"","v":"zvrx_dwh_93_c703__TY0V01"},{"$f":"'Specifieke informatie A'!M92","v":0},{"$f":"Parameters!$L$5","v":""},"Overige kosten- Transformatiemiddelen IZA- incl balans","zvkx13","c703",null,"TY0V01"]
[null,null,null,null,{"$f":"\"zvrx_dwh_93_c15__TY0V01\"","v":"zvrx_dwh_93_c15__TY0V01"},{"$f":"'Specifieke informatie A'!M93","v":0},{"$f":"Parameters!$L$5","v":""},null,null,null,null,"TY0V01"]
[null,null,null,null,{"$f":"\"zvrx_dwh_93_c720v_m51_TY0V01\"","v":"zvrx_dwh_93_c720v_m51_TY0V01"},{"$f":"'Specifieke informatie A'!M94","v":0},{"$f":"Parameters!$L$5","v":""},"C720 Buitenland, Via Verzekeraar- geestelijke gezondheidszorgg- incl balans","zvrx15","a720v","m51","TY0V01"]
[null,null,null,null,{"$f":"\"zvrx_dwh_93_c16__TY0V01\"","v":"zvrx_dwh_93_c16__TY0V01"},{"$f":"'Specifieke informatie A'!M95","v":0},{"$f":"Parameters!$L$5","v":""},null,null,null,null,"TY0V01"]
[null,null,null,null,{"$f":"\"zvrx_dwh_93_s999_inbw_TY0V01\"","v":"zvrx_dwh_93_s999_inbw_TY0V01"},{"$f":"'Specifieke informatie A'!M99","v":0},{"$f":"Parameters!$L$5","v":""},"C999 rekenpremies gedetineerden","zvrx19","s999","inbw","TY0V01"]
[null,null,null,null,{"$f":"\"zvrx_dwh_94_c__TY0V01\"","v":"zvrx_dwh_94_c__TY0V01"},{"$f":"'Specifieke informatie A'!O77","v":0},{"$f":"Parameters!$L$6","v":""},null,null,null,null,"TY0V01"]
[null,null,null,null,{"$f":"\"zvrx_dwh_94_c01__TY0V01\"","v":"zvrx_dwh_94_c01__TY0V01"},{"$f":"'Specifieke informatie A'!O78","v":0},{"$f":"Parameters!$L$6","v":""},null,null,null,null,"TY0V01"]
[null,null,null,null,{"$f":"\"zvrx_dwh_94_c02__TY0V01\"","v":"zvrx_dwh_94_c02__TY0V01"},{"$f":"'Specifieke informatie A'!O79","v":0},{"$f":"Parameters!$L$6","v":""},null,null,null,null,"TY0V01"]
[null,null,null,null,{"$f":"\"zvrx_dwh_94_c520_Kdegm_TY0V01\"","v":"zvrx_dwh_94_c520_Kdegm_TY0V01"},{"$f":"'Specifieke informatie A'!O80","v":0},{"$f":"Parameters!$L$6","v":""},"C520 Kosten dure intramurale geneesmiddelen (artikel 1, regeling risicoverevening)- geaccepteerd","zvrx02","c520","degm","TY0V01"]
[null,null,null,null,{"$f":"\"zvrx_dwh_94_c03__TY0V01\"","v":"zvrx_dwh_94_c03__TY0V01"},{"$f":"'Specifieke informatie A'!O81","v":0},{"$f":"Parameters!$L$6","v":""},null,null,null,null,"TY0V01"]
[null,null,null,null,{"$f":"\"zvrx_dwh_94_c04__TY0V01\"","v":"zvrx_dwh_94_c04__TY0V01"},{"$f":"'Specifieke informatie A'!O82","v":0},{"$f":"Parameters!$L$6","v":""},null,null,null,null,"TY0V01"]
[null,null,null,null,{"$f":"\"zvrx_dwh_94_c05__TY0V01\"","v":"zvrx_dwh_94_c05__TY0V01"},{"$f":"'Specifieke informatie A'!O83","v":0},{"$f":"Parameters!$L$6","v":""},null,null,null,null,"TY0V01"]
[null,null,null,null,{"$f":"\"zvrx_dwh_94_c06__TY0V01\"","v":"zvrx_dwh_94_c06__TY0V01"},{"$f":"'Specifieke informatie A'!O84","v":0},{"$f":"Parameters!$L$6","v":""},null,null,null,null,"TY0V01"]
[null,null,null,null,{"$f":"\"zvrx_dwh_94_c6121_e08_TY0V01\"","v":"zvrx_dwh_94_c6121_e08_TY0V01"},{"$f":"'Specifieke informatie A'!O85","v":0},{"$f":"Parameters!$L$6","v":""},"C612.1 Kosten ADD-ON'S- dure intramurale geneesmiddelen- incl balans","zvrx06","a6121","e08","TY0V01"]
[null,null,null,null,{"$f":"\"zvrx_dwh_94_c07__TY0V01\"","v":"zvrx_dwh_94_c07__TY0V01"},{"$f":"'Specifieke informatie A'!O86","v":0},{"$f":"Parameters!$L$6","v":""},null,null,null,null,"TY0V01"]
[null,null,null,null,{"$f":"\"zvrx_dwh_94_c08__TY0V01\"","v":"zvrx_dwh_94_c08__TY0V01"},{"$f":"'Specifieke informatie A'!O87","v":0},{"$f":"Parameters!$L$6","v":""},null,null,null,null,"TY0V01"]
[null,null,null,null,{"$f":"\"zvrx_dwh_94_c09__TY0V01\"","v":"zvrx_dwh_94_c09__TY0V01"},{"$f":"'Specifieke informatie A'!O88","v":0},{"$f":"Parameters!$L$6","v":""},null,null,null,null,"TY0V01"]
[null,null,null,null,{"$f":"\"zvrx_dwh_94_c11__TY0V01\"","v":"zvrx_dwh_94_c11__TY0V01"},{"$f":"'Specifieke informatie A'!O89","v":0},{"$f":"Parameters!$L$6","v":""},null,null,null,null,"TY0V01"]
[null,null,null,null,{"$f":"\"zvrx_dwh_94_c12__TY0V01\"","v":"zvrx_dwh_94_c12__TY0V01"},{"$f":"'Specifieke informatie A'!O90","v":0},{"$f":"Parameters!$L$6","v":""},null,null,null,null,"TY0V01"]
[null,null,null,null,{"$f":"\"zvrx_dwh_94_c13__TY0V01\"","v":"zvrx_dwh_94_c13__TY0V01"},{"$f":"'Specifieke informatie A'!O91","v":0},{"$f":"Parameters!$L$6","v":""},null,null,null,null,"TY0V01"]
[null,null,null,null,{"$f":"\"zvrx_dwh_94_c703__TY0V01\"","v":"zvrx_dwh_94_c703__TY0V01"},{"$f":"'Specifieke informatie A'!O92","v":0},{"$f":"Parameters!$L$6","v":""},"Overige kosten- Transformatiemiddelen IZA- incl balans","zvkx13","c703",null,"TY0V01"]
[null,null,null,null,{"$f":"\"zvrx_dwh_94_c15__TY0V01\"","v":"zvrx_dwh_94_c15__TY0V01"},{"$f":"'Specifieke informatie A'!O93","v":0},{"$f":"Parameters!$L$6","v":""},null,null,null,null,"TY0V01"]
[null,null,null,null,{"$f":"\"zvrx_dwh_94_c720v_m51_TY0V01\"","v":"zvrx_dwh_94_c720v_m51_TY0V01"},{"$f":"'Specifieke informatie A'!O94","v":0},{"$f":"Parameters!$L$6","v":""},"C720 Buitenland, Via Verzekeraar- geestelijke gezondheidszorgg- incl balans","zvrx15","a720v","m51","TY0V01"]
[null,null,null,null,{"$f":"\"zvrx_dwh_94_c16__TY0V01\"","v":"zvrx_dwh_94_c16__TY0V01"},{"$f":"'Specifieke informatie A'!O95","v":0},{"$f":"Parameters!$L$6","v":""},null,null,null,null,"TY0V01"]
[null,null,null,null,{"$f":"\"zvrx_dwh_94_s999_inbw_TY0V01\"","v":"zvrx_dwh_94_s999_inbw_TY0V01"},{"$f":"'Specifieke informatie A'!O99","v":0},{"$f":"Parameters!$L$6","v":""},"C999 rekenpremies gedetineerden","zvrx19","s999","inbw","TY0V01"]
[null,null,null,null,{"$f":"\"zvrx_dwh_95_c__TY0V01\"","v":"zvrx_dwh_95_c__TY0V01"},{"$f":"'Specifieke informatie A'!Q77","v":0},{"$f":"Parameters!$L$7","v":""},null,null,null,null,"TY0V01"]
[null,null,null,null,{"$f":"\"zvrx_dwh_95_c01__TY0V01\"","v":"zvrx_dwh_95_c01__TY0V01"},{"$f":"'Specifieke informatie A'!Q78","v":0},{"$f":"Parameters!$L$7","v":""},null,null,null,null,"TY0V01"]
[null,null,null,null,{"$f":"\"zvrx_dwh_95_c02__TY0V01\"","v":"zvrx_dwh_95_c02__TY0V01"},{"$f":"'Specifieke informatie A'!Q79","v":0},{"$f":"Parameters!$L$7","v":""},null,null,null,null,"TY0V01"]
[null,null,null,null,{"$f":"\"zvrx_dwh_95_c520_Kdegm_TY0V01\"","v":"zvrx_dwh_95_c520_Kdegm_TY0V01"},{"$f":"'Specifieke informatie A'!Q80","v":0},{"$f":"Parameters!$L$7","v":""},"C520 Kosten dure intramurale geneesmiddelen (artikel 1, regeling risicoverevening)- geaccepteerd","zvrx02","c520","degm","TY0V01"]
[null,null,null,null,{"$f":"\"zvrx_dwh_95_c03__TY0V01\"","v":"zvrx_dwh_95_c03__TY0V01"},{"$f":"'Specifieke informatie A'!Q81","v":0},{"$f":"Parameters!$L$7","v":""},null,null,null,null,"TY0V01"]
[null,null,null,null,{"$f":"\"zvrx_dwh_95_c04__TY0V01\"","v":"zvrx_dwh_95_c04__TY0V01"},{"$f":"'Specifieke informatie A'!Q82","v":0},{"$f":"Parameters!$L$7","v":""},null,null,null,null,"TY0V01"]
[null,null,null,null,{"$f":"\"zvrx_dwh_95_c05__TY0V01\"","v":"zvrx_dwh_95_c05__TY0V01"},{"$f":"'Specifieke informatie A'!Q83","v":0},{"$f":"Parameters!$L$7","v":""},null,null,null,null,"TY0V01"]
[null,null,null,null,{"$f":"\"zvrx_dwh_95_c06__TY0V01\"","v":"zvrx_dwh_95_c06__TY0V01"},{"$f":"'Specifieke informatie A'!Q84","v":0},{"$f":"Parameters!$L$7","v":""},null,null,null,null,"TY0V01"]
[null,null,null,null,{"$f":"\"zvrx_dwh_95_c6121_e08_TY0V01\"","v":"zvrx_dwh_95_c6121_e08_TY0V01"},{"$f":"'Specifieke informatie A'!Q85","v":0},{"$f":"Parameters!$L$7","v":""},"C612.1 Kosten ADD-ON'S- dure intramurale geneesmiddelen- incl balans","zvrx06","a6121","e08","TY0V01"]
[null,null,null,null,{"$f":"\"zvrx_dwh_95_c07__TY0V01\"","v":"zvrx_dwh_95_c07__TY0V01"},{"$f":"'Specifieke informatie A'!Q86","v":0},{"$f":"Parameters!$L$7","v":""},null,null,null,null,"TY0V01"]
[null,null,null,null,{"$f":"\"zvrx_dwh_95_c08__TY0V01\"","v":"zvrx_dwh_95_c08__TY0V01"},{"$f":"'Specifieke informatie A'!Q87","v":0},{"$f":"Parameters!$L$7","v":""},null,null,null,null,"TY0V01"]
[null,null,null,null,{"$f":"\"zvrx_dwh_95_c09__TY0V01\"","v":"zvrx_dwh_95_c09__TY0V01"},{"$f":"'Specifieke informatie A'!Q88","v":0},{"$f":"Parameters!$L$7","v":""},null,null,null,null,"TY0V01"]
[null,null,null,null,{"$f":"\"zvrx_dwh_95_c11__TY0V01\"","v":"zvrx_dwh_95_c11__TY0V01"},{"$f":"'Specifieke informatie A'!Q89","v":0},{"$f":"Parameters!$L$7","v":""},null,null,null,null,"TY0V01"]
[null,null,null,null,{"$f":"\"zvrx_dwh_95_c12__TY0V01\"","v":"zvrx_dwh_95_c12__TY0V01"},{"$f":"'Specifieke informatie A'!Q90","v":0},{"$f":"Parameters!$L$7","v":""},null,null,null,null,"TY0V01"]
[null,null,null,null,{"$f":"\"zvrx_dwh_95_c13__TY0V01\"","v":"zvrx_dwh_95_c13__TY0V01"},{"$f":"'Specifieke informatie A'!Q91","v":0},{"$f":"Parameters!$L$7","v":""},null,null,null,null,"TY0V01"]
[null,null,null,null,{"$f":"\"zvrx_dwh_95_c703__TY0V01\"","v":"zvrx_dwh_95_c703__TY0V01"},{"$f":"'Specifieke informatie A'!Q92","v":0},{"$f":"Parameters!$L$7","v":""},"Overige kosten- Transformatiemiddelen IZA- incl balans","zvkx13","c703",null,"TY0V01"]
[null,null,null,null,{"$f":"\"zvrx_dwh_95_c15__TY0V01\"","v":"zvrx_dwh_95_c15__TY0V01"},{"$f":"'Specifieke informatie A'!Q93","v":0},{"$f":"Parameters!$L$7","v":""},null,null,null,null,"TY0V01"]
[null,null,null,null,{"$f":"\"zvrx_dwh_95_c720v_m51_TY0V01\"","v":"zvrx_dwh_95_c720v_m51_TY0V01"},{"$f":"'Specifieke informatie A'!Q94","v":0},{"$f":"Parameters!$L$7","v":""},"C720 Buitenland, Via Verzekeraar- geestelijke gezondheidszorgg- incl balans","zvrx15","a720v","m51","TY0V01"]
[null,null,null,null,{"$f":"\"zvrx_dwh_95_c16__TY0V01\"","v":"zvrx_dwh_95_c16__TY0V01"},{"$f":"'Specifieke informatie A'!Q95","v":0},{"$f":"Parameters!$L$7","v":""},null,null,null,null,"TY0V01"]
[null,null,null,null,{"$f":"\"zvrx_dwh_95_s999_inbw_TY0V01\"","v":"zvrx_dwh_95_s999_inbw_TY0V01"},{"$f":"'Specifieke informatie A'!Q99","v":0},{"$f":"Parameters!$L$7","v":""},"C999 rekenpremies gedetineerden","zvrx19","s999","inbw","TY0V01"]
[null,null,null,null,{"$f":"\"zvrx_dwh_96_c__TY0V01\"","v":"zvrx_dwh_96_c__TY0V01"},{"$f":"'Specifieke informatie A'!S77","v":0},{"$f":"Parameters!$L$8","v":""},null,null,null,null,"TY0V01"]
[null,null,null,null,{"$f":"\"zvrx_dwh_96_c01__TY0V01\"","v":"zvrx_dwh_96_c01__TY0V01"},{"$f":"'Specifieke informatie A'!S78","v":0},{"$f":"Parameters!$L$8","v":""},null,null,null,null,"TY0V01"]
[null,null,null,null,{"$f":"\"zvrx_dwh_96_c02__TY0V01\"","v":"zvrx_dwh_96_c02__TY0V01"},{"$f":"'Specifieke informatie A'!S79","v":0},{"$f":"Parameters!$L$8","v":""},null,null,null,null,"TY0V01"]
[null,null,null,null,{"$f":"\"zvrx_dwh_96_c520_Kdegm_TY0V01\"","v":"zvrx_dwh_96_c520_Kdegm_TY0V01"},{"$f":"'Specifieke informatie A'!S80","v":0},{"$f":"Parameters!$L$8","v":""},"C520 Kosten dure intramurale geneesmiddelen (artikel 1, regeling risicoverevening)- geaccepteerd","zvrx02","c520","degm","TY0V01"]
[null,null,null,null,{"$f":"\"zvrx_dwh_96_c03__TY0V01\"","v":"zvrx_dwh_96_c03__TY0V01"},{"$f":"'Specifieke informatie A'!S81","v":0},{"$f":"Parameters!$L$8","v":""},null,null,null,null,"TY0V01"]
[null,null,null,null,{"$f":"\"zvrx_dwh_96_c04__TY0V01\"","v":"zvrx_dwh_96_c04__TY0V01"},{"$f":"'Specifieke informatie A'!S82","v":0},{"$f":"Parameters!$L$8","v":""},null,null,null,null,"TY0V01"]
[null,null,null,null,{"$f":"\"zvrx_dwh_96_c05__TY0V01\"","v":"zvrx_dwh_96_c05__TY0V01"},{"$f":"'Specifieke informatie A'!S83","v":0},{"$f":"Parameters!$L$8","v":""},null,null,null,null,"TY0V01"]
[null,null,null,null,{"$f":"\"zvrx_dwh_96_c06__TY0V01\"","v":"zvrx_dwh_96_c06__TY0V01"},{"$f":"'Specifieke informatie A'!S84","v":0},{"$f":"Parameters!$L$8","v":""},null,null,null,null,"TY0V01"]
[null,null,null,null,{"$f":"\"zvrx_dwh_96_c6121_e08_TY0V01\"","v":"zvrx_dwh_96_c6121_e08_TY0V01"},{"$f":"'Specifieke informatie A'!S85","v":0},{"$f":"Parameters!$L$8","v":""},"C612.1 Kosten ADD-ON'S- dure intramurale geneesmiddelen- incl balans","zvrx06","a6121","e08","TY0V01"]
[null,null,null,null,{"$f":"\"zvrx_dwh_96_c07__TY0V01\"","v":"zvrx_dwh_96_c07__TY0V01"},{"$f":"'Specifieke informatie A'!S86","v":0},{"$f":"Parameters!$L$8","v":""},null,null,null,null,"TY0V01"]
[null,null,null,null,{"$f":"\"zvrx_dwh_96_c08__TY0V01\"","v":"zvrx_dwh_96_c08__TY0V01"},{"$f":"'Specifieke informatie A'!S87","v":0},{"$f":"Parameters!$L$8","v":""},null,null,null,null,"TY0V01"]
[null,null,null,null,{"$f":"\"zvrx_dwh_96_c09__TY0V01\"","v":"zvrx_dwh_96_c09__TY0V01"},{"$f":"'Specifieke informatie A'!S88","v":0},{"$f":"Parameters!$L$8","v":""},null,null,null,null,"TY0V01"]
[null,null,null,null,{"$f":"\"zvrx_dwh_96_c11__TY0V01\"","v":"zvrx_dwh_96_c11__TY0V01"},{"$f":"'Specifieke informatie A'!S89","v":0},{"$f":"Parameters!$L$8","v":""},null,null,null,null,"TY0V01"]
[null,null,null,null,{"$f":"\"zvrx_dwh_96_c12__TY0V01\"","v":"zvrx_dwh_96_c12__TY0V01"},{"$f":"'Specifieke informatie A'!S90","v":0},{"$f":"Parameters!$L$8","v":""},null,null,null,null,"TY0V01"]
[null,null,null,null,{"$f":"\"zvrx_dwh_96_c13__TY0V01\"","v":"zvrx_dwh_96_c13__TY0V01"},{"$f":"'Specifieke informatie A'!S91","v":0},{"$f":"Parameters!$L$8","v":""},null,null,null,null,"TY0V01"]
[null,null,null,null,{"$f":"\"zvrx_dwh_96_c703__TY0V01\"","v":"zvrx_dwh_96_c703__TY0V01"},{"$f":"'Specifieke informatie A'!S92","v":0},{"$f":"Parameters!$L$8","v":""},"Overige kosten- Transformatiemiddelen IZA- incl balans","zvkx13","c703",null,"TY0V01"]
[null,null,null,null,{"$f":"\"zvrx_dwh_96_c15__TY0V01\"","v":"zvrx_dwh_96_c15__TY0V01"},{"$f":"'Specifieke informatie A'!S93","v":0},{"$f":"Parameters!$L$8","v":""},null,null,null,null,"TY0V01"]
[null,null,null,null,{"$f":"\"zvrx_dwh_96_c720v_m51_TY0V01\"","v":"zvrx_dwh_96_c720v_m51_TY0V01"},{"$f":"'Specifieke informatie A'!S94","v":0},{"$f":"Parameters!$L$8","v":""},"C720 Buitenland, Via Verzekeraar- geestelijke gezondheidszorgg- incl balans","zvrx15","a720v","m51","TY0V01"]
[null,null,null,null,{"$f":"\"zvrx_dwh_96_c16__TY0V01\"","v":"zvrx_dwh_96_c16__TY0V01"},{"$f":"'Specifieke informatie A'!S95","v":0},{"$f":"Parameters!$L$8","v":""},null,null,null,null,"TY0V01"]
[null,null,null,null,{"$f":"\"zvrx_dwh_96_s999_inbw_TY0V01\"","v":"zvrx_dwh_96_s999_inbw_TY0V01"},{"$f":"'Specifieke informatie A'!S99","v":0},{"$f":"Parameters!$L$8","v":""},"C999 rekenpremies gedetineerden","zvrx19","s999","inbw","TY0V01"]

{"sheet":"Parameters","index":11,"n_rows":62,"n_cols":12,"rows_kept":62,"cut":false,"hidden":true,"merged":[[0,10,0,11]]}
[null,null,null,null,"Alle mogelijke modelovereenkomsten 2023 waaruit gekozen kan worden",null,null,null,null,null,"Weergave van de gekozen modelovereenkomsten (voor het doorsluizen naar Blad1)"]
["Kwartaal:",null,null,null,"nummer DWH","Naam modelovereenkomst","verzekeraar","Combi","nummer DWH",null,"Overeenkomst","Keuze"]
["Jaar:",2023,null,null,80,"De Friesland Alles Verzorgd Polis","De Friesland Zorgverzekeraar N.V.",{"$f":"E3&\"  \"&F3","v":"80  De Friesland Alles Verzorgd Polis"},80,null,1,{"$f":"IFERROR(VLOOKUP('Specifieke informatie A'!I74,Parameters!$H$2:$I$68,2,FALSE),\"\")","v":""}]
["Wet:","ZVW",null,null,109,"De Friesland Zelf Bewust Polis","De Friesland Zorgverzekeraar N.V.","109  De Friesland Zelf Bewust Polis",109,null,2,{"$f":"IFERROR(VLOOKUP('Specifieke informatie A'!K74,Parameters!$H$2:$I$68,2,FALSE),\"\")","v":""}]
["Document:",{"$f":"CONCATENATE(\"JS\",jaar_id,wet_id,\".\",kwartaal_id,revisie_id)","v":"JS2023ZVW.A"},null,null,104,"FBTO Zorgverzekering Basis Plus","FBTO Zorgverzekeringen N.V.","104  FBTO Zorgverzekering Basis Plus",104,null,3,{"$f":"IFERROR(VLOOKUP('Specifieke informatie A'!M74,Parameters!$H$2:$I$68,2,FALSE),\"\")","v":""}]
["Revisie:","A",null,null,105,"FBTO Zorgverzekering Basis Vrij","FBTO Zorgverzekeringen N.V.","105  FBTO Zorgverzekering Basis Vrij",105,null,4,{"$f":"IFERROR(VLOOKUP('Specifieke informatie A'!O74,Parameters!$H$2:$I$68,2,FALSE),\"\")","v":""}]
["Revisiedatum:","2023-11-01",null,null,130,"FBTO Zorgverzekering Basis","FBTO Zorgverzekeringen N.V.","130  FBTO Zorgverzekering Basis",130,null,5,{"$f":"IFERROR(VLOOKUP('Specifieke informatie A'!Q74,Parameters!$H$2:$I$68,2,FALSE),\"\")","v":""}]
["Versie:",{"$f":"CONCATENATE(document_id,)","v":"JS2023ZVW.A"},null,null,27,"Interpolis ZorgActief ","Interpolis Zorgverzekeringen N.V.","27  Interpolis ZorgActief ",27,null,6,{"$f":"IFERROR(VLOOKUP('Specifieke informatie A'!S74,Parameters!$H$2:$I$68,2,FALSE),\"\")","v":""}]
[null,null,null,null,113,"Interpolis ZorgCompact","Interpolis Zorgverzekeringen N.V.","113  Interpolis ZorgCompact",113]
[null,null,null,null,55,"Zilveren Kruis Basis Zeker","Zilveren Kruis Zorgverzekeringen N.V.","55  Zilveren Kruis Basis Zeker",55]
[null,null,null,null,66,"Zilveren Kruis Basis Exclusief","Zilveren Kruis Zorgverzekeringen N.V.","66  Zilveren Kruis Basis Exclusief",66]
["NUMMER_UO","NAAM_UO","FORMAT_UO1",null,85,"Zilveren Kruis Basis Budget","Zilveren Kruis Zorgverzekeringen N.V.","85  Zilveren Kruis Basis Budget",85]
["0000","KIES UW UZOVI-NUMMER",{"$f":"CONCATENATE(A13,\" \",B13)","v":"0000 KIES UW UZOVI-NUMMER"},null,91,"Pro Life Principe Polis (natura)","Zilveren Kruis Zorgverzekeringen N.V.","91  Pro Life Principe Polis (natura)",91]
["0101","UNIVÉ ZORG","0101 UNIVÉ ZORG",null,114,"Pro Life Principe Polis Budget","Zilveren Kruis Zorgverzekeringen N.V.","114  Pro Life Principe Polis Budget",114]
["0104","CENTRALE ZORGVERZEKERINGEN NZV N.V.","0104 CENTRALE ZORGVERZEKERINGEN NZV N.V.",null,108,"ZieZo Basis","Zilveren Kruis Zorgverzekeringen N.V.","108  ZieZo Basis",108]
["0201","OHRA ZORGVERZEKERINGEN N.V.","0201 OHRA ZORGVERZEKERINGEN N.V.",null,83,"ik kies zelf van A.S.R. Vrije Keuze combinatie","ASR Basis Ziektekostenverzekeringen N.V.","83  ik kies zelf van A.S.R. Vrije Keuze combinatie",83]
["0403","ASR ","0403 ASR ",null,122,"ik kies zelf van A.S.R. Goede Keuze natura","ASR Basis Ziektekostenverzekeringen N.V.","122  ik kies zelf van A.S.R. Goede Keuze natura",122]
["0699","IZA","0699 IZA",null,96,"a.s.r. Eigen Keuze","ASR Basis Ziektekostenverzekeringen N.V.","96  a.s.r. Eigen Keuze",96]
["0736","UMC","0736 UMC",null,121,"a.s.r. Ruime Keuze","ASR Basis Ziektekostenverzekeringen N.V.","121  a.s.r. Ruime Keuze",121]
["3311","ZILVEREN KRUIS","3311 ZILVEREN KRUIS",null,19,"NN Zorgverzekering Combinatie","Centrale Ziektekostenverzekering NZV NV","19  NN Zorgverzekering Combinatie",19]
["3313","INTERPOLIS","3313 INTERPOLIS",null,133,"NN Zorgverzekering Natura (Zorg Voordelig) ","Centrale Ziektekostenverzekering NZV NV","133  NN Zorgverzekering Natura (Zorg Voordelig) ",133]
["3332","MENZIS","3332 MENZIS",null,33,"OHRA Zorgverzekering Combinatie","OHRA Zorgverzekeringen N.V.","33  OHRA Zorgverzekering Combinatie",33]
["3333","ANDERZORG","3333 ANDERZORG",null,14,"CZ Zorg op maatpolis (Natura)","CZ Zorgverzekeringen N.V.","14  CZ Zorg op maatpolis (Natura)",14]
["3343","ONVZ",{"$f":"CONCATENATE(A24,\" \",B24)","v":"3343 ONVZ"},null,15,"CZ Zorgkeuzepolis (Restitutie)","CZ Zorgverzekeringen N.V.","15  CZ Zorgkeuzepolis (Restitutie)",15]
["3347","SALLAND ZORGVERZEKERAAR",{"$f":"CONCATENATE(A25,\" \",B25)","v":"3347 SALLAND ZORGVERZEKERAAR"},null,73,"CZdirect (Natura)","CZ Zorgverzekeringen N.V.","73  CZdirect (Natura)",73]
["3351","FBTO",{"$f":"CONCATENATE(A26,\" \",B26)","v":"3351 FBTO"},null,97,"CZ Zorgbewustpolis (Natura)","CZ Zorgverzekeringen N.V.","97  CZ Zorgbewustpolis (Natura)",97]
["3352","IPTIQ",{"$f":"CONCATENATE(A27,\" \",B27)","v":"3352 IPTIQ"},null,123,"CZ Just Basic (Natura Just)","CZ Zorgverzekeringen N.V.","123  CZ Just Basic (Natura Just)",123]
["3358","DE FRIESLAND",{"$f":"CONCATENATE(A28,\" \",B28)","v":"3358 DE FRIESLAND"},null,20,"DSW polisvoorwaarden","OWM DSW Zorgverzekeraar U.A.","20  DSW polisvoorwaarden",20]
["3359","EUCARE INSURANCE PCC LTD","3359 EUCARE INSURANCE PCC LTD",null,44,"Stad Holland polisvoorwaarden","OWM Stad Holland Zorgverzekeraar U.A.","44  Stad Holland polisvoorwaarden",44]
["7029","DSW","7029 DSW",null,42,"Salland Basisverzekering","Eno Zorgverzekeraar N.V.","42  Salland Basisverzekering",42]
["7037","STAD HOLLAND","7037 STAD HOLLAND",null,110,"HollandZorg Basisverzekering","Eno Zorgverzekeraar N.V.","110  HollandZorg Basisverzekering",110]
["7085","ZORG EN ZEKERHEID","7085 ZORG EN ZEKERHEID",null,115,"Basisverzekering Natura","EUCARE Insurance PCC Limited","115  Basisverzekering Natura",115]
["7095","VGZ ZORGVERZEKERAAR","7095 VGZ ZORGVERZEKERAAR",null,116,"Basisverzekering Restitutie","EUCARE Insurance PCC Limited","116  Basisverzekering Restitutie",116]
["7119","CZ ZORGVERZEKERINGEN N.V.","7119 CZ ZORGVERZEKERINGEN N.V.",null,118,"Basisverzekering Bewust Verzekerd","EUCARE Insurance PCC Limited","118  Basisverzekering Bewust Verzekerd",118]
[null,null,null,null,126,"Basisverzekering Natura Select","EUCARE Insurance PCC Limited","126  Basisverzekering Natura Select",126]
[null,null,null,null,134,"Basisverzekering Bewust Verzekerd Restitutie ","EUCARE Insurance PCC Limited","134  Basisverzekering Bewust Verzekerd Restitutie ",134]
[null,null,null,null,5,"Anderzorg Basis","AnderZorg N.V.","5  Anderzorg Basis",5]
[null,null,null,null,31,"Menzis Basis","Menzis Zorgverzekeraar N.V.","31  Menzis Basis",31]
[null,null,null,null,32,"Menzis Basis Vrij","Menzis Zorgverzekeraar N.V.","32  Menzis Basis Vrij",32]
[null,null,null,null,102,"Hema Basisverzekering","Menzis Zorgverzekeraar N.V.","102  Hema Basisverzekering",102]
[null,null,null,null,103,"Menzis Basis Voordelig","Menzis Zorgverzekeraar N.V.","103  Menzis Basis Voordelig",103]
[null,null,null,null,132,"VinkVink Basisverzekering","Menzis Zorgverzekeraar N.V.","132  VinkVink Basisverzekering",132]
[null,null,null,null,39,"ONVZ Vrije Keuze Basisverzekering","ONVZ Ziektekostenverzekeraar N.V.","39  ONVZ Vrije Keuze Basisverzekering",39]
[null,null,null,null,127,"Jaaah basis","ONVZ Ziektekostenverzekeraar N.V.","127  Jaaah basis",127]
[null,null,null,null,74,"IZA Eigen Keuze","IZA Zorgverzekeraar N.V.","74  IZA Eigen Keuze",74]
[null,null,null,null,98,"IZA Ruime Keuze","IZA Zorgverzekeraar N.V.","98  IZA Ruime Keuze",98]
[null,null,null,null,128,"IZA Basis Keuze","IZA Zorgverzekeraar N.V.","128  IZA Basis Keuze",128]
[null,null,null,null,50,"Univé Zorg Geregeld polis ","N.V. Univé Zorg","50  Univé Zorg Geregeld polis ",50]
[null,null,null,null,51,"Univé Zorg Vrij polis ","N.V. Univé Zorg","51  Univé Zorg Vrij polis ",51]
[null,null,null,null,65,"Univé Gewoon ZEKUR Zorg","N.V. Univé Zorg","65  Univé Gewoon ZEKUR Zorg",65]
[null,null,null,null,107,"Univé Zorg Select Polis","N.V. Univé Zorg","107  Univé Zorg Select Polis",107]
[null,null,null,null,136,"Univé Zorg Basis Natura ","N.V. Univé Zorg","136  Univé Zorg Basis Natura ",136]
[null,null,null,null,47,"UMC Eigen Keuze","N.V. Zorgverzekeraar UMC","47  UMC Eigen Keuze",47]
[null,null,null,null,125,"UMC Ruime Keuze","N.V. Zorgverzekeraar UMC","125  UMC Ruime Keuze",125]
[null,null,null,null,53,"VGZ Ruime Keuze","VGZ Zorgverzekeraar N.V.","53  VGZ Ruime Keuze",53]
[null,null,null,null,54,"VGZ Eigen Keuze","VGZ Zorgverzekeraar N.V.","54  VGZ Eigen Keuze",54]
[null,null,null,null,82,"VGZ Bewuzt Basis","VGZ Zorgverzekeraar N.V.","82  VGZ Bewuzt Basis",82]
[null,null,null,null,124,"VGZ Basis Keuze","VGZ Zorgverzekeraar N.V.","124  VGZ Basis Keuze",124]
[null,null,null,null,57,"Zorg en Zekerheid Zorg Vrij Polis","OWM Zorgverzekeraar Zorg en Zekerheid U.A.","57  Zorg en Zekerheid Zorg Vrij Polis",57]
[null,null,null,null,58,"Zorg en Zekerheid Zorg Zeker Polis","OWM Zorgverzekeraar Zorg en Zekerheid U.A.","58  Zorg en Zekerheid Zorg Zeker Polis",58]
[null,null,null,null,84,"Zorg en Zekerheid Zorg Gemak Polis","OWM Zorgverzekeraar Zorg en Zekerheid U.A.","84  Zorg en Zekerheid Zorg Gemak Polis",84]
[null,null,null,null,131,"ZEM Polis","OWM Zorgverzekeraar Zorg en Zekerheid U.A.","131  ZEM Polis",131]